Workbook

Sheet Survivalexp RAW 30May-..Jun
A1: Survival experiment
A2: Subject: | C2: Anaerobic survival after aerobic inoculation of recombinant strains | L2: Technical replicates
C3: DeBont+Gluconic Acid - Kanamycin only in 2213-/A/APR | L3: Biological replicates
A4: Inoculation date | C4: 30may'17
A5: Inoculated | C5: Blank | D5: KT2440 WT | E5: 2213F - | G5: 2213F A | I5: 2213F APR
E6: p+0 | F6: p+3 | G6: p+0 | H6: p+3 | I6: p+0 | K6: p+3
A7: T0 | B7: 2017-05-30
A8: Sample | B8: Dilution: | D8: 1 | I8: AVERAGE | J8: Stdev | K8: =10^-1 -> 0.1 | P8: AVERAGE | Q8: Stdev | R8: =10^-2 -> 0.01 | W8: AVERAGE | X8: Stdev | Y8: =10^-3 -> 0.001 | AD8: AVERAGE | AE8: Stdev | AF8: =10^-4 -> 0.0001 | AK8: AVERAGE | AL8: Stdev | AM8: =10^-5 -> 1e-05 | AR8: AVERAGE | AS8: Stdev
A9: Blank | B9: 1 | D9: 0 | E9: 0 | F9: 0 | G9: 0 | H9: 0 | I9: =AVERAGE(D9:H9) -> 0 | J9: =STDEV(D9:H9) -> 0 | K9: 0 | L9: 0 | M9: 0 | N9: 0 | O9: 0 | P9: =AVERAGE(K9:O9) -> 0 | Q9: =STDEV(K9:O9) -> 0 | R9: 0 | S9: 0 | T9: 0 | U9: 0 | V9: 0 | W9: =AVERAGE(R9:V9) -> 0 | X9: =STDEV(R9:V9) -> 0 | Y9: 0 | Z9: 0 | AA9: 0 | AB9: 0 | AC9: 0 | AD9: =AVERAGE(Y9:AC9) -> 0 | AE9: =STDEV(Y9:AC9) -> 0 | AF9: 0 | AG9: 0 | AH9: 0 | AI9: 0 | AJ9: 0 | AK9: =AVERAGE(AF9:AJ9) -> 0 | AL9: =STDEV(AF9:AJ9) -> 0 | AM9: 0 | AN9: 0 | AO9: 0 | AP9: 0 | AQ9: 0 | AR9: =AVERAGE(AM9:AQ9) -> 0 | AS9: =STDEV(AM9:AQ9) -> 0
B10: 2 | D10: 0 | E10: 0 | F10: 0 | G10: 0 | H10: 0 | I10: =AVERAGE(D10:H10) -> 0 | J10: =STDEV(D10:H10) -> 0 | K10: 0 | L10: 0 | M10: 0 | N10: 0 | O10: 0 | P10: =AVERAGE(K10:O10) -> 0 | Q10: =STDEV(K10:O10) -> 0 | R10: 0 | S10: 0 | T10: 0 | U10: 0 | V10: 0 | W10: =AVERAGE(R10:V10) -> 0 | X10: =STDEV(R10:V10) -> 0 | Y10: 0 | Z10: 0 | AA10: 0 | AB10: 0 | AC10: 0 | AD10: =AVERAGE(Y10:AC10) -> 0 | AE10: =STDEV(Y10:AC10) -> 0 | AF10: 0 | AG10: 0 | AH10: 0 | AI10: 0 | AJ10: 0 | AK10: =AVERAGE(AF10:AJ10) -> 0 | AL10: =STDEV(AF10:AJ10) -> 0 | AM10: 0 | AN10: 0 | AO10: 0 | AP10: 0 | AQ10: 0 | AR10: =AVERAGE(AM10:AQ10) -> 0 | AS10: =STDEV(AM10:AQ10) -> 0
B11: 3 | D11: 0 | E11: 0 | F11: 0 | G11: 0 | H11: 0 | I11: =AVERAGE(D11:H11) -> 0 | J11: =STDEV(D11:H11) -> 0 | K11: 0 | L11: 0 | M11: 0 | N11: 0 | O11: 0 | P11: 0 | Q11: =STDEV(K11:O11) -> 0 | R11: 0 | S11: 0 | T11: 0 | U11: 0 | V11: 0 | W11: 0 | X11: =STDEV(R11:V11) -> 0 | Y11: 0 | Z11: 0 | AA11: 0 | AB11: 0 | AC11: 0 | AD11: 0 | AE11: =STDEV(Y11:AC11) -> 0 | AF11: 0 | AG11: 0 | AH11: 0 | AI11: 0 | AJ11: 0 | AK11: 0 | AL11: =STDEV(AF11:AJ11) -> 0 | AM11: 0 | AN11: 0 | AO11: 0 | AP11: 0 | AQ11: 0 | AR11: 0 | AS11: =STDEV(AM11:AQ11) -> 0
I12: =AVERAGE(I9:I11) -> 0 | P12: =AVERAGE(P9:P11) -> 0 | W12: =AVERAGE(W9:W11) -> 0 | AD12: =AVERAGE(AD9:AD11) -> 0 | AK12: =AVERAGE(AK9:AK11) -> 0 | AR12: =AVERAGE(AR9:AR11) -> 0
I13: =J9+J10+J11 -> 0 | P13: =Q9+Q10+Q11 -> 0 | W13: =X9+X10+X11 -> 0 | AD13: =AE9+AE10+AE11 -> 0 | AK13: =AL9+AL10+AL11 -> 0 | AR13: =AS9+AS10+AS11 -> 0
A14: WT | B14: 1 | D14: NA | E14: NA | F14: NA | G14: NA | H14: NA | I14: =AVERAGE(D14:H14) ->  | J14: =STDEV(D14:H14) ->  | K14: NA | L14: NA | M14: NA | N14: NA | O14: NA | Q14: =STDEV(K14:O14) ->  | R14: NA | S14: NA | T14: NA | U14: NA | V14: NA | X14: =STDEV(R14:V14) ->  | Y14: NA | Z14: NA | AA14: NA | AB14: NA | AC14: NA | AE14: =STDEV(Y14:AC14) ->  | AF14: 14 | AG14: 13 | AH14: =61/5 -> 12 | AI14: =61/5 -> 12 | AJ14: 10 | AK14: 12 | AL14: =STDEV(AF14:AJ14) -> 1 | AM14: 0 | AN14: 1 | AO14: 1 | AP14: 1 | AQ14: 1 | AR14: 1 | AS14: =STDEV(AM14:AQ14) -> 0
B15: 2 | D15: NA | E15: NA | F15: NA | G15: NA | H15: NA | I15: =AVERAGE(D15:H15) ->  | J15: =STDEV(D15:H15) ->  | K15: NA | L15: NA | M15: NA | N15: NA | O15: NA | Q15: =STDEV(K15:O15) ->  | R15: NA | S15: NA | T15: NA | U15: NA | V15: NA | X15: =STDEV(R15:V15) ->  | Y15: NA | Z15: NA | AA15: NA | AB15: NA | AC15: NA | AE15: =STDEV(Y15:AC15) ->  | AF15: 12 | AG15: 11 | AH15: 27 | AI15: 35 | AJ15: NA | AK15: 21 | AL15: =STDEV(AF15:AJ15) -> 12 | AM15: 2 | AN15: 1 | AO15: 1 | AP15: 2 | AQ15: 0 | AR15: 1 | AS15: =STDEV(AM15:AQ15) -> 1
B16: 3 | D16: NA | E16: NA | F16: NA | G16: NA | H16: NA | I16: =AVERAGE(D16:H16) ->  | J16: =STDEV(D16:H16) ->  | K16: NA | L16: NA | M16: NA | N16: NA | O16: NA | Q16: =STDEV(K16:O16) ->  | R16: NA | S16: NA | T16: NA | U16: NA | V16: NA | X16: =STDEV(R16:V16) ->  | Y16: NA | Z16: NA | AA16: NA | AB16: NA | AC16: NA | AE16: =STDEV(Y16:AC16) ->  | AF16: 9 | AG16: 14 | AH16: =59/5 -> 12 | AI16: 8 | AJ16: 15 | AK16: 12 | AL16: =STDEV(AF16:AJ16) -> 3 | AM16: 1 | AN16: 0 | AO16: 2 | AP16: 0 | AQ16: 0 | AR16: 1 | AS16: =STDEV(AM16:AQ16) -> 1
A17: average | I17: =AVERAGE(I14:I16) ->  | P17: =AVERAGE(P14:P16) ->  | W17: =AVERAGE(W14:W16) ->  | AD17: =AVERAGE(AD14:AD16) ->  | AK17: =AVERAGE(AK14:AK16) -> 15 | AR17: =AVERAGE(AR14:AR16) -> 1
A18: stdev | I18: =J14+J15+J16 ->  | P18: =Q14+Q15+Q16 ->  | W18: =X14+X15+X16 ->  | AD18: =AE14+AE15+AE16 ->  | AK18: =AL14+AL15+AL16 -> 16 | AR18: =AS14+AS15+AS16 -> 2
A19: 2213F - | B19: 1 | D19: NA | E19: NA | F19: NA | G19: NA | H19: NA | I19: =AVERAGE(D19:H19) ->  | J19: =STDEV(D19:H19) ->  | K19: NA | L19: NA | M19: NA | N19: NA | O19: NA | Q19: =STDEV(K19:O19) ->  | R19: NA | S19: NA | T19: NA | U19: NA | V19: NA | X19: =STDEV(R19:V19) ->  | Y19: NA | Z19: NA | AA19: NA | AB19: NA | AC19: NA | AE19: =STDEV(Y19:AC19) ->  | AF19: 16 | AG19: 19 | AH19: 11 | AI19: 12 | AJ19: 13 | AK19: 14 | AL19: =STDEV(AF19:AJ19) -> 3 | AM19: 0 | AN19: 0 | AO19: 4 | AP19: 2 | AQ19: 3 | AR19: 2 | AS19: =STDEV(AM19:AQ19) -> 2
A20: p+0 | B20: 2 | D20: NA | E20: NA | F20: NA | G20: NA | H20: NA | I20: =AVERAGE(D20:H20) ->  | J20: =STDEV(D20:H20) ->  | K20: NA | L20: NA | M20: NA | N20: NA | O20: NA | Q20: =STDEV(K20:O20) ->  | R20: NA | S20: NA | T20: NA | U20: NA | V20: NA | X20: =STDEV(R20:V20) ->  | Y20: NA | Z20: NA | AA20: NA | AB20: NA | AC20: NA | AE20: =STDEV(Y20:AC20) ->  | AF20: 17 | AG20: 14 | AH20: 10 | AI20: 7 | AJ20: 11 | AK20: 12 | AL20: =STDEV(AF20:AJ20) -> 4 | AM20: 1 | AN20: 2 | AO20: 2 | AP20: 0 | AQ20: 2 | AR20: 1 | AS20: =STDEV(AM20:AQ20) -> 1
B21: 3 | D21: NA | E21: NA | F21: NA | G21: NA | H21: NA | I21: =AVERAGE(D21:H21) ->  | J21: =STDEV(D21:H21) ->  | K21: NA | L21: NA | M21: NA | N21: NA | O21: NA | Q21: =STDEV(K21:O21) ->  | R21: NA | S21: NA | T21: NA | U21: NA | V21: NA | X21: =STDEV(R21:V21) ->  | Y21: NA | Z21: NA | AA21: NA | AB21: NA | AC21: NA | AE21: =STDEV(Y21:AC21) ->  | AF21: 5 | AG21: 5 | AH21: 7 | AI21: 14 | AJ21: 6 | AK21: 7 | AL21: =STDEV(AF21:AJ21) -> 4 | AM21: 0 | AN21: 2 | AO21: 0 | AP21: 3 | AQ21: 1 | AR21: 1 | AS21: =STDEV(AM21:AQ21) -> 1
A22: average | I22: =AVERAGE(I19:I21) ->  | P22: =AVERAGE(P19:P21) ->  | W22: =AVERAGE(W19:W21) ->  | AD22: =AVERAGE(AD19:AD21) ->  | AK22: =AVERAGE(AK19:AK21) -> 11 | AR22: =AVERAGE(AR19:AR21) -> 1
A23: stdev | I23: =J19+J20+J21 ->  | P23: =Q19+Q20+Q21 ->  | W23: =X19+X20+X21 ->  | AD23: =AE19+AE20+AE21 ->  | AK23: =AL19+AL20+AL21 -> 11 | AR23: =AS19+AS20+AS21 -> 4
A24: p+3 | B24: 1 | D24: NA | E24: NA | F24: NA | G24: NA | H24: NA | I24: =AVERAGE(D24:H24) ->  | J24: =STDEV(D24:H24) ->  | K24: NA | L24: NA | M24: NA | N24: NA | O24: NA | Q24: =STDEV(K24:O24) ->  | R24: NA | S24: NA | T24: NA | U24: NA | V24: NA | X24: =STDEV(R24:V24) ->  | Y24: NA | Z24: NA | AA24: NA | AB24: NA | AC24: NA | AE24: =STDEV(Y24:AC24) ->  | AF24: 15 | AG24: 3 | AH24: 9 | AI24: 7 | AJ24: 10 | AK24: 9 | AL24: =STDEV(AF24:AJ24) -> 4 | AM24: 1 | AN24: 1 | AO24: 0 | AP24: 2 | AQ24: 1 | AR24: 1 | AS24: =STDEV(AM24:AQ24) -> 1
B25: 2 | D25: NA | E25: NA | F25: NA | G25: NA | H25: NA | I25: =AVERAGE(D25:H25) ->  | J25: =STDEV(D25:H25) ->  | K25: NA | L25: NA | M25: NA | N25: NA | O25: NA | Q25: =STDEV(K25:O25) ->  | R25: NA | S25: NA | T25: NA | U25: NA | V25: NA | X25: =STDEV(R25:V25) ->  | Y25: 33 | Z25: 29 | AA25: 14 | AB25: 28 | AC25: 48 | AD25: 30 | AE25: =STDEV(Y25:AC25) -> 12 | AF25: 6 | AG25: 8 | AH25: 3 | AI25: 11 | AJ25: 4 | AK25: 6 | AL25: =STDEV(AF25:AJ25) -> 3 | AM25: 1 | AN25: 1 | AO25: 0 | AP25: 2 | AQ25: 0 | AR25: 1 | AS25: =STDEV(AM25:AQ25) -> 1
B26: 3 | D26: NA | E26: NA | F26: NA | G26: NA | H26: NA | I26: =AVERAGE(D26:H26) ->  | J26: =STDEV(D26:H26) ->  | K26: NA | L26: NA | M26: NA | N26: NA | O26: NA | Q26: =STDEV(K26:O26) ->  | R26: NA | S26: NA | T26: NA | U26: NA | V26: NA | X26: =STDEV(R26:V26) ->  | Y26: NA | Z26: NA | AA26: NA | AB26: NA | AC26: NA | AE26: =STDEV(Y26:AC26) ->  | AF26: 11 | AG26: 10 | AH26: 7 | AI26: 10 | AJ26: 10 | AK26: 10 | AL26: =STDEV(AF26:AJ26) -> 2 | AM26: 2 | AN26: 0 | AO26: 3 | AP26: 3 | AQ26: 1 | AR26: 2 | AS26: =STDEV(AM26:AQ26) -> 1
A27: average | I27: =AVERAGE(I24:I26) ->  | P27: =AVERAGE(P24:P26) ->  | W27: =AVERAGE(W24:W26) ->  | AD27: =AVERAGE(AD25) -> 30 | AK27: =AVERAGE(AK24:AK26) -> 8 | AR27: =AVERAGE(AR24:AR26) -> 1
A28: stdev | I28: =J24+J25+J26 ->  | P28: =Q24+Q25+Q26 ->  | W28: =X24+X25+X26 ->  | AD28: =AE24+AE25+AE26 ->  | AK28: =AL24+AL25+AL26 -> 9 | AR28: =AS24+AS25+AS26 -> 3
A29: 2213F A | B29: 1 | D29: NA | E29: NA | F29: NA | G29: NA | H29: NA | I29: =AVERAGE(D29:H29) ->  | J29: =STDEV(D29:H29) ->  | K29: NA | L29: NA | M29: NA | N29: NA | O29: NA | Q29: =STDEV(K29:O29) ->  | R29: NA | S29: NA | T29: NA | U29: NA | V29: NA | X29: =STDEV(R29:V29) ->  | Y29: 40 | Z29: 45 | AA29: 39 | AB29: 40 | AC29: 43 | AD29: 41 | AE29: =STDEV(Y29:AC29) -> 3 | AF29: 5 | AG29: 7 | AH29: 9 | AI29: 6 | AJ29: 10 | AK29: 7 | AL29: =STDEV(AF29:AJ29) -> 2 | AM29: 0 | AN29: 0 | AO29: 2 | AP29: 1 | AQ29: 1 | AR29: 1 | AS29: =STDEV(AM29:AQ29) -> 1
A30: p+0 | B30: 2 | D30: NA | E30: NA | F30: NA | G30: NA | H30: NA | I30: =AVERAGE(D30:H30) ->  | J30: =STDEV(D30:H30) ->  | K30: NA | L30: NA | M30: NA | N30: NA | O30: NA | Q30: =STDEV(K30:O30) ->  | R30: NA | S30: NA | T30: NA | U30: NA | V30: NA | X30: =STDEV(R30:V30) ->  | Y30: 46 | Z30: 43 | AA30: 37 | AB30: 36 | AC30: 45 | AD30: 41 | AE30: =STDEV(Y30:AC30) -> 5 | AF30: 2 | AG30: 4 | AH30: 5 | AI30: 5 | AJ30: 9 | AK30: 5 | AL30: =STDEV(AF30:AJ30) -> 3 | AM30: 1 | AN30: 1 | AO30: 0 | AP30: 2 | AQ30: 2 | AR30: 1 | AS30: =STDEV(AM30:AQ30) -> 1
B31: 3 | D31: NA | E31: NA | F31: NA | G31: NA | H31: NA | I31: =AVERAGE(D31:H31) ->  | J31: =STDEV(D31:H31) ->  | K31: NA | L31: NA | M31: NA | N31: NA | O31: NA | Q31: =STDEV(K31:O31) ->  | R31: NA | S31: NA | T31: NA | U31: NA | V31: NA | X31: =STDEV(R31:V31) ->  | Y31: 47 | Z31: 36 | AA31: NA | AB31: NA | AC31: NA | AD31: =AVERAGE(Y31:Z31) -> 42 | AE31: =STDEV(Y31:AC31) -> 8 | AF31: 10 | AG31: 10 | AH31: NA | AI31: NA | AJ31: NA | AK31: =AVERAGE(AF31:AG31) -> 10 | AL31: =STDEV(AF31:AJ31) -> 0 | AM31: 1 | AN31: 0 | AO31: 1 | AP31: 0 | AQ31: 1 | AR31: 1 | AS31: =STDEV(AM31:AQ31) -> 1
A32: average | I32: =AVERAGE(I29:I31) ->  | P32: =AVERAGE(P29:P31) ->  | W32: =AVERAGE(W29:W31) ->  | AD32: =AVERAGE(AD29:AD31) -> 41 | AK32: =AVERAGE(AK29:AK31) -> 7 | AR32: =AVERAGE(AR29:AR31) -> 1
A33: stdev | I33: =J29+J30+J31 ->  | P33: =Q29+Q30+Q31 ->  | W33: =X29+X30+X31 ->  | AD33: =AE29+AE30+AE31 -> 15 | AK33: =AL29+AL30+AL31 -> 5 | AR33: =AS29+AS30+AS31 -> 2
A34: p+3 | B34: 1 | D34: NA | E34: NA | F34: NA | G34: NA | H34: NA | I34: =AVERAGE(D34:H34) ->  | J34: =STDEV(D34:H34) ->  | K34: NA | L34: NA | M34: NA | N34: NA | O34: NA | Q34: =STDEV(K34:O34) ->  | R34: NA | S34: NA | T34: NA | U34: NA | V34: NA | X34: =STDEV(R34:V34) ->  | Y34: NA | Z34: NA | AA34: NA | AB34: NA | AC34: NA | AE34: =STDEV(Y34:AC34) ->  | AF34: 4 | AG34: NA | AH34: NA | AI34: 2 | AJ34: 3 | AK34: =AVERAGE(AF34,AI34:AJ34) -> 3 | AL34: =STDEV(AF34:AJ34) -> 1 | AM34: 0 | AN34: 2 | AO34: 1 | AP34: 0 | AQ34: 0 | AR34: 1 | AS34: =STDEV(AM34:AQ34) -> 1
B35: 2 | D35: NA | E35: NA | F35: NA | G35: NA | H35: NA | I35: =AVERAGE(D35:H35) ->  | J35: =STDEV(D35:H35) ->  | K35: NA | L35: NA | M35: NA | N35: NA | O35: NA | Q35: =STDEV(K35:O35) ->  | R35: NA | S35: NA | T35: NA | U35: NA | V35: NA | X35: =STDEV(R35:V35) ->  | Y35: NA | Z35: NA | AA35: NA | AB35: NA | AC35: NA | AE35: =STDEV(Y35:AC35) ->  | AF35: 4 | AG35: 3 | AH35: NA | AI35: 2 | AJ35: 7 | AK35: =AVERAGE(AF35:AG35,AI35:AJ35) -> 4 | AL35: =STDEV(AF35:AJ35) -> 2 | AM35: 1 | AN35: 1 | AO35: 0 | AP35: 0 | AQ35: 0 | AR35: 0 | AS35: =STDEV(AM35:AQ35) -> 1
B36: 3 | D36: NA | E36: NA | F36: NA | G36: NA | H36: NA | I36: =AVERAGE(D36:H36) ->  | J36: =STDEV(D36:H36) ->  | K36: NA | L36: NA | M36: NA | N36: NA | O36: NA | Q36: =STDEV(K36:O36) ->  | R36: NA | S36: NA | T36: NA | U36: NA | V36: NA | X36: =STDEV(R36:V36) ->  | Y36: NA | Z36: NA | AA36: NA | AB36: NA | AC36: NA | AE36: =STDEV(Y36:AC36) ->  | AF36: 5 | AG36: NA | AH36: NA | AI36: 7 | AJ36: 6 | AK36: =AVERAGE(AF36, AI36:AJ36) -> 6 | AL36: =STDEV(AF36:AJ36) -> 1 | AM36: 0 | AN36: 0 | AO36: 0 | AP36: 3 | AQ36: 0 | AR36: 1 | AS36: =STDEV(AM36:AQ36) -> 1
A37: average | I37: =AVERAGE(I34:I36) ->  | P37: =AVERAGE(P34:P36) ->  | W37: =AVERAGE(W34:W36) ->  | AD37: =AVERAGE(AD34:AD36) ->  | AK37: =AVERAGE(AK34:AK36) -> 4 | AR37: =AVERAGE(AR34:AR36) -> 1
A38: stdev | I38: =J34+J35+J36 ->  | P38: =Q34+Q35+Q36 ->  | W38: =X34+X35+X36 ->  | AD38: =AE34+AE35+AE36 ->  | AK38: =AL34+AL35+AL36 -> 4 | AR38: =AS34+AS35+AS36 -> 3
A39: 2213F APR | B39: 1 | D39: NA | E39: NA | F39: NA | G39: NA | H39: NA | I39: =AVERAGE(D39:H39) ->  | J39: =STDEV(D39:H39) ->  | K39: NA | L39: NA | M39: NA | N39: NA | O39: NA | Q39: =STDEV(K39:O39) ->  | R39: NA | S39: NA | T39: NA | U39: NA | V39: NA | X39: =STDEV(R39:V39) ->  | Y39: NA | Z39: NA | AA39: NA | AB39: NA | AC39: NA | AE39: =STDEV(Y39:AC39) ->  | AF39: 5 | AG39: 4 | AH39: NA | AI39: 6 | AJ39: 6 | AK39: =AVERAGE(AF39:AG39,AI39:AJ39) -> 5 | AL39: =STDEV(AF39:AJ39) -> 1 | AM39: 0 | AN39: 0 | AO39: 1 | AP39: 1 | AQ39: 1 | AR39: 1 | AS39: =STDEV(AM39:AQ39) -> 1
A40: p+0 | B40: 2 | D40: NA | E40: NA | F40: NA | G40: NA | H40: NA | I40: =AVERAGE(D40:H40) ->  | J40: =STDEV(D40:H40) ->  | K40: NA | L40: NA | M40: NA | N40: NA | O40: NA | Q40: =STDEV(K40:O40) ->  | R40: NA | S40: NA | T40: NA | U40: NA | V40: NA | X40: =STDEV(R40:V40) ->  | Y40: NA | Z40: NA | AA40: NA | AB40: NA | AC40: NA | AE40: =STDEV(Y40:AC40) ->  | AF40: 3 | AG40: 1 | AH40: 4 | AI40: 1 | AJ40: 2 | AK40: 2 | AL40: =STDEV(AF40:AJ40) -> 1 | AM40: 1 | AN40: 0 | AO40: 1 | AP40: 0 | AQ40: 0 | AR40: 0 | AS40: =STDEV(AM40:AQ40) -> 1
B41: 3 | D41: NA | E41: NA | F41: NA | G41: NA | H41: NA | I41: =AVERAGE(D41:H41) ->  | J41: =STDEV(D41:H41) ->  | K41: NA | L41: NA | M41: NA | N41: NA | O41: NA | Q41: =STDEV(K41:O41) ->  | R41: NA | S41: NA | T41: NA | U41: NA | V41: NA | X41: =STDEV(R41:V41) ->  | Y41: NA | Z41: NA | AA41: NA | AB41: NA | AC41: NA | AE41: =STDEV(Y41:AC41) ->  | AF41: 3 | AG41: 1 | AH41: 2 | AI41: 4 | AJ41: 4 | AK41: 3 | AL41: =STDEV(AF41:AJ41) -> 1 | AM41: 1 | AN41: 0 | AO41: 0 | AP41: 0 | AQ41: 1 | AR41: 0 | AS41: =STDEV(AM41:AQ41) -> 1
A42: average | I42: =AVERAGE(I39:I41) ->  | P42: =AVERAGE(P39:P41) ->  | W42: =AVERAGE(W39:W41) ->  | AD42: =AVERAGE(AD39:AD41) ->  | AK42: =AVERAGE(AK39:AK41) -> 3 | AR42: =AVERAGE(AR39:AR41) -> 0
A43: stdev | I43: =J39+J40+J41 ->  | P43: =Q39+Q40+Q41 ->  | W43: =X39+X40+X41 ->  | AD43: =AE39+AE40+AE41 ->  | AK43: =AL39+AL40+AL41 -> 4 | AR43: =AS39+AS40+AS41 -> 2
A44: p+3 | B44: 1 | D44: NA | E44: NA | F44: NA | G44: NA | H44: NA | I44: =AVERAGE(D44:H44) ->  | J44: =STDEV(D44:H44) ->  | K44: NA | L44: NA | M44: NA | N44: NA | O44: NA | Q44: =STDEV(K44:O44) ->  | R44: NA | S44: NA | T44: NA | U44: NA | V44: NA | X44: =STDEV(R44:V44) ->  | Y44: NA | Z44: NA | AA44: NA | AB44: NA | AC44: NA | AE44: =STDEV(Y44:AC44) ->  | AF44: 8 | AG44: 9 | AH44: 6 | AI44: 8 | AJ44: 12 | AK44: 9 | AL44: =STDEV(AF44:AJ44) -> 2 | AM44: 0 | AN44: 0 | AO44: 1 | AP44: 1 | AQ44: 3 | AR44: 1 | AS44: =STDEV(AM44:AQ44) -> 1
B45: 2 | D45: NA | E45: NA | F45: NA | G45: NA | H45: NA | I45: =AVERAGE(D45:H45) ->  | J45: =STDEV(D45:H45) ->  | K45: NA | L45: NA | M45: NA | N45: NA | O45: NA | Q45: =STDEV(K45:O45) ->  | R45: NA | S45: NA | T45: NA | U45: NA | V45: NA | X45: =STDEV(R45:V45) ->  | Y45: 59 | Z45: NA | AA45: NA | AB45: NA | AC45: NA | AD45: =AVERAGE(Y45) -> 59 | AE45: =STDEV(Y45:AC45) ->  | AF45: 6 | AG45: 8 | AH45: NA | AI45: NA | AJ45: NA | AK45: =AVERAGE(AF45:AG45) -> 7 | AL45: =STDEV(AF45:AJ45) -> 1 | AM45: 2 | AN45: 1 | AO45: 1 | AP45: 2 | AQ45: 0 | AR45: 1 | AS45: =STDEV(AM45:AQ45) -> 1
B46: 3 | D46: NA | E46: NA | F46: NA | G46: NA | H46: NA | I46: =AVERAGE(D46:H46) ->  | J46: =STDEV(D46:H46) ->  | K46: NA | L46: NA | M46: NA | N46: NA | O46: NA | Q46: =STDEV(K46:O46) ->  | R46: NA | S46: NA | T46: NA | U46: NA | V46: NA | X46: =STDEV(R46:V46) ->  | Y46: NA | Z46: NA | AA46: NA | AB46: NA | AC46: NA | AE46: =STDEV(Y46:AC46) ->  | AF46: 9 | AG46: NA | AH46: NA | AI46: NA | AJ46: NA | AK46: =AVERAGE(AF46) -> 9 | AL46: =STDEV(AF46:AJ46) ->  | AM46: 3 | AN46: 3 | AO46: 1 | AP46: 1 | AQ46: 1 | AR46: 2 | AS46: =STDEV(AM46:AQ46) -> 1
A47: average | I47: =AVERAGE(I44:I46) ->  | P47: =AVERAGE(P44:P46) ->  | W47: =AVERAGE(W44:W46) ->  | AD47: =AVERAGE(AD45) -> 59 | AK47: =AVERAGE(AK44:AK46) -> 8 | AR47: =AVERAGE(AR44:AR46) -> 1
A48: stdev | I48: =J44+J45+J46 ->  | P48: =Q44+Q45+Q46 ->  | W48: =X44+X45+X46 ->  | AD48: =AE44+AE45+AE46 ->  | AK48: =AL44+AL45+AL46 ->  | AR48: =AS44+AS45+AS46 -> 3
A51: T2 | B51: 2017-06-01
A52: Sample | B52: Dilution: | D52: 1 | I52: AVERAGE | J52: Stdev | K52: =10^-1 -> 0.1 | P52: AVERAGE | Q52: Stdev | R52: =10^-2 -> 0.01 | W52: AVERAGE | X52: Stdev | Y52: =10^-3 -> 0.001 | AD52: AVERAGE | AE52: Stdev | AF52: =10^-4 -> 0.0001 | AK52: AVERAGE | AL52: Stdev | AM52: =10^-5 -> 1e-05 | AR52: AVERAGE | AS52: Stdev
A53: Blank | B53: 1 | D53: 0 | E53: 0 | F53: 0 | G53: 0 | H53: 0 | I53: =AVERAGE(D53:H53) -> 0 | J53: =STDEV(D53:H53) -> 0 | K53: 0 | L53: 0 | M53: 0 | N53: 0 | O53: 0 | P53: =AVERAGE(K53:O53) -> 0 | Q53: =STDEV(K53:O53) -> 0 | R53: 0 | S53: 0 | T53: 0 | U53: 0 | V53: 0 | W53: =AVERAGE(R53:V53) -> 0 | X53: =STDEV(R53:V53) -> 0 | Y53: 0 | Z53: 0 | AA53: 0 | AB53: 0 | AC53: 0 | AD53: =AVERAGE(Y53:AC53) -> 0 | AE53: =STDEV(Y53:AC53) -> 0 | AF53: 0 | AG53: 0 | AH53: 0 | AI53: 0 | AJ53: 0 | AK53: =AVERAGE(AF53:AJ53) -> 0 | AL53: =STDEV(AF53:AJ53) -> 0 | AM53: 0 | AN53: 0 | AO53: 0 | AP53: 0 | AQ53: 0 | AR53: =AVERAGE(AM53:AQ53) -> 0 | AS53: =STDEV(AM53:AQ53) -> 0
B54: 2 | D54: 0 | E54: 0 | F54: 0 | G54: 0 | H54: 0 | I54: =AVERAGE(D54:H54) -> 0 | J54: =STDEV(D54:H54) -> 0 | K54: 0 | L54: 0 | M54: 0 | N54: 0 | O54: 0 | P54: =AVERAGE(K54:O54) -> 0 | Q54: =STDEV(K54:O54) -> 0 | R54: 0 | S54: 0 | T54: 0 | U54: 0 | V54: 0 | W54: =AVERAGE(R54:V54) -> 0 | X54: =STDEV(R54:V54) -> 0 | Y54: 0 | Z54: 0 | AA54: 0 | AB54: 0 | AC54: 0 | AD54: =AVERAGE(Y54:AC54) -> 0 | AE54: =STDEV(Y54:AC54) -> 0 | AF54: 0 | AG54: 0 | AH54: 0 | AI54: 0 | AJ54: 0 | AK54: =AVERAGE(AF54:AJ54) -> 0 | AL54: =STDEV(AF54:AJ54) -> 0 | AM54: 0 | AN54: 0 | AO54: 0 | AP54: 0 | AQ54: 0 | AR54: =AVERAGE(AM54:AQ54) -> 0 | AS54: =STDEV(AM54:AQ54) -> 0
B55: 3 | D55: 0 | E55: 0 | F55: 0 | G55: 0 | H55: 0 | I55: =AVERAGE(D55:H55) -> 0 | J55: =STDEV(D55:H55) -> 0 | K55: 0 | L55: 0 | M55: 0 | N55: 0 | O55: 0 | P55: 0 | Q55: =STDEV(K55:O55) -> 0 | R55: 0 | S55: 0 | T55: 0 | U55: 0 | V55: 0 | W55: 0 | X55: =STDEV(R55:V55) -> 0 | Y55: 0 | Z55: 0 | AA55: 0 | AB55: 0 | AC55: 0 | AD55: 0 | AE55: =STDEV(Y55:AC55) -> 0 | AF55: 0 | AG55: 0 | AH55: 0 | AI55: 0 | AJ55: 0 | AK55: 0 | AL55: =STDEV(AF55:AJ55) -> 0 | AM55: 0 | AN55: 0 | AO55: 0 | AP55: 0 | AQ55: 0 | AR55: 0 | AS55: =STDEV(AM55:AQ55) -> 0
I56: =AVERAGE(I53:I55) -> 0 | P56: =AVERAGE(P53:P55) -> 0 | W56: =AVERAGE(W53:W55) -> 0 | AD56: =AVERAGE(AD53:AD55) -> 0 | AK56: =AVERAGE(AK53:AK55) -> 0 | AR56: =AVERAGE(AR53:AR55) -> 0
I57: =J53+J54+J55 -> 0 | P57: =Q53+Q54+Q55 -> 0 | W57: =X53+X54+X55 -> 0 | AD57: =AE53+AE54+AE55 -> 0 | AK57: =AL53+AL54+AL55 -> 0 | AR57: =AS53+AS54+AS55 -> 0
A58: WT | B58: 1 | D58: NA | E58: NA | F58: NA | G58: NA | H58: NA | I58: =AVERAGE(D58:H58) ->  | J58: =STDEV(D58:H58) ->  | K58: NA | L58: NA | M58: NA | N58: NA | O58: NA | P58: =AVERAGE(K58:O58) ->  | Q58: =STDEV(K58:O58) ->  | R58: NA | S58: NA | T58: NA | U58: NA | V58: NA | W58: =AVERAGE(R58:V58) ->  | X58: =STDEV(R58:V58) ->  | Y58: NA | Z58: NA | AA58: NA | AB58: NA | AC58: NA | AD58: =AVERAGE(Y58:AC58) ->  | AE58: =STDEV(Y58:AC58) ->  | AF58: NA | AG58: NA | AH58: NA | AI58: NA | AJ58: NA | AK58: =AVERAGE(AF58:AJ58) ->  | AL58: =STDEV(AF58:AJ58) ->  | AM58: =391/5 -> 78 | AN58: =391/5 -> 78 | AO58: =391/5 -> 78 | AP58: =391/5 -> 78 | AQ58: =391/5 -> 78 | AR58: =AVERAGE(AM58:AQ58) -> 78 | AS58: =STDEV(AM58:AQ58) -> 0
B59: 2 | D59: NA | E59: NA | F59: NA | G59: NA | H59: NA | I59: =AVERAGE(D59:H59) ->  | J59: =STDEV(D59:H59) ->  | K59: NA | L59: NA | M59: NA | N59: NA | O59: NA | Q59: =STDEV(K59:O59) ->  | R59: NA | S59: NA | T59: NA | U59: NA | V59: NA | X59: =STDEV(R59:V59) ->  | Y59: NA | Z59: NA | AA59: NA | AB59: NA | AC59: NA | AE59: =STDEV(Y59:AC59) ->  | AF59: NA | AG59: NA | AH59: NA | AI59: NA | AJ59: NA | AL59: =STDEV(AF59:AJ59) ->  | AM59: =338/5 -> 68 | AN59: =338/5 -> 68 | AO59: =338/5 -> 68 | AP59: =338/5 -> 68 | AQ59: =338/5 -> 68 | AR59: 68 | AS59: =STDEV(AM59:AQ59) -> 0
B60: 3 | D60: NA | E60: NA | F60: NA | G60: NA | H60: NA | I60: =AVERAGE(D60:H60) ->  | J60: =STDEV(D60:H60) ->  | K60: NA | L60: NA | M60: NA | N60: NA | O60: NA | Q60: =STDEV(K60:O60) ->  | R60: NA | S60: NA | T60: NA | U60: NA | V60: NA | X60: =STDEV(R60:V60) ->  | Y60: NA | Z60: NA | AA60: NA | AB60: NA | AC60: NA | AE60: =STDEV(Y60:AC60) ->  | AF60: NA | AG60: NA | AH60: NA | AI60: NA | AJ60: NA | AL60: =STDEV(AF60:AJ60) ->  | AM60: NA | AN60: NA | AO60: NA | AP60: NA | AQ60: NA | AS60: =STDEV(AM60:AQ60) -> 
A61: average | I61: =AVERAGE(I58:I60) ->  | P61: =AVERAGE(P58:P60) ->  | W61: =AVERAGE(W58:W60) ->  | AD61: =AVERAGE(AD58:AD60) ->  | AK61: =AVERAGE(AK58:AK60) ->  | AR61: =AVERAGE(AR58:AR59) -> 73
A62: stdev | I62: =J58+J59+J60 ->  | P62: =Q58+Q59+Q60 ->  | W62: =X58+X59+X60 ->  | AD62: =AE58+AE59+AE60 ->  | AK62: =AL58+AL59+AL60 ->  | AR62: =AS58+AS59+AS60 -> 
A63: 2213F - | B63: 1 | D63: NA | E63: NA | F63: NA | G63: NA | H63: NA | I63: =AVERAGE(D63:H63) ->  | J63: =STDEV(D63:H63) ->  | K63: NA | L63: NA | M63: NA | N63: NA | O63: NA | P63: =AVERAGE(K63:O63) ->  | Q63: =STDEV(K63:O63) ->  | R63: NA | S63: NA | T63: NA | U63: NA | V63: NA | W63: =AVERAGE(R63:V63) ->  | X63: =STDEV(R63:V63) ->  | Y63: NA | Z63: NA | AA63: NA | AB63: NA | AC63: NA | AD63: =AVERAGE(Y63:AC63) ->  | AE63: =STDEV(Y63:AC63) ->  | AF63: NA | AG63: NA | AH63: NA | AI63: NA | AJ63: NA | AK63: =AVERAGE(AF63:AJ63) ->  | AL63: =STDEV(AF63:AJ63) ->  | AM63: 27 | AN63: 27 | AO63: 27 | AP63: 27 | AQ63: 27 | AR63: =AVERAGE(AM63:AQ63) -> 27 | AS63: =STDEV(AM63:AQ63) -> 0
A64: p+0 | B64: 2 | D64: NA | E64: NA | F64: NA | G64: NA | H64: NA | I64: =AVERAGE(D64:H64) ->  | J64: =STDEV(D64:H64) ->  | K64: NA | L64: NA | M64: NA | N64: NA | O64: NA | Q64: =STDEV(K64:O64) ->  | R64: NA | S64: NA | T64: NA | U64: NA | V64: NA | X64: =STDEV(R64:V64) ->  | Y64: NA | Z64: NA | AA64: NA | AB64: NA | AC64: NA | AE64: =STDEV(Y64:AC64) ->  | AF64: NA | AG64: NA | AH64: NA | AI64: NA | AJ64: NA | AL64: =STDEV(AF64:AJ64) ->  | AM64: 30 | AN64: 30 | AO64: 30 | AP64: 30 | AQ64: 30 | AR64: 30 | AS64: =STDEV(AM64:AQ64) -> 0
B65: 3 | D65: NA | E65: NA | F65: NA | G65: NA | H65: NA | I65: =AVERAGE(D65:H65) ->  | J65: =STDEV(D65:H65) ->  | K65: NA | L65: NA | M65: NA | N65: NA | O65: NA | Q65: =STDEV(K65:O65) ->  | R65: NA | S65: NA | T65: NA | U65: NA | V65: NA | X65: =STDEV(R65:V65) ->  | Y65: NA | Z65: NA | AA65: NA | AB65: NA | AC65: NA | AE65: =STDEV(Y65:AC65) ->  | AF65: NA | AG65: NA | AH65: NA | AI65: NA | AJ65: NA | AL65: =STDEV(AF65:AJ65) ->  | AM65: 41 | AN65: 41 | AO65: 41 | AP65: 41 | AQ65: 41 | AR65: 41 | AS65: =STDEV(AM65:AQ65) -> 0
A66: average | I66: =AVERAGE(I63:I65) ->  | P66: =AVERAGE(P63:P65) ->  | W66: =AVERAGE(W63:W65) ->  | AD66: =AVERAGE(AD63:AD65) ->  | AK66: =AVERAGE(AK63:AK65) ->  | AR66: =AVERAGE(AR63:AR65) -> 32
A67: stdev | I67: =J63+J64+J65 ->  | P67: =Q63+Q64+Q65 ->  | W67: =X63+X64+X65 ->  | AD67: =AE63+AE64+AE65 ->  | AK67: =AL63+AL64+AL65 ->  | AR67: =AS63+AS64+AS65 -> 0
A68: p+3 | B68: 1 | D68: NA | E68: NA | F68: NA | G68: NA | H68: NA | I68: =AVERAGE(D68:H68) ->  | J68: =STDEV(D68:H68) ->  | K68: NA | L68: NA | M68: NA | N68: NA | O68: NA | P68: =AVERAGE(K68:O68) ->  | Q68: =STDEV(K68:O68) ->  | R68: NA | S68: NA | T68: NA | U68: NA | V68: NA | W68: =AVERAGE(R68:V68) ->  | X68: =STDEV(R68:V68) ->  | Y68: NA | Z68: NA | AA68: NA | AB68: NA | AC68: NA | AD68: =AVERAGE(Y68:AC68) ->  | AE68: =STDEV(Y68:AC68) ->  | AF68: NA | AG68: NA | AH68: NA | AI68: NA | AJ68: NA | AK68: =AVERAGE(AF68:AJ68) ->  | AL68: =STDEV(AF68:AJ68) ->  | AM68: NA | AN68: NA | AO68: NA | AP68: NA | AQ68: NA | AR68: =AVERAGE(AM68:AQ68) ->  | AS68: =STDEV(AM68:AQ68) -> 
B69: 2 | D69: NA | E69: NA | F69: NA | G69: NA | H69: NA | I69: =AVERAGE(D69:H69) ->  | J69: =STDEV(D69:H69) ->  | K69: NA | L69: NA | M69: NA | N69: NA | O69: NA | Q69: =STDEV(K69:O69) ->  | R69: NA | S69: NA | T69: NA | U69: NA | V69: NA | X69: =STDEV(R69:V69) ->  | Y69: NA | Z69: NA | AA69: NA | AB69: NA | AC69: NA | AE69: =STDEV(Y69:AC69) ->  | AF69: NA | AG69: NA | AH69: NA | AI69: NA | AJ69: NA | AL69: =STDEV(AF69:AJ69) ->  | AM69: 87 | AN69: 87 | AO69: 87 | AP69: 87 | AQ69: 87 | AR69: 87 | AS69: =STDEV(AM69:AQ69) -> 0
B70: 3 | D70: NA | E70: NA | F70: NA | G70: NA | H70: NA | I70: =AVERAGE(D70:H70) ->  | J70: =STDEV(D70:H70) ->  | K70: NA | L70: NA | M70: NA | N70: NA | O70: NA | Q70: =STDEV(K70:O70) ->  | R70: NA | S70: NA | T70: NA | U70: NA | V70: NA | X70: =STDEV(R70:V70) ->  | Y70: NA | Z70: NA | AA70: NA | AB70: NA | AC70: NA | AE70: =STDEV(Y70:AC70) ->  | AF70: NA | AG70: NA | AH70: NA | AI70: NA | AJ70: NA | AL70: =STDEV(AF70:AJ70) ->  | AM70: 64 | AN70: 64 | AO70: 64 | AP70: 64 | AQ70: 64 | AR70: 64 | AS70: =STDEV(AM70:AQ70) -> 0
A71: average | I71: =AVERAGE(I68:I70) ->  | P71: =AVERAGE(P68:P70) ->  | W71: =AVERAGE(W68:W70) ->  | AD71: =AVERAGE(AD68:AD70) ->  | AK71: =AVERAGE(AK68:AK70) ->  | AR71: =AVERAGE(AR69:AR70) -> 76
A72: stdev | I72: =J68+J69+J70 ->  | P72: =Q68+Q69+Q70 ->  | W72: =X68+X69+X70 ->  | AD72: =AE68+AE69+AE70 ->  | AK72: =AL68+AL69+AL70 ->  | AR72: =AS68+AS69+AS70 -> 
A73: 2213F A | B73: 1 | D73: NA | E73: NA | F73: NA | G73: NA | H73: NA | I73: =AVERAGE(D73:H73) ->  | J73: =STDEV(D73:H73) ->  | K73: NA | L73: NA | M73: NA | N73: NA | O73: NA | P73: =AVERAGE(K73:O73) ->  | Q73: =STDEV(K73:O73) ->  | R73: NA | S73: NA | T73: NA | U73: NA | V73: NA | W73: =AVERAGE(R73:V73) ->  | X73: =STDEV(R73:V73) ->  | Y73: NA | Z73: NA | AA73: NA | AB73: NA | AC73: NA | AD73: =AVERAGE(Y73:AC73) ->  | AE73: =STDEV(Y73:AC73) ->  | AF73: NA | AG73: NA | AH73: NA | AI73: NA | AJ73: NA | AK73: =AVERAGE(AF73:AJ73) ->  | AL73: =STDEV(AF73:AJ73) ->  | AM73: 45 | AN73: 45 | AO73: 45 | AP73: 45 | AQ73: 45 | AR73: =AVERAGE(AM73:AQ73) -> 45 | AS73: =STDEV(AM73:AQ73) -> 0
A74: p+0 | B74: 2 | D74: NA | E74: NA | F74: NA | G74: NA | H74: NA | I74: =AVERAGE(D74:H74) ->  | J74: =STDEV(D74:H74) ->  | K74: NA | L74: NA | M74: NA | N74: NA | O74: NA | Q74: =STDEV(K74:O74) ->  | R74: NA | S74: NA | T74: NA | U74: NA | V74: NA | X74: =STDEV(R74:V74) ->  | Y74: NA | Z74: NA | AA74: NA | AB74: NA | AC74: NA | AE74: =STDEV(Y74:AC74) ->  | AF74: NA | AG74: NA | AH74: NA | AI74: NA | AJ74: NA | AL74: =STDEV(AF74:AJ74) ->  | AM74: 40 | AN74: 40 | AO74: 40 | AP74: 40 | AQ74: 40 | AR74: 40 | AS74: =STDEV(AM74:AQ74) -> 0
B75: 3 | D75: NA | E75: NA | F75: NA | G75: NA | H75: NA | I75: =AVERAGE(D75:H75) ->  | J75: =STDEV(D75:H75) ->  | K75: NA | L75: NA | M75: NA | N75: NA | O75: NA | Q75: =STDEV(K75:O75) ->  | R75: NA | S75: NA | T75: NA | U75: NA | V75: NA | X75: =STDEV(R75:V75) ->  | Y75: NA | Z75: NA | AA75: NA | AB75: NA | AC75: NA | AD75: =AVERAGE(Y75:AC75) ->  | AE75: =STDEV(Y75:AC75) ->  | AF75: NA | AG75: NA | AH75: NA | AI75: NA | AJ75: NA | AK75: =AVERAGE(AF75:AJ75) ->  | AL75: =STDEV(AF75:AJ75) ->  | AM75: 30 | AN75: 30 | AO75: 30 | AP75: 30 | AQ75: 30 | AR75: 30 | AS75: =STDEV(AM75:AQ75) -> 0
A76: average | I76: =AVERAGE(I73:I75) ->  | P76: =AVERAGE(P73:P75) ->  | W76: =AVERAGE(W73:W75) ->  | AD76: =AVERAGE(AD73:AD75) ->  | AK76: =AVERAGE(AK73:AK75) ->  | AR76: =AVERAGE(AR73:AR75) -> 39
A77: stdev | I77: =J73+J74+J75 ->  | P77: =Q73+Q74+Q75 ->  | W77: =X73+X74+X75 ->  | AD77: =AE73+AE74+AE75 ->  | AK77: =AL73+AL74+AL75 ->  | AR77: =AS73+AS74+AS75 -> 0
A78: p+3 | B78: 1 | D78: NA | E78: NA | F78: NA | G78: NA | H78: NA | I78: =AVERAGE(D78:H78) ->  | J78: =STDEV(D78:H78) ->  | K78: NA | L78: NA | M78: NA | N78: NA | O78: NA | P78: =AVERAGE(K78:O78) ->  | Q78: =STDEV(K78:O78) ->  | R78: NA | S78: NA | T78: NA | U78: NA | V78: NA | W78: =AVERAGE(R78:V78) ->  | X78: =STDEV(R78:V78) ->  | Y78: NA | Z78: NA | AA78: NA | AB78: NA | AC78: NA | AD78: =AVERAGE(Y78:AC78) ->  | AE78: =STDEV(Y78:AC78) ->  | AF78: NA | AG78: NA | AH78: NA | AI78: NA | AJ78: NA | AK78: =AVERAGE(AF78:AJ78) ->  | AL78: =STDEV(AF78:AJ78) ->  | AM78: 45 | AN78: 45 | AO78: 45 | AP78: 45 | AQ78: 45 | AR78: =AVERAGE(AM78:AQ78) -> 45 | AS78: =STDEV(AM78:AQ78) -> 0
B79: 2 | D79: NA | E79: NA | F79: NA | G79: NA | H79: NA | I79: =AVERAGE(D79:H79) ->  | J79: =STDEV(D79:H79) ->  | K79: NA | L79: NA | M79: NA | N79: NA | O79: NA | Q79: =STDEV(K79:O79) ->  | R79: NA | S79: NA | T79: NA | U79: NA | V79: NA | X79: =STDEV(R79:V79) ->  | Y79: NA | Z79: NA | AA79: NA | AB79: NA | AC79: NA | AE79: =STDEV(Y79:AC79) ->  | AF79: NA | AG79: NA | AH79: NA | AI79: NA | AJ79: NA | AK79: =AVERAGE(AF79:AJ79) ->  | AL79: =STDEV(AF79:AJ79) ->  | AM79: 52 | AN79: 52 | AO79: 52 | AP79: 52 | AQ79: 52 | AR79: 52 | AS79: =STDEV(AM79:AQ79) -> 0
B80: 3 | D80: NA | E80: NA | F80: NA | G80: NA | H80: NA | I80: =AVERAGE(D80:H80) ->  | J80: =STDEV(D80:H80) ->  | K80: NA | L80: NA | M80: NA | N80: NA | O80: NA | Q80: =STDEV(K80:O80) ->  | R80: NA | S80: NA | T80: NA | U80: NA | V80: NA | X80: =STDEV(R80:V80) ->  | Y80: NA | Z80: NA | AA80: NA | AB80: NA | AC80: NA | AE80: =STDEV(Y80:AC80) ->  | AF80: NA | AG80: NA | AH80: NA | AI80: NA | AJ80: NA | AL80: =STDEV(AF80:AJ80) ->  | AM80: 45 | AN80: 45 | AO80: 45 | AP80: 45 | AQ80: 45 | AR80: 45 | AS80: =STDEV(AM80:AQ80) -> 0
A81: average | I81: =AVERAGE(I78:I80) ->  | P81: =AVERAGE(P78:P80) ->  | W81: =AVERAGE(W78:W80) ->  | AD81: =AVERAGE(AD78:AD80) ->  | AK81: =AVERAGE(AK78:AK80) ->  | AR81: =AVERAGE(AR78:AR80) -> 47
A82: stdev | I82: =J78+J79+J80 ->  | P82: =Q78+Q79+Q80 ->  | W82: =X78+X79+X80 ->  | AD82: =AE78+AE79+AE80 ->  | AK82: =AL78+AL79+AL80 ->  | AR82: =AS78+AS79+AS80 -> 0
A83: 2213F APR | B83: 1 | D83: NA | E83: NA | F83: NA | G83: NA | H83: NA | I83: =AVERAGE(D83:H83) ->  | J83: =STDEV(D83:H83) ->  | K83: NA | L83: NA | M83: NA | N83: NA | O83: NA | P83: =AVERAGE(K83:O83) ->  | Q83: =STDEV(K83:O83) ->  | R83: NA | S83: NA | T83: NA | U83: NA | V83: NA | W83: =AVERAGE(R83:V83) ->  | X83: =STDEV(R83:V83) ->  | Y83: NA | Z83: NA | AA83: NA | AB83: NA | AC83: NA | AD83: =AVERAGE(Y83:AC83) ->  | AE83: =STDEV(Y83:AC83) ->  | AF83: NA | AG83: NA | AH83: NA | AI83: NA | AJ83: NA | AK83: =AVERAGE(AF83:AJ83) ->  | AL83: =STDEV(AF83:AJ83) ->  | AM83: 53 | AN83: 53 | AO83: 53 | AP83: 53 | AQ83: 53 | AR83: =AVERAGE(AM83:AQ83) -> 53 | AS83: =STDEV(AM83:AQ83) -> 0
A84: p+0 | B84: 2 | D84: NA | E84: NA | F84: NA | G84: NA | H84: NA | I84: =AVERAGE(D84:H84) ->  | J84: =STDEV(D84:H84) ->  | K84: NA | L84: NA | M84: NA | N84: NA | O84: NA | Q84: =STDEV(K84:O84) ->  | R84: NA | S84: NA | T84: NA | U84: NA | V84: NA | X84: =STDEV(R84:V84) ->  | Y84: NA | Z84: NA | AA84: NA | AB84: NA | AC84: NA | AE84: =STDEV(Y84:AC84) ->  | AF84: NA | AG84: NA | AH84: NA | AI84: NA | AJ84: NA | AK84: =AVERAGE(AF84:AJ84) ->  | AL84: =STDEV(AF84:AJ84) ->  | AM84: 69 | AN84: 69 | AO84: 69 | AP84: 69 | AQ84: 69 | AR84: 69 | AS84: =STDEV(AM84:AQ84) -> 0
B85: 3 | D85: NA | E85: NA | F85: NA | G85: NA | H85: NA | I85: =AVERAGE(D85:H85) ->  | J85: =STDEV(D85:H85) ->  | K85: NA | L85: NA | M85: NA | N85: NA | O85: NA | Q85: =STDEV(K85:O85) ->  | R85: NA | S85: NA | T85: NA | U85: NA | V85: NA | X85: =STDEV(R85:V85) ->  | Y85: NA | Z85: NA | AA85: NA | AB85: NA | AC85: NA | AE85: =STDEV(Y85:AC85) ->  | AF85: NA | AG85: NA | AH85: NA | AI85: NA | AJ85: NA | AL85: =STDEV(AF85:AJ85) ->  | AM85: 43 | AN85: 43 | AO85: 43 | AP85: 43 | AQ85: 43 | AR85: 43 | AS85: =STDEV(AM85:AQ85) -> 0
A86: average | I86: =AVERAGE(I83:I85) ->  | P86: =AVERAGE(P83:P85) ->  | W86: =AVERAGE(W83:W85) ->  | AD86: =AVERAGE(AD83:AD85) ->  | AK86: =AVERAGE(AK83:AK85) ->  | AR86: =AVERAGE(AR83:AR85) -> 55
A87: stdev | I87: =J83+J84+J85 ->  | P87: =Q83+Q84+Q85 ->  | W87: =X83+X84+X85 ->  | AD87: =AE83+AE84+AE85 ->  | AK87: =AL83+AL84+AL85 ->  | AR87: =AS83+AS84+AS85 -> 0
A88: p+3 | B88: 1 | D88: NA | E88: NA | F88: NA | G88: NA | H88: NA | I88: =AVERAGE(D88:H88) ->  | J88: =STDEV(D88:H88) ->  | K88: NA | L88: NA | M88: NA | N88: NA | O88: NA | P88: =AVERAGE(K88:O88) ->  | Q88: =STDEV(K88:O88) ->  | R88: NA | S88: NA | T88: NA | U88: NA | V88: NA | W88: =AVERAGE(R88:V88) ->  | X88: =STDEV(R88:V88) ->  | Y88: NA | Z88: NA | AA88: NA | AB88: NA | AC88: NA | AD88: =AVERAGE(Y88:AC88) ->  | AE88: =STDEV(Y88:AC88) ->  | AF88: NA | AG88: NA | AH88: NA | AI88: NA | AJ88: NA | AK88: =AVERAGE(AF88:AJ88) ->  | AL88: =STDEV(AF88:AJ88) ->  | AM88: 50 | AN88: 50 | AO88: 50 | AP88: 50 | AQ88: 50 | AR88: =AVERAGE(AM88:AQ88) -> 50 | AS88: =STDEV(AM88:AQ88) -> 0
B89: 2 | D89: NA | E89: NA | F89: NA | G89: NA | H89: NA | I89: =AVERAGE(D89:H89) ->  | J89: =STDEV(D89:H89) ->  | K89: NA | L89: NA | M89: NA | N89: NA | O89: NA | Q89: =STDEV(K89:O89) ->  | R89: NA | S89: NA | T89: NA | U89: NA | V89: NA | X89: =STDEV(R89:V89) ->  | Y89: NA | Z89: NA | AA89: NA | AB89: NA | AC89: NA | AE89: =STDEV(Y89:AC89) ->  | AF89: NA | AG89: NA | AH89: NA | AI89: NA | AJ89: NA | AL89: =STDEV(AF89:AJ89) ->  | AM89: 91 | AN89: 91 | AO89: 91 | AP89: 91 | AQ89: 91 | AR89: 91 | AS89: =STDEV(AM89:AQ89) -> 0
B90: 3 | D90: NA | E90: NA | F90: NA | G90: NA | H90: NA | I90: =AVERAGE(D90:H90) ->  | J90: =STDEV(D90:H90) ->  | K90: NA | L90: NA | M90: NA | N90: NA | O90: NA | Q90: =STDEV(K90:O90) ->  | R90: NA | S90: NA | T90: NA | U90: NA | V90: NA | X90: =STDEV(R90:V90) ->  | Y90: NA | Z90: NA | AA90: NA | AB90: NA | AC90: NA | AD90: =AVERAGE(Y90:AC90) ->  | AE90: =STDEV(Y90:AC90) ->  | AF90: NA | AG90: NA | AH90: NA | AI90: NA | AJ90: NA | AL90: =STDEV(AF90:AJ90) ->  | AM90: 60 | AN90: 60 | AO90: 60 | AP90: 60 | AQ90: 60 | AR90: 60 | AS90: =STDEV(AM90:AQ90) -> 0
A91: average | I91: =AVERAGE(I88:I90) ->  | P91: =AVERAGE(P88:P90) ->  | W91: =AVERAGE(W88:W90) ->  | AD91: =AVERAGE(AD88:AD90) ->  | AK91: =AVERAGE(AK88:AK90) ->  | AR91: =AVERAGE(AR88:AR90) -> 67
A92: stdev | I92: =J88+J89+J90 ->  | P92: =Q88+Q89+Q90 ->  | W92: =X88+X89+X90 ->  | AD92: =AE88+AE89+AE90 ->  | AK92: =AL88+AL89+AL90 ->  | AR92: =AS88+AS89+AS90 -> 0
A95: T4 | B95: 2017-06-03
A96: Sample | B96: Dilution: | D96: 1 | I96: AVERAGE | J96: Stdev | K96: =10^-1 -> 0.1 | P96: AVERAGE | Q96: Stdev | R96: =10^-2 -> 0.01 | W96: AVERAGE | X96: Stdev | Y96: =10^-3 -> 0.001 | AD96: AVERAGE | AE96: Stdev | AF96: =10^-4 -> 0.0001 | AK96: AVERAGE | AL96: Stdev | AM96: =10^-5 -> 1e-05 | AR96: AVERAGE | AS96: Stdev
A97: Blank | B97: 1 | D97: 0 | E97: 0 | F97: 0 | G97: 0 | H97: 0 | I97: =AVERAGE(D97:H97) -> 0 | J97: =STDEV(D97:H97) -> 0 | K97: 0 | L97: 0 | M97: 0 | N97: 0 | O97: 0 | P97: =AVERAGE(K97:O97) -> 0 | Q97: =STDEV(K97:O97) -> 0 | R97: 0 | S97: 0 | T97: 0 | U97: 0 | V97: 0 | W97: =AVERAGE(R97:V97) -> 0 | X97: =STDEV(R97:V97) -> 0 | Y97: 0 | Z97: 0 | AA97: 0 | AB97: 0 | AC97: 0 | AD97: =AVERAGE(Y97:AC97) -> 0 | AE97: =STDEV(Y97:AC97) -> 0 | AF97: 0 | AG97: 0 | AH97: 0 | AI97: 0 | AJ97: 0 | AK97: =AVERAGE(AF97:AJ97) -> 0 | AL97: =STDEV(AF97:AJ97) -> 0 | AM97: 0 | AN97: 0 | AO97: 0 | AP97: 0 | AQ97: 0 | AR97: =AVERAGE(AM97:AQ97) -> 0 | AS97: =STDEV(AM97:AQ97) -> 0
B98: 2 | D98: 0 | E98: 0 | F98: 0 | G98: 0 | H98: 0 | I98: =AVERAGE(D98:H98) -> 0 | J98: =STDEV(D98:H98) -> 0 | K98: 0 | L98: 0 | M98: 0 | N98: 0 | O98: 0 | P98: =AVERAGE(K98:O98) -> 0 | Q98: =STDEV(K98:O98) -> 0 | R98: 0 | S98: 0 | T98: 0 | U98: 0 | V98: 0 | W98: =AVERAGE(R98:V98) -> 0 | X98: =STDEV(R98:V98) -> 0 | Y98: 0 | Z98: 0 | AA98: 0 | AB98: 0 | AC98: 0 | AD98: =AVERAGE(Y98:AC98) -> 0 | AE98: =STDEV(Y98:AC98) -> 0 | AF98: 0 | AG98: 0 | AH98: 0 | AI98: 0 | AJ98: 0 | AK98: =AVERAGE(AF98:AJ98) -> 0 | AL98: =STDEV(AF98:AJ98) -> 0 | AM98: 0 | AN98: 0 | AO98: 0 | AP98: 0 | AQ98: 0 | AR98: =AVERAGE(AM98:AQ98) -> 0 | AS98: =STDEV(AM98:AQ98) -> 0
B99: 3 | D99: 0 | E99: 0 | F99: 0 | G99: 0 | H99: 0 | I99: =AVERAGE(D99:H99) -> 0 | J99: =STDEV(D99:H99) -> 0 | K99: 0 | L99: 0 | M99: 0 | N99: 0 | O99: 0 | P99: 0 | Q99: =STDEV(K99:O99) -> 0 | R99: 0 | S99: 0 | T99: 0 | U99: 0 | V99: 0 | W99: 0 | X99: =STDEV(R99:V99) -> 0 | Y99: 0 | Z99: 0 | AA99: 0 | AB99: 0 | AC99: 0 | AD99: 0 | AE99: =STDEV(Y99:AC99) -> 0 | AF99: 0 | AG99: 0 | AH99: 0 | AI99: 0 | AJ99: 0 | AK99: 0 | AL99: =STDEV(AF99:AJ99) -> 0 | AM99: 0 | AN99: 0 | AO99: 0 | AP99: 0 | AQ99: 0 | AR99: 0 | AS99: =STDEV(AM99:AQ99) -> 0
I100: =AVERAGE(I97:I99) -> 0 | P100: =AVERAGE(P97:P99) -> 0 | W100: =AVERAGE(W97:W99) -> 0 | AD100: =AVERAGE(AD97:AD99) -> 0 | AK100: =AVERAGE(AK97:AK99) -> 0 | AR100: =AVERAGE(AR97:AR99) -> 0
I101: =J97+J98+J99 -> 0 | P101: =Q97+Q98+Q99 -> 0 | W101: =X97+X98+X99 -> 0 | AD101: =AE97+AE98+AE99 -> 0 | AK101: =AL97+AL98+AL99 -> 0 | AR101: =AS97+AS98+AS99 -> 0
A102: WT | B102: 1 | D102: NA | E102: NA | F102: NA | G102: NA | H102: NA | I102: =AVERAGE(D102:H102) ->  | J102: =STDEV(D102:H102) ->  | K102: NA | L102: NA | M102: NA | N102: NA | O102: NA | P102: =AVERAGE(K102:O102) ->  | Q102: =STDEV(K102:O102) ->  | R102: NA | S102: NA | T102: NA | U102: NA | V102: NA | W102: =AVERAGE(R102:V102) ->  | X102: =STDEV(R102:V102) ->  | Y102: NA | Z102: NA | AA102: NA | AB102: NA | AC102: NA | AD102: =AVERAGE(Y102:AC102) ->  | AE102: =STDEV(Y102:AC102) ->  | AF102: NA | AG102: NA | AH102: NA | AI102: NA | AJ102: NA | AK102: =AVERAGE(AF102:AJ102) ->  | AL102: =STDEV(AF102:AJ102) ->  | AM102: 66 | AN102: 64 | AO102: 65 | AP102: 65 | AQ102: 42 | AR102: =AVERAGE(AM102:AQ102) -> 60 | AS102: =STDEV(AM102:AQ102) -> 10
B103: 2 | D103: NA | E103: NA | F103: NA | G103: NA | H103: NA | I103: =AVERAGE(D103:H103) ->  | J103: =STDEV(D103:H103) ->  | K103: NA | L103: NA | M103: NA | N103: NA | O103: NA | Q103: =STDEV(K103:O103) ->  | R103: NA | S103: NA | T103: NA | U103: NA | V103: NA | X103: =STDEV(R103:V103) ->  | Y103: NA | Z103: NA | AA103: NA | AB103: NA | AC103: NA | AE103: =STDEV(Y103:AC103) ->  | AF103: NA | AG103: NA | AH103: NA | AI103: NA | AJ103: NA | AL103: =STDEV(AF103:AJ103) ->  | AM103: 76 | AN103: 52 | AO103: 62 | AP103: 66 | AQ103: 51 | AR103: 61 | AS103: =STDEV(AM103:AQ103) -> 10
B104: 3 | D104: NA | E104: NA | F104: NA | G104: NA | H104: NA | I104: =AVERAGE(D104:H104) ->  | J104: =STDEV(D104:H104) ->  | K104: NA | L104: NA | M104: NA | N104: NA | O104: NA | Q104: =STDEV(K104:O104) ->  | R104: NA | S104: NA | T104: NA | U104: NA | V104: NA | X104: =STDEV(R104:V104) ->  | Y104: NA | Z104: NA | AA104: NA | AB104: NA | AC104: NA | AE104: =STDEV(Y104:AC104) ->  | AF104: NA | AG104: NA | AH104: NA | AI104: NA | AJ104: NA | AL104: =STDEV(AF104:AJ104) ->  | AM104: 12 | AN104: 13 | AO104: 14 | AP104: 16 | AQ104: 15 | AR104: 14 | AS104: =STDEV(AM104:AQ104) -> 2
A105: average | I105: =AVERAGE(I102:I104) ->  | P105: =AVERAGE(P102:P104) ->  | W105: =AVERAGE(W102:W104) ->  | AD105: =AVERAGE(AD102:AD104) ->  | AK105: =AVERAGE(AK102:AK104) ->  | AR105: =AVERAGE(AR102:AR104) -> 45
A106: stdev | I106: =J102+J103+J104 ->  | P106: =Q102+Q103+Q104 ->  | W106: =X102+X103+X104 ->  | AD106: =AE102+AE103+AE104 ->  | AK106: =AL102+AL103+AL104 ->  | AR106: =AS102+AS103+AS104 -> 22
A107: 2213F - | B107: 1 | D107: NA | E107: NA | F107: NA | G107: NA | H107: NA | I107: =AVERAGE(D107:H107) ->  | J107: =STDEV(D107:H107) ->  | K107: NA | L107: NA | M107: NA | N107: NA | O107: NA | P107: =AVERAGE(K107:O107) ->  | Q107: =STDEV(K107:O107) ->  | R107: NA | S107: NA | T107: NA | U107: NA | V107: NA | W107: =AVERAGE(R107:V107) ->  | X107: =STDEV(R107:V107) ->  | Y107: NA | Z107: NA | AA107: NA | AB107: NA | AC107: NA | AD107: =AVERAGE(Y107:AC107) ->  | AE107: =STDEV(Y107:AC107) ->  | AF107: 45 | AG107: 47 | AH107: 48 | AI107: 43 | AJ107: 41 | AK107: =AVERAGE(AF107:AJ107) -> 45 | AL107: =STDEV(AF107:AJ107) -> 3 | AM107: 6 | AN107: 10 | AO107: 12 | AP107: 3 | AQ107: 6 | AR107: =AVERAGE(AM107:AQ107) -> 7 | AS107: =STDEV(AM107:AQ107) -> 4
A108: p+0 | B108: 2 | D108: NA | E108: NA | F108: NA | G108: NA | H108: NA | I108: =AVERAGE(D108:H108) ->  | J108: =STDEV(D108:H108) ->  | K108: NA | L108: NA | M108: NA | N108: NA | O108: NA | Q108: =STDEV(K108:O108) ->  | R108: NA | S108: NA | T108: NA | U108: NA | V108: NA | X108: =STDEV(R108:V108) ->  | Y108: NA | Z108: NA | AA108: NA | AB108: NA | AC108: NA | AE108: =STDEV(Y108:AC108) ->  | AF108: NA | AG108: NA | AH108: NA | AI108: NA | AJ108: NA | AL108: =STDEV(AF108:AJ108) ->  | AM108: 8 | AN108: 13 | AO108: 12 | AP108: 7 | AQ108: 15 | AR108: 11 | AS108: =STDEV(AM108:AQ108) -> 3
B109: 3 | D109: NA | E109: NA | F109: NA | G109: NA | H109: NA | I109: =AVERAGE(D109:H109) ->  | J109: =STDEV(D109:H109) ->  | K109: NA | L109: NA | M109: NA | N109: NA | O109: NA | Q109: =STDEV(K109:O109) ->  | R109: NA | S109: NA | T109: NA | U109: NA | V109: NA | X109: =STDEV(R109:V109) ->  | Y109: NA | Z109: NA | AA109: NA | AB109: NA | AC109: NA | AE109: =STDEV(Y109:AC109) ->  | AF109: NA | AG109: NA | AH109: NA | AI109: NA | AJ109: NA | AL109: =STDEV(AF109:AJ109) ->  | AM109: 11 | AN109: 7 | AO109: 14 | AP109: 8 | AQ109: 8 | AR109: 10 | AS109: =STDEV(AM109:AQ109) -> 3
A110: average | I110: =AVERAGE(I107:I109) ->  | P110: =AVERAGE(P107:P109) ->  | W110: =AVERAGE(W107:W109) ->  | AD110: =AVERAGE(AD107:AD109) ->  | AK110: =AVERAGE(AK107) -> 45 | AR110: =AVERAGE(AR107:AR109) -> 9
A111: stdev | I111: =J107+J108+J109 ->  | P111: =Q107+Q108+Q109 ->  | W111: =X107+X108+X109 ->  | AD111: =AE107+AE108+AE109 ->  | AK111: =AL107+AL108+AL109 ->  | AR111: =AS107+AS108+AS109 -> 10
A112: p+3 | B112: 1 | D112: NA | E112: NA | F112: NA | G112: NA | H112: NA | I112: =AVERAGE(D112:H112) ->  | J112: =STDEV(D112:H112) ->  | K112: NA | L112: NA | M112: NA | N112: NA | O112: NA | P112: =AVERAGE(K112:O112) ->  | Q112: =STDEV(K112:O112) ->  | R112: NA | S112: NA | T112: NA | U112: NA | V112: NA | W112: =AVERAGE(R112:V112) ->  | X112: =STDEV(R112:V112) ->  | Y112: NA | Z112: NA | AA112: NA | AB112: NA | AC112: NA | AD112: =AVERAGE(Y112:AC112) ->  | AE112: =STDEV(Y112:AC112) ->  | AF112: NA | AG112: NA | AH112: NA | AI112: NA | AJ112: NA | AK112: =AVERAGE(AF112:AJ112) ->  | AL112: =STDEV(AF112:AJ112) ->  | AM112: 7 | AN112: 18 | AO112: 9 | AP112: 9 | AQ112: 10 | AR112: =AVERAGE(AM112:AQ112) -> 11 | AS112: =STDEV(AM112:AQ112) -> 4
B113: 2 | D113: NA | E113: NA | F113: NA | G113: NA | H113: NA | I113: =AVERAGE(D113:H113) ->  | J113: =STDEV(D113:H113) ->  | K113: NA | L113: NA | M113: NA | N113: NA | O113: NA | Q113: =STDEV(K113:O113) ->  | R113: NA | S113: NA | T113: NA | U113: NA | V113: NA | X113: =STDEV(R113:V113) ->  | Y113: NA | Z113: NA | AA113: NA | AB113: NA | AC113: NA | AE113: =STDEV(Y113:AC113) ->  | AF113: NA | AG113: NA | AH113: NA | AI113: NA | AJ113: NA | AL113: =STDEV(AF113:AJ113) ->  | AM113: NA | AN113: NA | AO113: NA | AP113: NA | AQ113: NA | AS113: =STDEV(AM113:AQ113) -> 
B114: 3 | D114: NA | E114: NA | F114: NA | G114: NA | H114: NA | I114: =AVERAGE(D114:H114) ->  | J114: =STDEV(D114:H114) ->  | K114: NA | L114: NA | M114: NA | N114: NA | O114: NA | Q114: =STDEV(K114:O114) ->  | R114: NA | S114: NA | T114: NA | U114: NA | V114: NA | X114: =STDEV(R114:V114) ->  | Y114: NA | Z114: NA | AA114: NA | AB114: NA | AC114: NA | AE114: =STDEV(Y114:AC114) ->  | AF114: NA | AG114: NA | AH114: NA | AI114: NA | AJ114: NA | AL114: =STDEV(AF114:AJ114) ->  | AM114: 10 | AN114: 9 | AO114: 8 | AP114: 10 | AQ114: 8 | AR114: 9 | AS114: =STDEV(AM114:AQ114) -> 1
A115: average | I115: =AVERAGE(I112:I114) ->  | P115: =AVERAGE(P112:P114) ->  | W115: =AVERAGE(W112:W114) ->  | AD115: =AVERAGE(AD112:AD114) ->  | AK115: =AVERAGE(AK112:AK114) ->  | AR115: =AVERAGE(AR112,AR114) -> 10
A116: stdev | I116: =J112+J113+J114 ->  | P116: =Q112+Q113+Q114 ->  | W116: =X112+X113+X114 ->  | AD116: =AE112+AE113+AE114 ->  | AK116: =AL112+AL113+AL114 ->  | AR116: =AS112+AS113+AS114 -> 
A117: 2213F A | B117: 1 | D117: NA | E117: NA | F117: NA | G117: NA | H117: NA | I117: =AVERAGE(D117:H117) ->  | J117: =STDEV(D117:H117) ->  | K117: NA | L117: NA | M117: NA | N117: NA | O117: NA | P117: =AVERAGE(K117:O117) ->  | Q117: =STDEV(K117:O117) ->  | R117: NA | S117: NA | T117: NA | U117: NA | V117: NA | W117: =AVERAGE(R117:V117) ->  | X117: =STDEV(R117:V117) ->  | Y117: NA | Z117: NA | AA117: NA | AB117: NA | AC117: NA | AD117: =AVERAGE(Y117:AC117) ->  | AE117: =STDEV(Y117:AC117) ->  | AF117: 47 | AG117: 49 | AH117: 47 | AI117: 57 | AJ117: 44 | AK117: =AVERAGE(AF117:AJ117) -> 49 | AL117: =STDEV(AF117:AJ117) -> 5 | AM117: 7 | AN117: 15 | AO117: 3 | AP117: 6 | AQ117: 5 | AR117: =AVERAGE(AM117:AQ117) -> 7 | AS117: =STDEV(AM117:AQ117) -> 5
A118: p+0 | B118: 2 | D118: NA | E118: NA | F118: NA | G118: NA | H118: NA | I118: =AVERAGE(D118:H118) ->  | J118: =STDEV(D118:H118) ->  | K118: NA | L118: NA | M118: NA | N118: NA | O118: NA | Q118: =STDEV(K118:O118) ->  | R118: NA | S118: NA | T118: NA | U118: NA | V118: NA | X118: =STDEV(R118:V118) ->  | Y118: NA | Z118: NA | AA118: NA | AB118: NA | AC118: NA | AE118: =STDEV(Y118:AC118) ->  | AF118: NA | AG118: NA | AH118: NA | AI118: NA | AJ118: NA | AL118: =STDEV(AF118:AJ118) ->  | AM118: 11 | AN118: 5 | AO118: 5 | AP118: 9 | AQ118: 9 | AR118: 8 | AS118: =STDEV(AM118:AQ118) -> 3
B119: 3 | D119: NA | E119: NA | F119: NA | G119: NA | H119: NA | I119: =AVERAGE(D119:H119) ->  | J119: =STDEV(D119:H119) ->  | K119: NA | L119: NA | M119: NA | N119: NA | O119: NA | Q119: =STDEV(K119:O119) ->  | R119: NA | S119: NA | T119: NA | U119: NA | V119: NA | X119: =STDEV(R119:V119) ->  | Y119: NA | Z119: NA | AA119: NA | AB119: NA | AC119: NA | AD119: =AVERAGE(Y119:AC119) ->  | AE119: =STDEV(Y119:AC119) ->  | AF119: NA | AG119: NA | AH119: NA | AI119: NA | AJ119: NA | AK119: =AVERAGE(AF119:AJ119) ->  | AL119: =STDEV(AF119:AJ119) ->  | AM119: 9 | AN119: 9 | AO119: 5 | AP119: 4 | AQ119: 4 | AR119: =AVERAGE(AM119:AQ119) -> 6 | AS119: =STDEV(AM119:AQ119) -> 3
A120: average | I120: =AVERAGE(I117:I119) ->  | P120: =AVERAGE(P117:P119) ->  | W120: =AVERAGE(W117:W119) ->  | AD120: =AVERAGE(AD117:AD119) ->  | AK120: =AVERAGE(AK117) -> 49 | AR120: =AVERAGE(AR117:AR119) -> 7
A121: stdev | I121: =J117+J118+J119 ->  | P121: =Q117+Q118+Q119 ->  | W121: =X117+X118+X119 ->  | AD121: =AE117+AE118+AE119 ->  | AK121: =AL117+AL118+AL119 ->  | AR121: =AS117+AS118+AS119 -> 10
A122: p+3 | B122: 1 | D122: NA | E122: NA | F122: NA | G122: NA | H122: NA | I122: =AVERAGE(D122:H122) ->  | J122: =STDEV(D122:H122) ->  | K122: NA | L122: NA | M122: NA | N122: NA | O122: NA | P122: =AVERAGE(K122:O122) ->  | Q122: =STDEV(K122:O122) ->  | R122: NA | S122: NA | T122: NA | U122: NA | V122: NA | W122: =AVERAGE(R122:V122) ->  | X122: =STDEV(R122:V122) ->  | Y122: NA | Z122: NA | AA122: NA | AB122: NA | AC122: NA | AD122: =AVERAGE(Y122:AC122) ->  | AE122: =STDEV(Y122:AC122) ->  | AF122: NA | AG122: NA | AH122: NA | AI122: NA | AJ122: NA | AK122: =AVERAGE(AF122:AJ122) ->  | AL122: =STDEV(AF122:AJ122) ->  | AM122: 18 | AN122: 19 | AO122: 15 | AP122: 16 | AQ122: 24 | AR122: =AVERAGE(AM122:AQ122) -> 18 | AS122: =STDEV(AM122:AQ122) -> 4
B123: 2 | D123: NA | E123: NA | F123: NA | G123: NA | H123: NA | I123: =AVERAGE(D123:H123) ->  | J123: =STDEV(D123:H123) ->  | K123: NA | L123: NA | M123: NA | N123: NA | O123: NA | Q123: =STDEV(K123:O123) ->  | R123: NA | S123: NA | T123: NA | U123: NA | V123: NA | X123: =STDEV(R123:V123) ->  | Y123: NA | Z123: NA | AA123: NA | AB123: NA | AC123: NA | AE123: =STDEV(Y123:AC123) ->  | AF123: NA | AG123: NA | AH123: NA | AI123: NA | AJ123: NA | AK123: =AVERAGE(AF123:AJ123) ->  | AL123: =STDEV(AF123:AJ123) ->  | AM123: NA | AN123: NA | AO123: NA | AP123: NA | AQ123: NA | AS123: =STDEV(AM123:AQ123) -> 
B124: 3 | D124: NA | E124: NA | F124: NA | G124: NA | H124: NA | I124: =AVERAGE(D124:H124) ->  | J124: =STDEV(D124:H124) ->  | K124: NA | L124: NA | M124: NA | N124: NA | O124: NA | Q124: =STDEV(K124:O124) ->  | R124: NA | S124: NA | T124: NA | U124: NA | V124: NA | X124: =STDEV(R124:V124) ->  | Y124: NA | Z124: NA | AA124: NA | AB124: NA | AC124: NA | AE124: =STDEV(Y124:AC124) ->  | AF124: NA | AG124: NA | AH124: NA | AI124: NA | AJ124: NA | AL124: =STDEV(AF124:AJ124) ->  | AM124: 15 | AN124: 15 | AO124: 15 | AP124: 14 | AQ124: 12 | AR124: 14 | AS124: =STDEV(AM124:AQ124) -> 1
A125: average | I125: =AVERAGE(I122:I124) ->  | P125: =AVERAGE(P122:P124) ->  | W125: =AVERAGE(W122:W124) ->  | AD125: =AVERAGE(AD122:AD124) ->  | AK125: =AVERAGE(AK122:AK124) ->  | AR125: =AVERAGE(AR122,AR124) -> 16
A126: stdev | I126: =J122+J123+J124 ->  | P126: =Q122+Q123+Q124 ->  | W126: =X122+X123+X124 ->  | AD126: =AE122+AE123+AE124 ->  | AK126: =AL122+AL123+AL124 ->  | AR126: =AS122+AS123+AS124 -> 
A127: 2213F APR | B127: 1 | D127: NA | E127: NA | F127: NA | G127: NA | H127: NA | I127: =AVERAGE(D127:H127) ->  | J127: =STDEV(D127:H127) ->  | K127: NA | L127: NA | M127: NA | N127: NA | O127: NA | P127: =AVERAGE(K127:O127) ->  | Q127: =STDEV(K127:O127) ->  | R127: NA | S127: NA | T127: NA | U127: NA | V127: NA | W127: =AVERAGE(R127:V127) ->  | X127: =STDEV(R127:V127) ->  | Y127: NA | Z127: NA | AA127: NA | AB127: NA | AC127: NA | AD127: =AVERAGE(Y127:AC127) ->  | AE127: =STDEV(Y127:AC127) ->  | AF127: NA | AG127: NA | AH127: NA | AI127: NA | AJ127: NA | AK127: =AVERAGE(AF127:AJ127) ->  | AL127: =STDEV(AF127:AJ127) ->  | AM127: 38 | AN127: 29 | AO127: 20 | AP127: 17 | AQ127: 20 | AR127: =AVERAGE(AM127:AQ127) -> 25 | AS127: =STDEV(AM127:AQ127) -> 9
A128: p+0 | B128: 2 | D128: NA | E128: NA | F128: NA | G128: NA | H128: NA | I128: =AVERAGE(D128:H128) ->  | J128: =STDEV(D128:H128) ->  | K128: NA | L128: NA | M128: NA | N128: NA | O128: NA | Q128: =STDEV(K128:O128) ->  | R128: NA | S128: NA | T128: NA | U128: NA | V128: NA | X128: =STDEV(R128:V128) ->  | Y128: NA | Z128: NA | AA128: NA | AB128: NA | AC128: NA | AE128: =STDEV(Y128:AC128) ->  | AF128: NA | AG128: NA | AH128: NA | AI128: NA | AJ128: NA | AK128: =AVERAGE(AF128:AJ128) ->  | AL128: =STDEV(AF128:AJ128) ->  | AM128: 12 | AN128: 18 | AO128: 6 | AP128: 10 | AQ128: 18 | AR128: 13 | AS128: =STDEV(AM128:AQ128) -> 5
B129: 3 | D129: NA | E129: NA | F129: NA | G129: NA | H129: NA | I129: =AVERAGE(D129:H129) ->  | J129: =STDEV(D129:H129) ->  | K129: NA | L129: NA | M129: NA | N129: NA | O129: NA | Q129: =STDEV(K129:O129) ->  | R129: NA | S129: NA | T129: NA | U129: NA | V129: NA | X129: =STDEV(R129:V129) ->  | Y129: NA | Z129: NA | AA129: NA | AB129: NA | AC129: NA | AE129: =STDEV(Y129:AC129) ->  | AF129: 103 | AG129: 113 | AH129: 102 | AI129: NA | AJ129: NA | AK129: =AVERAGE(AF129:AJ129) -> 106 | AL129: =STDEV(AF129:AJ129) -> 6 | AM129: 11 | AN129: 18 | AO129: 17 | AP129: 8 | AQ129: 16 | AR129: 14 | AS129: =STDEV(AM129:AQ129) -> 4
A130: average | I130: =AVERAGE(I127:I129) ->  | P130: =AVERAGE(P127:P129) ->  | W130: =AVERAGE(W127:W129) ->  | AD130: =AVERAGE(AD127:AD129) ->  | AK130: =AVERAGE(AK129) -> 106 | AR130: =AVERAGE(AR127:AR129) -> 17
A131: stdev | I131: =J127+J128+J129 ->  | P131: =Q127+Q128+Q129 ->  | W131: =X127+X128+X129 ->  | AD131: =AE127+AE128+AE129 ->  | AK131: =AL127+AL128+AL129 ->  | AR131: =AS127+AS128+AS129 -> 18
A132: p+3 | B132: 1 | D132: NA | E132: NA | F132: NA | G132: NA | H132: NA | I132: =AVERAGE(D132:H132) ->  | J132: =STDEV(D132:H132) ->  | K132: NA | L132: NA | M132: NA | N132: NA | O132: NA | P132: =AVERAGE(K132:O132) ->  | Q132: =STDEV(K132:O132) ->  | R132: NA | S132: NA | T132: NA | U132: NA | V132: NA | W132: =AVERAGE(R132:V132) ->  | X132: =STDEV(R132:V132) ->  | Y132: NA | Z132: NA | AA132: NA | AB132: NA | AC132: NA | AD132: =AVERAGE(Y132:AC132) ->  | AE132: =STDEV(Y132:AC132) ->  | AF132: NA | AG132: NA | AH132: NA | AI132: NA | AJ132: NA | AK132: =AVERAGE(AF132:AJ132) ->  | AL132: =STDEV(AF132:AJ132) ->  | AM132: 23 | AN132: 28 | AO132: 24 | AP132: 16 | AQ132: 19 | AR132: =AVERAGE(AM132:AQ132) -> 22 | AS132: =STDEV(AM132:AQ132) -> 5
B133: 2 | D133: NA | E133: NA | F133: NA | G133: NA | H133: NA | I133: =AVERAGE(D133:H133) ->  | J133: =STDEV(D133:H133) ->  | K133: NA | L133: NA | M133: NA | N133: NA | O133: NA | Q133: =STDEV(K133:O133) ->  | R133: NA | S133: NA | T133: NA | U133: NA | V133: NA | X133: =STDEV(R133:V133) ->  | Y133: NA | Z133: NA | AA133: NA | AB133: NA | AC133: NA | AE133: =STDEV(Y133:AC133) ->  | AF133: NA | AG133: NA | AH133: NA | AI133: NA | AJ133: NA | AL133: =STDEV(AF133:AJ133) ->  | AM133: 47 | AN133: 44 | AO133: 58 | AP133: 46 | AQ133: 84 | AR133: 56 | AS133: =STDEV(AM133:AQ133) -> 17
B134: 3 | D134: NA | E134: NA | F134: NA | G134: NA | H134: NA | I134: =AVERAGE(D134:H134) ->  | J134: =STDEV(D134:H134) ->  | K134: NA | L134: NA | M134: NA | N134: NA | O134: NA | Q134: =STDEV(K134:O134) ->  | R134: NA | S134: NA | T134: NA | U134: NA | V134: NA | X134: =STDEV(R134:V134) ->  | Y134: NA | Z134: NA | AA134: NA | AB134: NA | AC134: NA | AE134: =STDEV(Y134:AC134) ->  | AF134: NA | AG134: NA | AH134: NA | AI134: NA | AJ134: NA | AL134: =STDEV(AF134:AJ134) ->  | AM134: 32 | AN134: 27 | AO134: 35 | AP134: 36 | AQ134: 32 | AR134: 32 | AS134: =STDEV(AM134:AQ134) -> 4
A135: average | I135: =AVERAGE(I132:I134) ->  | P135: =AVERAGE(P132:P134) ->  | W135: =AVERAGE(W132:W134) ->  | AD135: =AVERAGE(AD132:AD134) ->  | AK135: =AVERAGE(AK132:AK134) ->  | AR135: =AVERAGE(AR132:AR134) -> 37
A136: stdev | I136: =J132+J133+J134 ->  | P136: =Q132+Q133+Q134 ->  | W136: =X132+X133+X134 ->  | AD136: =AE132+AE133+AE134 ->  | AK136: =AL132+AL133+AL134 ->  | AR136: =AS132+AS133+AS134 -> 25
A139: T7 | B139: 2017-06-05
A140: Sample | B140: Dilution: | D140: 1 | I140: AVERAGE | J140: Stdev | K140: =10^-1 -> 0.1 | P140: AVERAGE | Q140: Stdev | R140: =10^-2 -> 0.01 | W140: AVERAGE | X140: Stdev | Y140: =10^-3 -> 0.001 | AD140: AVERAGE | AE140: Stdev | AF140: =10^-4 -> 0.0001 | AK140: AVERAGE | AL140: Stdev | AM140: =10^-5 -> 1e-05 | AR140: AVERAGE | AS140: Stdev
A141: Blank | B141: 1 | D141: 0 | E141: 0 | F141: 0 | G141: 0 | H141: 0 | I141: =AVERAGE(D141:H141) -> 0 | J141: =STDEV(D141:H141) -> 0 | K141: 0 | L141: 0 | M141: 0 | N141: 0 | O141: 0 | P141: =AVERAGE(K141:O141) -> 0 | Q141: =STDEV(K141:O141) -> 0 | R141: 0 | S141: 0 | T141: 0 | U141: 0 | V141: 0 | W141: =AVERAGE(R141:V141) -> 0 | X141: =STDEV(R141:V141) -> 0 | Y141: 0 | Z141: 0 | AA141: 0 | AB141: 0 | AC141: 0 | AD141: =AVERAGE(Y141:AC141) -> 0 | AE141: =STDEV(Y141:AC141) -> 0 | AF141: 0 | AG141: 0 | AH141: 0 | AI141: 0 | AJ141: 0 | AK141: =AVERAGE(AF141:AJ141) -> 0 | AL141: =STDEV(AF141:AJ141) -> 0 | AM141: 0 | AN141: 0 | AO141: 0 | AP141: 0 | AQ141: 0 | AR141: =AVERAGE(AM141:AQ141) -> 0 | AS141: =STDEV(AM141:AQ141) -> 0
B142: 2 | D142: 0 | E142: 0 | F142: 0 | G142: 0 | H142: 0 | I142: =AVERAGE(D142:H142) -> 0 | J142: =STDEV(D142:H142) -> 0 | K142: 0 | L142: 0 | M142: 0 | N142: 0 | O142: 0 | P142: =AVERAGE(K142:O142) -> 0 | Q142: =STDEV(K142:O142) -> 0 | R142: 0 | S142: 0 | T142: 0 | U142: 0 | V142: 0 | W142: =AVERAGE(R142:V142) -> 0 | X142: =STDEV(R142:V142) -> 0 | Y142: 0 | Z142: 0 | AA142: 0 | AB142: 0 | AC142: 0 | AD142: =AVERAGE(Y142:AC142) -> 0 | AE142: =STDEV(Y142:AC142) -> 0 | AF142: 0 | AG142: 0 | AH142: 0 | AI142: 0 | AJ142: 0 | AK142: =AVERAGE(AF142:AJ142) -> 0 | AL142: =STDEV(AF142:AJ142) -> 0 | AM142: 0 | AN142: 0 | AO142: 0 | AP142: 0 | AQ142: 0 | AR142: =AVERAGE(AM142:AQ142) -> 0 | AS142: =STDEV(AM142:AQ142) -> 0
B143: 3 | D143: 0 | E143: 0 | F143: 0 | G143: 0 | H143: 0 | I143: =AVERAGE(D143:H143) -> 0 | J143: =STDEV(D143:H143) -> 0 | K143: 0 | L143: 0 | M143: 0 | N143: 0 | O143: 0 | P143: 0 | Q143: =STDEV(K143:O143) -> 0 | R143: 0 | S143: 0 | T143: 0 | U143: 0 | V143: 0 | W143: 0 | X143: =STDEV(R143:V143) -> 0 | Y143: 0 | Z143: 0 | AA143: 0 | AB143: 0 | AC143: 0 | AD143: 0 | AE143: =STDEV(Y143:AC143) -> 0 | AF143: 0 | AG143: 0 | AH143: 0 | AI143: 0 | AJ143: 0 | AK143: 0 | AL143: =STDEV(AF143:AJ143) -> 0 | AM143: 0 | AN143: 0 | AO143: 0 | AP143: 0 | AQ143: 0 | AR143: 0 | AS143: =STDEV(AM143:AQ143) -> 0
I144: =AVERAGE(I141:I143) -> 0 | P144: =AVERAGE(P141:P143) -> 0 | W144: =AVERAGE(W141:W143) -> 0 | AD144: =AVERAGE(AD141:AD143) -> 0 | AK144: =AVERAGE(AK141:AK143) -> 0 | AR144: =AVERAGE(AR141:AR143) -> 0
I145: =J141+J142+J143 -> 0 | P145: =Q141+Q142+Q143 -> 0 | W145: =X141+X142+X143 -> 0 | AD145: =AE141+AE142+AE143 -> 0 | AK145: =AL141+AL142+AL143 -> 0 | AR145: =AS141+AS142+AS143 -> 0
A146: WT | B146: 1 | D146: NA | E146: NA | F146: NA | G146: NA | H146: NA | I146: =AVERAGE(D146:H146) ->  | J146: =STDEV(D146:H146) ->  | K146: NA | L146: NA | M146: NA | N146: NA | O146: NA | P146: =AVERAGE(K146:O146) ->  | Q146: =STDEV(K146:O146) ->  | R146: NA | S146: NA | T146: NA | U146: NA | V146: NA | W146: =AVERAGE(R146:V146) ->  | X146: =STDEV(R146:V146) ->  | Y146: NA | Z146: NA | AA146: NA | AB146: NA | AC146: NA | AD146: =AVERAGE(Y146:AC146) ->  | AE146: =STDEV(Y146:AC146) ->  | AF146: NA | AG146: NA | AH146: NA | AI146: NA | AJ146: NA | AK146: =AVERAGE(AF146:AJ146) ->  | AL146: =STDEV(AF146:AJ146) ->  | AM146: NA | AN146: NA | AO146: NA | AP146: NA | AQ146: NA | AR146: =AVERAGE(AM146:AQ146) ->  | AS146: =STDEV(AM146:AQ146) -> 
B147: 2 | D147: NA | E147: NA | F147: NA | G147: NA | H147: NA | I147: =AVERAGE(D147:H147) ->  | J147: =STDEV(D147:H147) ->  | K147: NA | L147: NA | M147: NA | N147: NA | O147: NA | Q147: =STDEV(K147:O147) ->  | R147: NA | S147: NA | T147: NA | U147: NA | V147: NA | X147: =STDEV(R147:V147) ->  | Y147: NA | Z147: NA | AA147: NA | AB147: NA | AC147: NA | AE147: =STDEV(Y147:AC147) ->  | AF147: 27 | AG147: 39 | AH147: 34 | AI147: 35 | AJ147: 35 | AK147: 34 | AL147: =STDEV(AF147:AJ147) -> 4 | AM147: 3 | AN147: 4 | AO147: 3 | AP147: 4 | AQ147: 5 | AR147: 4 | AS147: =STDEV(AM147:AQ147) -> 1
B148: 3 | D148: NA | E148: NA | F148: NA | G148: NA | H148: NA | I148: =AVERAGE(D148:H148) ->  | J148: =STDEV(D148:H148) ->  | K148: NA | L148: NA | M148: NA | N148: NA | O148: NA | Q148: =STDEV(K148:O148) ->  | R148: NA | S148: NA | T148: NA | U148: NA | V148: NA | X148: =STDEV(R148:V148) ->  | Y148: NA | Z148: NA | AA148: NA | AB148: NA | AC148: NA | AE148: =STDEV(Y148:AC148) ->  | AF148: 24 | AG148: 23 | AH148: 40 | AI148: 24 | AJ148: 10 | AK148: 24 | AL148: =STDEV(AF148:AJ148) -> 11 | AM148: 3 | AN148: 3 | AO148: 2 | AP148: 1 | AQ148: 1 | AR148: 2 | AS148: =STDEV(AM148:AQ148) -> 1
A149: average | I149: =AVERAGE(I146:I148) ->  | P149: =AVERAGE(P146:P148) ->  | W149: =AVERAGE(W146:W148) ->  | AD149: =AVERAGE(AD146:AD148) ->  | AK149: =AVERAGE(AK147:AK148) -> 29 | AR149: =AVERAGE(AR147:AR148) -> 3
A150: stdev | I150: =J146+J147+J148 ->  | P150: =Q146+Q147+Q148 ->  | W150: =X146+X147+X148 ->  | AD150: =AE146+AE147+AE148 ->  | AK150: =AL146+AL147+AL148 ->  | AR150: =AS146+AS147+AS148 -> 
A151: 2213F - | B151: 1 | D151: NA | E151: NA | F151: NA | G151: NA | H151: NA | I151: =AVERAGE(D151:H151) ->  | J151: =STDEV(D151:H151) ->  | K151: NA | L151: NA | M151: NA | N151: NA | O151: NA | P151: =AVERAGE(K151:O151) ->  | Q151: =STDEV(K151:O151) ->  | R151: NA | S151: NA | T151: NA | U151: NA | V151: NA | W151: =AVERAGE(R151:V151) ->  | X151: =STDEV(R151:V151) ->  | Y151: 34 | Z151: 33 | AA151: 24 | AB151: 39 | AC151: 31 | AD151: =AVERAGE(Y151:AC151) -> 32 | AE151: =STDEV(Y151:AC151) -> 5 | AF151: 2 | AG151: 7 | AH151: 5 | AI151: 5 | AJ151: 4 | AK151: =AVERAGE(AF151:AJ151) -> 5 | AL151: =STDEV(AF151:AJ151) -> 2 | AM151: 0 | AN151: 1 | AO151: 0 | AP151: 1 | AQ151: 1 | AR151: =AVERAGE(AM151:AQ151) -> 1 | AS151: =STDEV(AM151:AQ151) -> 1
A152: p+0 | B152: 2 | D152: NA | E152: NA | F152: NA | G152: NA | H152: NA | I152: =AVERAGE(D152:H152) ->  | J152: =STDEV(D152:H152) ->  | K152: NA | L152: NA | M152: NA | N152: NA | O152: NA | Q152: =STDEV(K152:O152) ->  | R152: NA | S152: NA | T152: NA | U152: NA | V152: NA | X152: =STDEV(R152:V152) ->  | Y152: 16 | Z152: 31 | AA152: 19 | AB152: 26 | AC152: 22 | AD152: 23 | AE152: =STDEV(Y152:AC152) -> 6 | AF152: 4 | AG152: 5 | AH152: 2 | AI152: 1 | AJ152: 0 | AK152: 2 | AL152: =STDEV(AF152:AJ152) -> 2 | AM152: 0 | AN152: 0 | AO152: 0 | AP152: 0 | AQ152: 0 | AR152: 0 | AS152: =STDEV(AM152:AQ152) -> 0
B153: 3 | D153: NA | E153: NA | F153: NA | G153: NA | H153: NA | I153: =AVERAGE(D153:H153) ->  | J153: =STDEV(D153:H153) ->  | K153: NA | L153: NA | M153: NA | N153: NA | O153: NA | Q153: =STDEV(K153:O153) ->  | R153: 73 | S153: 82 | T153: 61 | U153: 60 | V153: 67 | W153: 69 | X153: =STDEV(R153:V153) -> 9 | Y153: 8 | Z153: 11 | AA153: 9 | AB153: 13 | AC153: 12 | AD153: 11 | AE153: =STDEV(Y153:AC153) -> 2 | AF153: 2 | AG153: 0 | AH153: 2 | AI153: 0 | AJ153: 1 | AK153: 1 | AL153: =STDEV(AF153:AJ153) -> 1 | AM153: 0 | AN153: 0 | AO153: 0 | AP153: 0 | AQ153: 0 | AR153: 0 | AS153: =STDEV(AM153:AQ153) -> 0
A154: average | I154: =AVERAGE(I151:I153) ->  | P154: =AVERAGE(P151:P153) ->  | W154: =AVERAGE(W153) -> 69 | AD154: =AVERAGE(AD151:AD153) -> 22 | AK154: =AVERAGE(AK151:AK153) -> 3 | AR154: =AVERAGE(AR151:AR153) -> 0
A155: stdev | I155: =J151+J152+J153 ->  | P155: =Q151+Q152+Q153 ->  | W155: =X151+X152+X153 ->  | AD155: =AE151+AE152+AE153 -> 13 | AK155: =AL151+AL152+AL153 -> 5 | AR155: =AS151+AS152+AS153 -> 1
A156: p+3 | B156: 1 | D156: NA | E156: NA | F156: NA | G156: NA | H156: NA | I156: =AVERAGE(D156:H156) ->  | J156: =STDEV(D156:H156) ->  | K156: NA | L156: NA | M156: NA | N156: NA | O156: NA | P156: =AVERAGE(K156:O156) ->  | Q156: =STDEV(K156:O156) ->  | R156: 52 | S156: 55 | T156: 52 | U156: 66 | V156: 52 | W156: =AVERAGE(R156:V156) -> 55 | X156: =STDEV(R156:V156) -> 6 | Y156: 4 | Z156: 8 | AA156: 7 | AB156: 4 | AC156: 7 | AD156: =AVERAGE(Y156:AC156) -> 6 | AE156: =STDEV(Y156:AC156) -> 2 | AF156: 0 | AG156: 1 | AH156: 1 | AI156: 1 | AJ156: 1 | AK156: =AVERAGE(AF156:AJ156) -> 1 | AL156: =STDEV(AF156:AJ156) -> 0 | AM156: 0 | AN156: 0 | AO156: 0 | AP156: 0 | AQ156: 0 | AR156: =AVERAGE(AM156:AQ156) -> 0 | AS156: =STDEV(AM156:AQ156) -> 0
B157: 2 | D157: NA | E157: NA | F157: NA | G157: NA | H157: NA | I157: =AVERAGE(D157:H157) ->  | J157: =STDEV(D157:H157) ->  | K157: NA | L157: NA | M157: NA | N157: NA | O157: NA | Q157: =STDEV(K157:O157) ->  | R157: 45 | S157: 38 | T157: 54 | U157: 37 | V157: 42 | W157: 43 | X157: =STDEV(R157:V157) -> 7 | Y157: 2 | Z157: 4 | AA157: 4 | AB157: 1 | AC157: 7 | AD157: 4 | AE157: =STDEV(Y157:AC157) -> 2 | AF157: 1 | AG157: 2 | AH157: 0 | AI157: 0 | AJ157: 0 | AK157: 1 | AL157: =STDEV(AF157:AJ157) -> 1 | AM157: 0 | AN157: 0 | AO157: 0 | AP157: 0 | AQ157: 0 | AR157: 0 | AS157: =STDEV(AM157:AQ157) -> 0
B158: 3 | D158: NA | E158: NA | F158: NA | G158: NA | H158: NA | I158: =AVERAGE(D158:H158) ->  | J158: =STDEV(D158:H158) ->  | K158: NA | L158: NA | M158: NA | N158: NA | O158: NA | Q158: =STDEV(K158:O158) ->  | R158: 26 | S158: 28 | T158: 19 | U158: 22 | V158: 29 | W158: 25 | X158: =STDEV(R158:V158) -> 4 | Y158: 3 | Z158: 3 | AA158: 2 | AB158: 2 | AC158: 1 | AD158: 2 | AE158: =STDEV(Y158:AC158) -> 1 | AF158: 0 | AG158: 0 | AH158: 0 | AI158: 0 | AJ158: 1 | AK158: 0 | AL158: =STDEV(AF158:AJ158) -> 0 | AM158: 0 | AN158: 0 | AO158: 0 | AP158: 0 | AQ158: 0 | AR158: 0 | AS158: =STDEV(AM158:AQ158) -> 0
A159: average | I159: =AVERAGE(I156:I158) ->  | P159: =AVERAGE(P156:P158) ->  | W159: =AVERAGE(W156:W158) -> 41 | AD159: =AVERAGE(AD156:AD158) -> 4 | AK159: =AVERAGE(AK156:AK158) -> 1 | AR159: =AVERAGE(AR156:AR158) -> 0
A160: stdev | I160: =J156+J157+J158 ->  | P160: =Q156+Q157+Q158 ->  | W160: =X156+X157+X158 -> 17 | AD160: =AE156+AE157+AE158 -> 5 | AK160: =AL156+AL157+AL158 -> 2 | AR160: =AS156+AS157+AS158 -> 0
A161: 2213F A | B161: 1 | D161: NA | E161: NA | F161: NA | G161: NA | H161: NA | I161: =AVERAGE(D161:H161) ->  | J161: =STDEV(D161:H161) ->  | K161: NA | L161: NA | M161: NA | N161: NA | O161: NA | P161: =AVERAGE(K161:O161) ->  | Q161: =STDEV(K161:O161) ->  | R161: 72 | S161: 79 | T161: 76 | U161: 81 | V161: 79 | W161: =AVERAGE(R161:V161) -> 77 | X161: =STDEV(R161:V161) -> 4 | Y161: 5 | Z161: 9 | AA161: 9 | AB161: 10 | AC161: 7 | AD161: =AVERAGE(Y161:AC161) -> 8 | AE161: =STDEV(Y161:AC161) -> 2 | AF161: 2 | AG161: 3 | AH161: 1 | AI161: 1 | AJ161: 3 | AK161: =AVERAGE(AF161:AJ161) -> 2 | AL161: =STDEV(AF161:AJ161) -> 1 | AM161: 0 | AN161: 0 | AO161: 0 | AP161: 0 | AQ161: 0 | AR161: =AVERAGE(AM161:AQ161) -> 0 | AS161: =STDEV(AM161:AQ161) -> 0
A162: p+0 | B162: 2 | D162: NA | E162: NA | F162: NA | G162: NA | H162: NA | I162: =AVERAGE(D162:H162) ->  | J162: =STDEV(D162:H162) ->  | K162: NA | L162: NA | M162: NA | N162: NA | O162: NA | Q162: =STDEV(K162:O162) ->  | R162: 45 | S162: 36 | T162: 49 | U162: 39 | V162: 46 | W162: 43 | X162: =STDEV(R162:V162) -> 5 | Y162: 5 | Z162: 7 | AA162: 8 | AB162: 3 | AC162: 5 | AD162: 6 | AE162: =STDEV(Y162:AC162) -> 2 | AF162: 2 | AG162: 1 | AH162: 0 | AI162: 0 | AJ162: 1 | AK162: 1 | AL162: =STDEV(AF162:AJ162) -> 1 | AM162: 1 | AN162: 0 | AO162: 0 | AP162: 0 | AQ162: 0 | AR162: 0 | AS162: =STDEV(AM162:AQ162) -> 0
B163: 3 | D163: NA | E163: NA | F163: NA | G163: NA | H163: NA | I163: =AVERAGE(D163:H163) ->  | J163: =STDEV(D163:H163) ->  | K163: NA | L163: NA | M163: NA | N163: NA | O163: NA | Q163: =STDEV(K163:O163) ->  | R163: 48 | S163: 42 | T163: 55 | U163: 45 | V163: 41 | W163: 46 | X163: =STDEV(R163:V163) -> 6 | Y163: 3 | Z163: 4 | AA163: 1 | AB163: 4 | AC163: 7 | AD163: =AVERAGE(Y163:AC163) -> 4 | AE163: =STDEV(Y163:AC163) -> 2 | AF163: 0 | AG163: 0 | AH163: 0 | AI163: 0 | AJ163: 1 | AK163: =AVERAGE(AF163:AJ163) -> 0 | AL163: =STDEV(AF163:AJ163) -> 0 | AM163: 0 | AN163: 0 | AO163: 0 | AP163: 0 | AQ163: 0 | AR163: =AVERAGE(AM163:AQ163) -> 0 | AS163: =STDEV(AM163:AQ163) -> 0
A164: average | I164: =AVERAGE(I161:I163) ->  | P164: =AVERAGE(P161:P163) ->  | W164: =AVERAGE(W161:W163) -> 56 | AD164: =AVERAGE(AD161:AD163) -> 6 | AK164: =AVERAGE(AK161:AK163) -> 1 | AR164: =AVERAGE(AR161:AR163) -> 0
A165: stdev | I165: =J161+J162+J163 ->  | P165: =Q161+Q162+Q163 ->  | W165: =X161+X162+X163 -> 14 | AD165: =AE161+AE162+AE163 -> 6 | AK165: =AL161+AL162+AL163 -> 2 | AR165: =AS161+AS162+AS163 -> 0
A166: p+3 | B166: 1 | D166: NA | E166: NA | F166: NA | G166: NA | H166: NA | I166: =AVERAGE(D166:H166) ->  | J166: =STDEV(D166:H166) ->  | K166: NA | L166: NA | M166: NA | N166: NA | O166: NA | P166: =AVERAGE(K166:O166) ->  | Q166: =STDEV(K166:O166) ->  | R166: 54 | S166: 44 | T166: 41 | U166: 54 | V166: 54 | W166: =AVERAGE(R166:V166) -> 49 | X166: =STDEV(R166:V166) -> 6 | Y166: 5 | Z166: 4 | AA166: 9 | AB166: 2 | AC166: 5 | AD166: =AVERAGE(Y166:AC166) -> 5 | AE166: =STDEV(Y166:AC166) -> 3 | AF166: 2 | AG166: 3 | AH166: 0 | AI166: 0 | AJ166: 2 | AK166: =AVERAGE(AF166:AJ166) -> 1 | AL166: =STDEV(AF166:AJ166) -> 1 | AM166: 0 | AN166: 0 | AO166: 1 | AP166: 0 | AQ166: 0 | AR166: =AVERAGE(AM166:AQ166) -> 0 | AS166: =STDEV(AM166:AQ166) -> 0
B167: 2 | D167: NA | E167: NA | F167: NA | G167: NA | H167: NA | I167: =AVERAGE(D167:H167) ->  | J167: =STDEV(D167:H167) ->  | K167: NA | L167: NA | M167: NA | N167: NA | O167: NA | Q167: =STDEV(K167:O167) ->  | R167: 42 | S167: 45 | T167: 41 | U167: 47 | V167: 46 | W167: 44 | X167: =STDEV(R167:V167) -> 3 | Y167: 7 | Z167: 8 | AA167: 7 | AB167: 4 | AC167: 7 | AD167: 7 | AE167: =STDEV(Y167:AC167) -> 2 | AF167: 0 | AG167: 3 | AH167: 0 | AI167: 0 | AJ167: 1 | AK167: =AVERAGE(AF167:AJ167) -> 1 | AL167: =STDEV(AF167:AJ167) -> 1 | AM167: 0 | AN167: 0 | AO167: 0 | AP167: 0 | AQ167: 0 | AR167: 0 | AS167: =STDEV(AM167:AQ167) -> 0
B168: 3 | D168: NA | E168: NA | F168: NA | G168: NA | H168: NA | I168: =AVERAGE(D168:H168) ->  | J168: =STDEV(D168:H168) ->  | K168: NA | L168: NA | M168: NA | N168: NA | O168: NA | Q168: =STDEV(K168:O168) ->  | R168: 34 | S168: 34 | T168: 27 | U168: 34 | V168: 35 | W168: 33 | X168: =STDEV(R168:V168) -> 3 | Y168: 3 | Z168: 3 | AA168: 5 | AB168: 5 | AC168: 2 | AD168: 4 | AE168: =STDEV(Y168:AC168) -> 1 | AF168: 0 | AG168: 0 | AH168: 1 | AI168: 0 | AJ168: 0 | AK168: 0 | AL168: =STDEV(AF168:AJ168) -> 0 | AM168: 0 | AN168: 0 | AO168: 0 | AP168: 0 | AQ168: 0 | AR168: 0 | AS168: =STDEV(AM168:AQ168) -> 0
A169: average | I169: =AVERAGE(I166:I168) ->  | P169: =AVERAGE(P166:P168) ->  | W169: =AVERAGE(W166:W168) -> 42 | AD169: =AVERAGE(AD166:AD168) -> 5 | AK169: =AVERAGE(AK166:AK168) -> 1 | AR169: =AVERAGE(AR166:AR168) -> 0
A170: stdev | I170: =J166+J167+J168 ->  | P170: =Q166+Q167+Q168 ->  | W170: =X166+X167+X168 -> 12 | AD170: =AE166+AE167+AE168 -> 5 | AK170: =AL166+AL167+AL168 -> 3 | AR170: =AS166+AS167+AS168 -> 0
A171: 2213F APR | B171: 1 | D171: NA | E171: NA | F171: NA | G171: NA | H171: NA | I171: =AVERAGE(D171:H171) ->  | J171: =STDEV(D171:H171) ->  | K171: NA | L171: NA | M171: NA | N171: NA | O171: NA | P171: =AVERAGE(K171:O171) ->  | Q171: =STDEV(K171:O171) ->  | R171: NA | S171: NA | T171: NA | U171: NA | V171: NA | W171: =AVERAGE(R171:V171) ->  | X171: =STDEV(R171:V171) ->  | Y171: NA | Z171: NA | AA171: NA | AB171: NA | AC171: NA | AD171: =AVERAGE(Y171:AC171) ->  | AE171: =STDEV(Y171:AC171) ->  | AF171: 45 | AG171: 55 | AH171: 44 | AI171: 57 | AJ171: 47 | AK171: =AVERAGE(AF171:AJ171) -> 50 | AL171: =STDEV(AF171:AJ171) -> 6 | AM171: 12 | AN171: 7 | AO171: 6 | AP171: 8 | AQ171: 2 | AR171: =AVERAGE(AM171:AQ171) -> 7 | AS171: =STDEV(AM171:AQ171) -> 4
A172: p+0 | B172: 2 | D172: NA | E172: NA | F172: NA | G172: NA | H172: NA | I172: =AVERAGE(D172:H172) ->  | J172: =STDEV(D172:H172) ->  | K172: NA | L172: NA | M172: NA | N172: NA | O172: NA | Q172: =STDEV(K172:O172) ->  | R172: NA | S172: NA | T172: NA | U172: NA | V172: NA | X172: =STDEV(R172:V172) ->  | Y172: NA | Z172: NA | AA172: NA | AB172: NA | AC172: NA | AE172: =STDEV(Y172:AC172) ->  | AF172: 32 | AG172: 39 | AH172: 24 | AI172: 29 | AJ172: 48 | AK172: =AVERAGE(AF172:AJ172) -> 34 | AL172: =STDEV(AF172:AJ172) -> 9 | AM172: 4 | AN172: 4 | AO172: 4 | AP172: 2 | AQ172: 2 | AR172: 3 | AS172: =STDEV(AM172:AQ172) -> 1
B173: 3 | D173: NA | E173: NA | F173: NA | G173: NA | H173: NA | I173: =AVERAGE(D173:H173) ->  | J173: =STDEV(D173:H173) ->  | K173: NA | L173: NA | M173: NA | N173: NA | O173: NA | Q173: =STDEV(K173:O173) ->  | R173: NA | S173: NA | T173: NA | U173: NA | V173: NA | X173: =STDEV(R173:V173) ->  | Y173: NA | Z173: NA | AA173: NA | AB173: NA | AC173: NA | AE173: =STDEV(Y173:AC173) ->  | AF173: 38 | AG173: 40 | AH173: 43 | AI173: 42 | AJ173: 48 | AK173: 42 | AL173: =STDEV(AF173:AJ173) -> 4 | AM173: 2 | AN173: 5 | AO173: 4 | AP173: 6 | AQ173: 2 | AR173: 4 | AS173: =STDEV(AM173:AQ173) -> 2
A174: average | I174: =AVERAGE(I171:I173) ->  | P174: =AVERAGE(P171:P173) ->  | W174: =AVERAGE(W171:W173) ->  | AD174: =AVERAGE(AD171:AD173) ->  | AK174: =AVERAGE(AK171:AK173) -> 42 | AR174: =AVERAGE(AR171:AR173) -> 5
A175: stdev | I175: =J171+J172+J173 ->  | P175: =Q171+Q172+Q173 ->  | W175: =X171+X172+X173 ->  | AD175: =AE171+AE172+AE173 ->  | AK175: =AL171+AL172+AL173 -> 19 | AR175: =AS171+AS172+AS173 -> 6
A176: p+3 | B176: 1 | D176: NA | E176: NA | F176: NA | G176: NA | H176: NA | I176: =AVERAGE(D176:H176) ->  | J176: =STDEV(D176:H176) ->  | K176: NA | L176: NA | M176: NA | N176: NA | O176: NA | P176: =AVERAGE(K176:O176) ->  | Q176: =STDEV(K176:O176) ->  | R176: NA | S176: NA | T176: NA | U176: NA | V176: NA | W176: =AVERAGE(R176:V176) ->  | X176: =STDEV(R176:V176) ->  | Y176: NA | Z176: NA | AA176: NA | AB176: NA | AC176: NA | AD176: =AVERAGE(Y176:AC176) ->  | AE176: =STDEV(Y176:AC176) ->  | AF176: 66 | AG176: 62 | AH176: 57 | AI176: 56 | AJ176: 45 | AK176: =AVERAGE(AF176:AJ176) -> 57 | AL176: =STDEV(AF176:AJ176) -> 8 | AM176: 3 | AN176: 7 | AO176: 4 | AP176: 9 | AQ176: 4 | AR176: =AVERAGE(AM176:AQ176) -> 5 | AS176: =STDEV(AM176:AQ176) -> 3
B177: 2 | D177: NA | E177: NA | F177: NA | G177: NA | H177: NA | I177: =AVERAGE(D177:H177) ->  | J177: =STDEV(D177:H177) ->  | K177: NA | L177: NA | M177: NA | N177: NA | O177: NA | Q177: =STDEV(K177:O177) ->  | R177: NA | S177: NA | T177: NA | U177: NA | V177: NA | X177: =STDEV(R177:V177) ->  | Y177: NA | Z177: NA | AA177: NA | AB177: NA | AC177: NA | AE177: =STDEV(Y177:AC177) ->  | AF177: 47 | AG177: 54 | AH177: 47 | AI177: 48 | AJ177: 41 | AK177: 47 | AL177: =STDEV(AF177:AJ177) -> 5 | AM177: 3 | AN177: 4 | AO177: 10 | AP177: 5 | AQ177: 3 | AR177: 5 | AS177: =STDEV(AM177:AQ177) -> 3
B178: 3 | D178: NA | E178: NA | F178: NA | G178: NA | H178: NA | I178: =AVERAGE(D178:H178) ->  | J178: =STDEV(D178:H178) ->  | K178: NA | L178: NA | M178: NA | N178: NA | O178: NA | Q178: =STDEV(K178:O178) ->  | R178: NA | S178: NA | T178: NA | U178: NA | V178: NA | X178: =STDEV(R178:V178) ->  | Y178: NA | Z178: NA | AA178: NA | AB178: NA | AC178: NA | AE178: =STDEV(Y178:AC178) ->  | AF178: 81 | AG178: 65 | AH178: 80 | AI178: 73 | AJ178: 61 | AK178: 72 | AL178: =STDEV(AF178:AJ178) -> 9 | AM178: 8 | AN178: 6 | AO178: 8 | AP178: 11 | AQ178: 9 | AR178: 8 | AS178: =STDEV(AM178:AQ178) -> 2
A179: average | I179: =AVERAGE(I176:I178) ->  | P179: =AVERAGE(P176:P178) ->  | W179: =AVERAGE(W176:W178) ->  | AD179: =AVERAGE(AD176:AD178) ->  | AK179: =AVERAGE(AK176:AK178) -> 59 | AR179: =AVERAGE(AR176:AR178) -> 6
A180: stdev | I180: =J176+J177+J178 ->  | P180: =Q176+Q177+Q178 ->  | W180: =X176+X177+X178 ->  | AD180: =AE176+AE177+AE178 ->  | AK180: =AL176+AL177+AL178 -> 21 | AR180: =AS176+AS177+AS178 -> 7
A183: T9 | B183: 2017-06-07
A184: Sample | B184: Dilution: | D184: 1 | I184: AVERAGE | J184: Stdev | K184: =10^-1 -> 1E-01 | P184: AVERAGE | Q184: Stdev | R184: =10^-2 -> 1E-02 | W184: AVERAGE | X184: Stdev | Y184: =10^-3 -> 1E-03 | AD184: AVERAGE | AE184: Stdev | AF184: =10^-4 -> 1E-04 | AK184: AVERAGE | AL184: Stdev | AM184: =10^-5 -> 1e-05 | AR184: AVERAGE | AS184: Stdev
A185: Blank | B185: 1 | D185: 0 | E185: 0 | F185: 0 | G185: 0 | H185: 0 | I185: =AVERAGE(D185:H185) -> 0 | J185: =STDEV(D185:H185) -> 0 | K185: 0 | L185: 0 | M185: 0 | N185: 0 | O185: 0 | P185: =AVERAGE(K185:O185) -> 0 | Q185: =STDEV(K185:O185) -> 0 | R185: 0 | S185: 0 | T185: 0 | U185: 0 | V185: 0 | W185: =AVERAGE(R185:V185) -> 0 | X185: =STDEV(R185:V185) -> 0 | Y185: 0 | Z185: 0 | AA185: 0 | AB185: 0 | AC185: 0 | AD185: =AVERAGE(Y185:AC185) -> 0 | AE185: =STDEV(Y185:AC185) -> 0 | AF185: 0 | AG185: 0 | AH185: 0 | AI185: 0 | AJ185: 0 | AK185: =AVERAGE(AF185:AJ185) -> 0 | AL185: =STDEV(AF185:AJ185) -> 0 | AM185: 0 | AN185: 0 | AO185: 0 | AP185: 0 | AQ185: 0 | AR185: =AVERAGE(AM185:AQ185) -> 0 | AS185: =STDEV(AM185:AQ185) -> 0
B186: 2 | D186: 0 | E186: 0 | F186: 0 | G186: 0 | H186: 0 | I186: =AVERAGE(D186:H186) -> 0 | J186: =STDEV(D186:H186) -> 0 | K186: 0 | L186: 0 | M186: 0 | N186: 0 | O186: 0 | P186: =AVERAGE(K186:O186) -> 0 | Q186: =STDEV(K186:O186) -> 0 | R186: 0 | S186: 0 | T186: 0 | U186: 0 | V186: 0 | W186: =AVERAGE(R186:V186) -> 0 | X186: =STDEV(R186:V186) -> 0 | Y186: 0 | Z186: 0 | AA186: 0 | AB186: 0 | AC186: 0 | AD186: =AVERAGE(Y186:AC186) -> 0 | AE186: =STDEV(Y186:AC186) -> 0 | AF186: 0 | AG186: 0 | AH186: 0 | AI186: 0 | AJ186: 0 | AK186: =AVERAGE(AF186:AJ186) -> 0 | AL186: =STDEV(AF186:AJ186) -> 0 | AM186: 0 | AN186: 0 | AO186: 0 | AP186: 0 | AQ186: 0 | AR186: =AVERAGE(AM186:AQ186) -> 0 | AS186: =STDEV(AM186:AQ186) -> 0
B187: 3 | D187: 0 | E187: 0 | F187: 0 | G187: 0 | H187: 0 | I187: =AVERAGE(D187:H187) -> 0 | J187: =STDEV(D187:H187) -> 0 | K187: 0 | L187: 0 | M187: 0 | N187: 0 | O187: 0 | P187: 0 | Q187: =STDEV(K187:O187) -> 0 | R187: 0 | S187: 0 | T187: 0 | U187: 0 | V187: 0 | W187: 0 | X187: =STDEV(R187:V187) -> 0 | Y187: 0 | Z187: 0 | AA187: 0 | AB187: 0 | AC187: 0 | AD187: 0 | AE187: =STDEV(Y187:AC187) -> 0 | AF187: 0 | AG187: 0 | AH187: 0 | AI187: 0 | AJ187: 0 | AK187: 0 | AL187: =STDEV(AF187:AJ187) -> 0 | AM187: 0 | AN187: 0 | AO187: 0 | AP187: 0 | AQ187: 0 | AR187: 0 | AS187: =STDEV(AM187:AQ187) -> 0
I188: =AVERAGE(I185:I187) -> 0 | P188: =AVERAGE(P185:P187) -> 0 | W188: =AVERAGE(W185:W187) -> 0 | AD188: =AVERAGE(AD185:AD187) -> 0 | AK188: =AVERAGE(AK185:AK187) -> 0 | AR188: =AVERAGE(AR185:AR187) -> 0
I189: =J185+J186+J187 -> 0 | P189: =Q185+Q186+Q187 -> 0 | W189: =X185+X186+X187 -> 0 | AD189: =AE185+AE186+AE187 -> 0 | AK189: =AL185+AL186+AL187 -> 0 | AR189: =AS185+AS186+AS187 -> 0
A190: WT | B190: 1 | D190: NA | E190: NA | F190: NA | G190: NA | H190: NA | I190: =AVERAGE(D190:H190) ->  | J190: =STDEV(D190:H190) ->  | K190: NA | L190: NA | M190: NA | N190: NA | O190: NA | P190: =AVERAGE(K190:O190) ->  | Q190: =STDEV(K190:O190) ->  | R190: NA | S190: NA | T190: NA | U190: NA | V190: NA | W190: =AVERAGE(R190:V190) ->  | X190: =STDEV(R190:V190) ->  | Y190: NA | Z190: NA | AA190: NA | AB190: NA | AC190: NA | AD190: =AVERAGE(Y190:AC190) ->  | AE190: =STDEV(Y190:AC190) ->  | AF190: 30 | AG190: 29 | AH190: NA | AI190: NA | AJ190: NA | AK190: =AVERAGE(AF190:AJ190) -> 30 | AL190: =STDEV(AF190:AJ190) -> 1 | AM190: 0 | AN190: 3 | AO190: 3 | AP190: 3 | AQ190: 2 | AR190: =AVERAGE(AM190:AQ190) -> 2 | AS190: =STDEV(AM190:AQ190) -> 1
B191: 2 | D191: NA | E191: NA | F191: NA | G191: NA | H191: NA | I191: =AVERAGE(D191:H191) ->  | J191: =STDEV(D191:H191) ->  | K191: NA | L191: NA | M191: NA | N191: NA | O191: NA | Q191: =STDEV(K191:O191) ->  | R191: NA | S191: NA | T191: NA | U191: NA | V191: NA | X191: =STDEV(R191:V191) ->  | Y191: NA | Z191: NA | AA191: NA | AB191: NA | AC191: 59 | AD191: 59 | AE191: =STDEV(Y191:AC191) ->  | AF191: 12 | AG191: 103 | AH191: 84 | AI191: 60 | AJ191: 9 | AK191: 54 | AL191: =STDEV(AF191:AJ191) -> 42 | AM191: 0 | AN191: 0 | AO191: 1 | AP191: 0 | AQ191: 2 | AR191: 1 | AS191: =STDEV(AM191:AQ191) -> 1
B192: 3 | D192: NA | E192: NA | F192: NA | G192: NA | H192: NA | I192: =AVERAGE(D192:H192) ->  | J192: =STDEV(D192:H192) ->  | K192: NA | L192: NA | M192: NA | N192: NA | O192: NA | Q192: =STDEV(K192:O192) ->  | R192: NA | S192: NA | T192: NA | U192: NA | V192: NA | X192: =STDEV(R192:V192) ->  | Y192: 29 | Z192: 81 | AA192: NA | AB192: 34 | AC192: 28 | AD192: 43 | AE192: =STDEV(Y192:AC192) -> 25 | AF192: 2 | AG192: 4 | AH192: 7 | AI192: 1 | AJ192: 2 | AK192: 3 | AL192: =STDEV(AF192:AJ192) -> 2 | AM192: 0 | AN192: 0 | AO192: 1 | AP192: 0 | AQ192: 0 | AR192: 0 | AS192: =STDEV(AM192:AQ192) -> 0
A193: average | I193: =AVERAGE(I190:I192) ->  | P193: =AVERAGE(P190:P192) ->  | W193: =AVERAGE(W190:W192) ->  | AD193: =AVERAGE(AD191:AD192) -> 51 | AK193: =AVERAGE(AK191:AK192) -> 28 | AR193: =AVERAGE(AR191:AR192) -> 0
A194: stdev | I194: =J190+J191+J192 ->  | P194: =Q190+Q191+Q192 ->  | W194: =X190+X191+X192 ->  | AD194: =AE190+AE191+AE192 ->  | AK194: =AL190+AL191+AL192 -> 45 | AR194: =AS190+AS191+AS192 -> 3
A195: 2213F - | B195: 1 | D195: NA | E195: NA | F195: NA | G195: NA | H195: NA | I195: =AVERAGE(D195:H195) ->  | J195: =STDEV(D195:H195) ->  | K195: NA | L195: NA | M195: NA | N195: NA | O195: NA | P195: =AVERAGE(K195:O195) ->  | Q195: =STDEV(K195:O195) ->  | R195: 63 | S195: 83 | T195: 76 | U195: 67 | V195: 73 | W195: =AVERAGE(R195:V195) -> 72 | X195: =STDEV(R195:V195) -> 8 | Y195: 10 | Z195: 9 | AA195: 12 | AB195: 7 | AC195: 8 | AD195: =AVERAGE(Y195:AC195) -> 9 | AE195: =STDEV(Y195:AC195) -> 2 | AF195: 0 | AG195: 0 | AH195: 1 | AI195: 0 | AJ195: 0 | AK195: =AVERAGE(AF195:AJ195) -> 0 | AL195: =STDEV(AF195:AJ195) -> 0 | AM195: 1 | AN195: 0 | AO195: 0 | AP195: 0 | AQ195: 0 | AR195: =AVERAGE(AM195:AQ195) -> 0 | AS195: =STDEV(AM195:AQ195) -> 0
A196: p+0 | B196: 2 | D196: NA | E196: NA | F196: NA | G196: NA | H196: NA | I196: =AVERAGE(D196:H196) ->  | J196: =STDEV(D196:H196) ->  | K196: NA | L196: NA | M196: NA | N196: NA | O196: NA | Q196: =STDEV(K196:O196) ->  | R196: 47 | S196: 129 | T196: 117 | U196: 82 | V196: 55 | W196: 86 | X196: =STDEV(R196:V196) -> 36 | Y196: 9 | Z196: 3 | AA196: 5 | AB196: 8 | AC196: 7 | AD196: 6 | AE196: =STDEV(Y196:AC196) -> 2 | AF196: 0 | AG196: 0 | AH196: 0 | AI196: 1 | AJ196: 0 | AK196: 0 | AL196: =STDEV(AF196:AJ196) -> 0 | AM196: 0 | AN196: 0 | AO196: 0 | AP196: 0 | AQ196: 0 | AR196: 0 | AS196: =STDEV(AM196:AQ196) -> 0
B197: 3 | D197: NA | E197: NA | F197: NA | G197: NA | H197: NA | I197: =AVERAGE(D197:H197) ->  | J197: =STDEV(D197:H197) ->  | K197: NA | L197: NA | M197: NA | N197: NA | O197: NA | Q197: =STDEV(K197:O197) ->  | R197: 15 | S197: 21 | T197: 17 | U197: 17 | V197: 17 | W197: 17 | X197: =STDEV(R197:V197) -> 2 | Y197: 2 | Z197: 1 | AA197: 0 | AB197: 0 | AC197: 0 | AD197: 1 | AE197: =STDEV(Y197:AC197) -> 1 | AF197: 0 | AG197: 0 | AH197: 0 | AI197: 0 | AJ197: 0 | AK197: 0 | AL197: =STDEV(AF197:AJ197) -> 0 | AM197: 0 | AN197: 0 | AO197: 0 | AP197: 0 | AQ197: 0 | AR197: 0 | AS197: =STDEV(AM197:AQ197) -> 0
A198: average | I198: =AVERAGE(I195:I197) ->  | P198: =AVERAGE(P195:P197) ->  | W198: =AVERAGE(W195:W197) -> 59 | AD198: =AVERAGE(AD195:AD197) -> 5 | AK198: =AVERAGE(AK195:AK197) -> 0 | AR198: =AVERAGE(AR195:AR197) -> 0
A199: stdev | I199: =J195+J196+J197 ->  | P199: =Q195+Q196+Q197 ->  | W199: =X195+X196+X197 -> 46 | AD199: =AE195+AE196+AE197 -> 5 | AK199: =AL195+AL196+AL197 -> 1 | AR199: =AS195+AS196+AS197 -> 0
A200: p+3 | B200: 1 | D200: NA | E200: NA | F200: NA | G200: NA | H200: NA | I200: =AVERAGE(D200:H200) ->  | J200: =STDEV(D200:H200) ->  | K200: 58 | L200: 73 | M200: 87 | N200: 67 | O200: 86 | P200: =AVERAGE(K200:O200) -> 74 | Q200: =STDEV(K200:O200) -> 12 | R200: 10 | S200: 9 | T200: 12 | U200: 5 | V200: 9 | W200: =AVERAGE(R200:V200) -> 9 | X200: =STDEV(R200:V200) -> 3 | Y200: 3 | Z200: 0 | AA200: 2 | AB200: 0 | AC200: 1 | AD200: =AVERAGE(Y200:AC200) -> 1 | AE200: =STDEV(Y200:AC200) -> 1 | AF200: 0 | AG200: 0 | AH200: 0 | AI200: 0 | AJ200: 0 | AK200: =AVERAGE(AF200:AJ200) -> 0 | AL200: =STDEV(AF200:AJ200) -> 0 | AM200: 0 | AN200: 0 | AO200: 0 | AP200: 0 | AQ200: 0 | AR200: =AVERAGE(AM200:AQ200) -> 0 | AS200: =STDEV(AM200:AQ200) -> 0
B201: 2 | D201: NA | E201: NA | F201: NA | G201: NA | H201: NA | I201: =AVERAGE(D201:H201) ->  | J201: =STDEV(D201:H201) ->  | K201: 49 | L201: 70 | M201: 69 | N201: 48 | O201: 59 | P201: 59 | Q201: =STDEV(K201:O201) -> 11 | R201: 7 | S201: 9 | T201: 5 | U201: 5 | V201: 6 | W201: 6 | X201: =STDEV(R201:V201) -> 2 | Y201: 3 | Z201: 3 | AA201: 0 | AB201: 2 | AC201: 0 | AD201: 2 | AE201: =STDEV(Y201:AC201) -> 2 | AF201: 0 | AG201: 0 | AH201: 0 | AI201: 0 | AJ201: 0 | AK201: 0 | AL201: =STDEV(AF201:AJ201) -> 0 | AM201: 0 | AN201: 0 | AO201: 0 | AP201: 0 | AQ201: 0 | AR201: 0 | AS201: =STDEV(AM201:AQ201) -> 0
B202: 3 | D202: NA | E202: NA | F202: NA | G202: NA | H202: NA | I202: =AVERAGE(D202:H202) ->  | J202: =STDEV(D202:H202) ->  | K202: 33 | L202: 42 | M202: 59 | N202: 49 | O202: 23 | P202: 41 | Q202: =STDEV(K202:O202) -> 14 | R202: 3 | S202: 1 | T202: 8 | U202: 5 | V202: 5 | W202: 4 | X202: =STDEV(R202:V202) -> 3 | Y202: 0 | Z202: 0 | AA202: 0 | AB202: 1 | AC202: 1 | AD202: 0 | AE202: =STDEV(Y202:AC202) -> 1 | AF202: 0 | AG202: 0 | AH202: 0 | AI202: 0 | AJ202: 0 | AK202: 0 | AL202: =STDEV(AF202:AJ202) -> 0 | AM202: 0 | AN202: 0 | AO202: 0 | AP202: 0 | AQ202: 0 | AR202: 0 | AS202: =STDEV(AM202:AQ202) -> 0
A203: average | I203: =AVERAGE(I200:I202) ->  | P203: =AVERAGE(P200:P202) -> 58 | W203: =AVERAGE(W200:W202) -> 7 | AD203: =AVERAGE(AD200:AD202) -> 1 | AK203: =AVERAGE(AK200:AK202) -> 0 | AR203: =AVERAGE(AR200:AR202) -> 0
A204: stdev | I204: =J200+J201+J202 ->  | P204: =Q200+Q201+Q202 -> 37 | W204: =X200+X201+X202 -> 7 | AD204: =AE200+AE201+AE202 -> 3 | AK204: =AL200+AL201+AL202 -> 0 | AR204: =AS200+AS201+AS202 -> 0
A205: 2213F A | B205: 1 | D205: NA | E205: NA | F205: NA | G205: NA | H205: NA | I205: =AVERAGE(D205:H205) ->  | J205: =STDEV(D205:H205) ->  | K205: NA | L205: NA | M205: NA | N205: NA | O205: NA | P205: =AVERAGE(K205:O205) ->  | Q205: =STDEV(K205:O205) ->  | R205: 29 | S205: 22 | T205: 20 | U205: 19 | V205: 25 | W205: =AVERAGE(R205:V205) -> 23 | X205: =STDEV(R205:V205) -> 4 | Y205: 3 | Z205: 3 | AA205: 0 | AB205: 3 | AC205: 4 | AD205: =AVERAGE(Y205:AC205) -> 3 | AE205: =STDEV(Y205:AC205) -> 2 | AF205: 0 | AG205: 0 | AH205: 0 | AI205: 0 | AJ205: 0 | AK205: =AVERAGE(AF205:AJ205) -> 0 | AL205: =STDEV(AF205:AJ205) -> 0 | AM205: 0 | AN205: 0 | AO205: 0 | AP205: 0 | AQ205: 1 | AR205: =AVERAGE(AM205:AQ205) -> 0 | AS205: =STDEV(AM205:AQ205) -> 0
A206: p+0 | B206: 2 | D206: NA | E206: NA | F206: NA | G206: NA | H206: NA | I206: =AVERAGE(D206:H206) ->  | J206: =STDEV(D206:H206) ->  | K206: NA | L206: NA | M206: NA | N206: NA | O206: NA | Q206: =STDEV(K206:O206) ->  | R206: 8 | S206: 13 | T206: 11 | U206: 7 | V206: 7 | W206: 9 | X206: =STDEV(R206:V206) -> 3 | Y206: 1 | Z206: 0 | AA206: 0 | AB206: 0 | AC206: 4 | AD206: 1 | AE206: =STDEV(Y206:AC206) -> 2 | AF206: 0 | AG206: 0 | AH206: 0 | AI206: 0 | AJ206: 0 | AK206: 0 | AL206: =STDEV(AF206:AJ206) -> 0 | AM206: 0 | AN206: 0 | AO206: 0 | AP206: 0 | AQ206: 0 | AR206: 0 | AS206: =STDEV(AM206:AQ206) -> 0
B207: 3 | D207: NA | E207: NA | F207: NA | G207: NA | H207: NA | I207: =AVERAGE(D207:H207) ->  | J207: =STDEV(D207:H207) ->  | K207: NA | L207: NA | M207: NA | N207: NA | O207: NA | Q207: =STDEV(K207:O207) ->  | R207: 9 | S207: 24 | T207: NA | U207: NA | V207: 8 | W207: 14 | X207: =STDEV(R207:V207) -> 9 | Y207: 1 | Z207: 1 | AA207: 0 | AB207: 20 | AC207: 0 | AD207: =AVERAGE(Y207:AC207) -> 4 | AE207: =STDEV(Y207:AC207) -> 9 | AF207: 0 | AG207: 0 | AH207: 0 | AI207: 1 | AJ207: 0 | AK207: =AVERAGE(AF207:AJ207) -> 0 | AL207: =STDEV(AF207:AJ207) -> 0 | AM207: 0 | AN207: 0 | AO207: 0 | AP207: 0 | AQ207: 0 | AR207: =AVERAGE(AM207:AQ207) -> 0 | AS207: =STDEV(AM207:AQ207) -> 0
A208: average | I208: =AVERAGE(I205:I207) ->  | P208: =AVERAGE(P205:P207) ->  | W208: =AVERAGE(W205:W207) -> 15 | AD208: =AVERAGE(AD205:AD207) -> 3 | AK208: =AVERAGE(AK205:AK207) -> 0 | AR208: =AVERAGE(AR205:AR207) -> 0
... 71 more rows

Sheet Survivalexp results
A1: Survival experiment
A2: Subject: | C2: Anaerobic survival after aerobic inoculation of recombinant strains
C3: DeBont+Gluconic Acid - Kanamycin only in 2213-/A/APR
A4: Inoculation date | C4: 30may'17
A5: Inoculated | C5: Blank | D5: KT2440 WT | E5: 2213F - | G5: 2213F A | I5: 2213F APR
D6: dilution
D7: T0 | L7: T2 | T7: T4 | AB7: T7 | AJ7: T9 | AR7: T11 | AZ7: T17
C8: Sample | D8: =10^0 -> 1 | E8: =10^-1 -> 0.1 | F8: =10^-2 -> 0.01 | G8: =10^-3 -> 0.001 | H8: =10^-4 -> 0.0001 | I8: =10^-5 -> 1e-05 | J8: Average nr of bacteria | K8: stdev | L8: =10^0 -> 1 | M8: =10^-1 -> 0.1 | N8: =10^-2 -> 0.01 | O8: =10^-3 -> 0.001 | P8: =10^-4 -> 0.0001 | Q8: =10^-5 -> 1e-05 | R8: Average nr of bacteria | S8: stdev | T8: =10^0 -> 1 | U8: =10^-1 -> 0.1 | V8: =10^-2 -> 0.01 | W8: =10^-3 -> 0.001 | X8: =10^-4 -> 0.0001 | Y8: =10^-5 -> 1e-05 | Z8: Average nr of bacteria | AA8: stdev | AB8: =10^0 -> 1 | AC8: =10^-1 -> 0.1 | AD8: =10^-2 -> 0.01 | AE8: =10^-3 -> 0.001 | AF8: =10^-4 -> 0.0001 | AG8: =10^-5 -> 1e-05 | AH8: Average nr of bacteria | AI8: stdev | AJ8: =10^0 -> 1 | AK8: =10^-1 -> 0.1 | AL8: =10^-2 -> 0.01 | AM8: =10^-3 -> 0.001 | AN8: =10^-4 -> 0.0001 | AO8: =10^-5 -> 1e-05 | AP8: Average nr of bacteria | AQ8: stdev | AR8: =10^0 -> 1 | AS8: =10^-1 -> 0.1 | AT8: =10^-2 -> 0.01 | AU8: =10^-3 -> 0.001 | AV8: =10^-4 -> 0.0001 | AW8: =10^-5 -> 1e-05 | AX8: Average nr of bacteria | AY8: stdev | AZ8: =10^0 -> 1 | BA8: =10^-1 -> 0.1 | BB8: =10^-2 -> 0.01 | BC8: =10^-3 -> 0.001 | BD8: =10^-4 -> 0.0001 | BE8: =10^-5 -> 1e-05 | BF8: Average nr of bacteria | BG8: stdev
C9: Blank | D9: ='Survivalexp RAW 30May-..Jun'!I12 -> 0 | E9: ='Survivalexp RAW 30May-..Jun'!P12 -> 0 | F9: ='Survivalexp RAW 30May-..Jun'!W12 -> 0 | G9: ='Survivalexp RAW 30May-..Jun'!AD12 -> 0 | H9: ='Survivalexp RAW 30May-..Jun'!AK12 -> 0 | I9: ='Survivalexp RAW 30May-..Jun'!AR12 -> 0 | L9: ='Survivalexp RAW 30May-..Jun'!I56 -> 0 | M9: ='Survivalexp RAW 30May-..Jun'!P56 -> 0 | N9: ='Survivalexp RAW 30May-..Jun'!W56 -> 0 | O9: ='Survivalexp RAW 30May-..Jun'!AD56 -> 0 | P9: ='Survivalexp RAW 30May-..Jun'!AK56 -> 0 | Q9: ='Survivalexp RAW 30May-..Jun'!AR56 -> 0 | T9: ='Survivalexp RAW 30May-..Jun'!I100 -> 0 | U9: ='Survivalexp RAW 30May-..Jun'!P100 -> 0 | V9: ='Survivalexp RAW 30May-..Jun'!W100 -> 0 | W9: ='Survivalexp RAW 30May-..Jun'!AD100 -> 0 | X9: ='Survivalexp RAW 30May-..Jun'!AK100 -> 0 | Y9: ='Survivalexp RAW 30May-..Jun'!AR100 -> 0 | AB9: ='Survivalexp RAW 30May-..Jun'!I144 -> 0 | AC9: ='Survivalexp RAW 30May-..Jun'!P144 -> 0 | AD9: ='Survivalexp RAW 30May-..Jun'!W144 -> 0 | AE9: ='Survivalexp RAW 30May-..Jun'!AD144 -> 0 | AF9: ='Survivalexp RAW 30May-..Jun'!AK144 -> 0 | AG9: ='Survivalexp RAW 30May-..Jun'!AR144 -> 0 | AJ9: ='Survivalexp RAW 30May-..Jun'!I188 -> 0 | AK9: ='Survivalexp RAW 30May-..Jun'!P188 -> 0 | AL9: ='Survivalexp RAW 30May-..Jun'!W188 -> 0 | AM9: ='Survivalexp RAW 30May-..Jun'!AD188 -> 0 | AN9: ='Survivalexp RAW 30May-..Jun'!AK188 -> 0 | AO9: ='Survivalexp RAW 30May-..Jun'!AR188 -> 0 | AR9: ='Survivalexp RAW 30May-..Jun'!#REF! ->  | AS9: ='Survivalexp RAW 30May-..Jun'!#REF! ->  | AT9: ='Survivalexp RAW 30May-..Jun'!#REF! ->  | AU9: ='Survivalexp RAW 30May-..Jun'!#REF! ->  | AV9: ='Survivalexp RAW 30May-..Jun'!#REF! ->  | AW9: ='Survivalexp RAW 30May-..Jun'!#REF! ->  | AZ9: ='Survivalexp RAW 30May-..Jun'!#REF! ->  | BA9: ='Survivalexp RAW 30May-..Jun'!#REF! ->  | BB9: ='Survivalexp RAW 30May-..Jun'!#REF! ->  | BC9: ='Survivalexp RAW 30May-..Jun'!#REF! ->  | BD9: ='Survivalexp RAW 30May-..Jun'!#REF! ->  | BE9: ='Survivalexp RAW 30May-..Jun'!#REF! -> 
C10: stdev | D10: ='Survivalexp RAW 30May-..Jun'!I13 -> 0 | E10: ='Survivalexp RAW 30May-..Jun'!P13 -> 0 | F10: ='Survivalexp RAW 30May-..Jun'!W13 -> 0 | G10: ='Survivalexp RAW 30May-..Jun'!AD13 -> 0 | H10: ='Survivalexp RAW 30May-..Jun'!AK13 -> 0 | I10: ='Survivalexp RAW 30May-..Jun'!AR13 -> 0 | L10: ='Survivalexp RAW 30May-..Jun'!I57 -> 0 | M10: ='Survivalexp RAW 30May-..Jun'!P57 -> 0 | N10: ='Survivalexp RAW 30May-..Jun'!W57 -> 0 | O10: ='Survivalexp RAW 30May-..Jun'!AD57 -> 0 | P10: ='Survivalexp RAW 30May-..Jun'!AK57 -> 0 | Q10: ='Survivalexp RAW 30May-..Jun'!AR57 -> 0 | T10: ='Survivalexp RAW 30May-..Jun'!I101 -> 0 | U10: ='Survivalexp RAW 30May-..Jun'!P101 -> 0 | V10: ='Survivalexp RAW 30May-..Jun'!W101 -> 0 | W10: ='Survivalexp RAW 30May-..Jun'!AD101 -> 0 | X10: ='Survivalexp RAW 30May-..Jun'!AK101 -> 0 | Y10: ='Survivalexp RAW 30May-..Jun'!AR101 -> 0 | AB10: ='Survivalexp RAW 30May-..Jun'!I145 -> 0 | AC10: ='Survivalexp RAW 30May-..Jun'!P145 -> 0 | AD10: ='Survivalexp RAW 30May-..Jun'!W145 -> 0 | AE10: ='Survivalexp RAW 30May-..Jun'!AD145 -> 0 | AF10: ='Survivalexp RAW 30May-..Jun'!AK145 -> 0 | AG10: ='Survivalexp RAW 30May-..Jun'!AR145 -> 0 | AJ10: ='Survivalexp RAW 30May-..Jun'!I189 -> 0 | AK10: ='Survivalexp RAW 30May-..Jun'!P189 -> 0 | AL10: ='Survivalexp RAW 30May-..Jun'!W189 -> 0 | AM10: ='Survivalexp RAW 30May-..Jun'!AD189 -> 0 | AN10: ='Survivalexp RAW 30May-..Jun'!AK189 -> 0 | AO10: ='Survivalexp RAW 30May-..Jun'!AR189 -> 0 | AR10: ='Survivalexp RAW 30May-..Jun'!#REF! ->  | AS10: ='Survivalexp RAW 30May-..Jun'!#REF! ->  | AT10: ='Survivalexp RAW 30May-..Jun'!#REF! ->  | AU10: ='Survivalexp RAW 30May-..Jun'!#REF! ->  | AV10: ='Survivalexp RAW 30May-..Jun'!#REF! ->  | AW10: ='Survivalexp RAW 30May-..Jun'!#REF! ->  | AZ10: ='Survivalexp RAW 30May-..Jun'!#REF! ->  | BA10: ='Survivalexp RAW 30May-..Jun'!#REF! ->  | BB10: ='Survivalexp RAW 30May-..Jun'!#REF! ->  | BC10: ='Survivalexp RAW 30May-..Jun'!#REF! ->  | BD10: ='Survivalexp RAW 30May-..Jun'!#REF! ->  | BE10: ='Survivalexp RAW 30May-..Jun'!#REF! -> 
B11: est. nr of bacteria | D11: =D9/$D$8 -> 0 | E11: =E9/$E$8 -> 0 | F11: =F9/$F$8 -> 0 | G11: =G9/$G$8 -> 0 | H11: =H9/$H$8 -> 0 | I11: =I9/$I$8 -> 0 | J11: =AVERAGE(D11:I11) -> 0 | K11: =STDEV(D11:I11) -> 0 | L11: =L9/$D$8 -> 0 | M11: =M9/$E$8 -> 0 | N11: =N9/$F$8 -> 0 | O11: =O9/$G$8 -> 0 | P11: =P9/$H$8 -> 0 | Q11: =Q9/$I$8 -> 0 | R11: =AVERAGE(O11:Q11) -> 0 | S11: =STDEV(O11:Q11) -> 0 | T11: =T9/$D$8 -> 0 | U11: =U9/$E$8 -> 0 | V11: =V9/$F$8 -> 0 | W11: =W9/$G$8 -> 0 | X11: =X9/$H$8 -> 0 | Y11: =Y9/$I$8 -> 0 | Z11: =AVERAGE(W11:Y11) -> 0 | AA11: =STDEV(W11:Y11) -> 0 | AB11: =AB9/$D$8 -> 0 | AC11: =AC9/$E$8 -> 0 | AD11: =AD9/$F$8 -> 0 | AE11: =AE9/$G$8 -> 0 | AF11: =AF9/$H$8 -> 0 | AG11: =AG9/$I$8 -> 0 | AH11: =AVERAGE(AE11:AG11) -> 0 | AI11: =STDEV(AE11:AG11) -> 0 | AJ11: =AJ9/$D$8 -> 0 | AK11: =AK9/$E$8 -> 0 | AL11: =AL9/$F$8 -> 0 | AM11: =AM9/$G$8 -> 0 | AN11: =AN9/$H$8 -> 0 | AO11: =AO9/$I$8 -> 0 | AP11: =AVERAGE(AM11:AO11) -> 0 | AQ11: =STDEV(AM11:AO11) -> 0 | AR11: =AR9/$D$8 ->  | AS11: =AS9/$E$8 ->  | AT11: =AT9/$F$8 ->  | AU11: =AU9/$G$8 ->  | AV11: =AV9/$H$8 ->  | AW11: =AW9/$I$8 ->  | AX11: =AVERAGE(AU11:AW11) ->  | AY11: =STDEV(AU11:AW11) ->  | AZ11: =AZ9/$D$8 ->  | BA11: =BA9/$E$8 ->  | BB11: =BB9/$F$8 ->  | BC11: =BC9/$G$8 ->  | BD11: =BD9/$H$8 ->  | BE11: =BE9/$I$8 ->  | BF11: =AVERAGE(BC11:BE11) ->  | BG11: =STDEV(BC11:BE11) -> 
C12: stdev | D12: =D10/$D$8 -> 0 | E12: =E10/$E$8 -> 0 | F12: =F10/$F$8 -> 0 | G12: =G10/$G$8 -> 0 | H12: =H10/$H$8 -> 0 | I12: =I10/$I$8 -> 0 | L12: =L10/$D$8 -> 0 | M12: =M10/$E$8 -> 0 | N12: =N10/$F$8 -> 0 | O12: =O10/$G$8 -> 0 | P12: =P10/$H$8 -> 0 | Q12: =Q10/$I$8 -> 0 | AB12: =AB10/$D$8 -> 0 | AC12: =AC10/$E$8 -> 0 | AD12: =AD10/$F$8 -> 0 | AE12: =AE10/$G$8 -> 0 | AF12: =AF10/$H$8 -> 0 | AG12: =AG10/$I$8 -> 0 | AJ12: =AJ10/$D$8 -> 0 | AK12: =AK10/$E$8 -> 0 | AL12: =AL10/$F$8 -> 0 | AM12: =AM10/$G$8 -> 0 | AN12: =AN10/$H$8 -> 0 | AO12: =AO10/$I$8 -> 0 | AR12: =AR10/$D$8 ->  | AS12: =AS10/$E$8 ->  | AT12: =AT10/$F$8 ->  | AU12: =AU10/$G$8 ->  | AV12: =AV10/$H$8 ->  | AW12: =AW10/$I$8 ->  | AZ12: =AZ10/$D$8 ->  | BA12: =BA10/$E$8 ->  | BB12: =BB10/$F$8 ->  | BC12: =BC10/$G$8 ->  | BD12: =BD10/$H$8 ->  | BE12: =BE10/$I$8 -> 
C13: WT | D13: ='Survivalexp RAW 30May-..Jun'!I17 ->  | E13: ='Survivalexp RAW 30May-..Jun'!P17 ->  | F13: ='Survivalexp RAW 30May-..Jun'!W17 ->  | G13: ='Survivalexp RAW 30May-..Jun'!AD17 ->  | H13: ='Survivalexp RAW 30May-..Jun'!AK17 -> 15 | I13: ='Survivalexp RAW 30May-..Jun'!AR17 -> 1 | L13: ='Survivalexp RAW 30May-..Jun'!I61 ->  | M13: ='Survivalexp RAW 30May-..Jun'!P61 ->  | N13: ='Survivalexp RAW 30May-..Jun'!W61 ->  | O13: ='Survivalexp RAW 30May-..Jun'!AD61 ->  | P13: ='Survivalexp RAW 30May-..Jun'!AK61 ->  | Q13: ='Survivalexp RAW 30May-..Jun'!AR61 -> 73 | T13: ='Survivalexp RAW 30May-..Jun'!I105 ->  | U13: ='Survivalexp RAW 30May-..Jun'!P105 ->  | V13: ='Survivalexp RAW 30May-..Jun'!W105 ->  | W13: ='Survivalexp RAW 30May-..Jun'!AD105 ->  | X13: ='Survivalexp RAW 30May-..Jun'!AK105 ->  | Y13: ='Survivalexp RAW 30May-..Jun'!AR105 -> 45 | AB13: ='Survivalexp RAW 30May-..Jun'!I149 ->  | AC13: ='Survivalexp RAW 30May-..Jun'!P149 ->  | AD13: ='Survivalexp RAW 30May-..Jun'!W149 ->  | AE13: ='Survivalexp RAW 30May-..Jun'!AD149 ->  | AF13: ='Survivalexp RAW 30May-..Jun'!AK149 -> 29 | AG13: ='Survivalexp RAW 30May-..Jun'!AR149 -> 3 | AJ13: ='Survivalexp RAW 30May-..Jun'!I193 ->  | AK13: ='Survivalexp RAW 30May-..Jun'!P193 ->  | AL13: ='Survivalexp RAW 30May-..Jun'!W193 ->  | AM13: ='Survivalexp RAW 30May-..Jun'!AD193 -> 51 | AN13: ='Survivalexp RAW 30May-..Jun'!AK193 -> 28 | AO13: ='Survivalexp RAW 30May-..Jun'!AR193 -> 0 | AR13: ='Survivalexp RAW 30May-..Jun'!I229 ->  | AS13: ='Survivalexp RAW 30May-..Jun'!P229 ->  | AT13: ='Survivalexp RAW 30May-..Jun'!W229 ->  | AU13: ='Survivalexp RAW 30May-..Jun'!AD229 -> 42 | AV13: ='Survivalexp RAW 30May-..Jun'!AK229 -> 4 | AW13: ='Survivalexp RAW 30May-..Jun'!AT229 -> 0 | AZ13: ='Survivalexp RAW 30May-..Jun'!#REF! ->  | BA13: ='Survivalexp RAW 30May-..Jun'!#REF! ->  | BB13: ='Survivalexp RAW 30May-..Jun'!#REF! ->  | BC13: ='Survivalexp RAW 30May-..Jun'!#REF! ->  | BD13: ='Survivalexp RAW 30May-..Jun'!#REF! ->  | BE13: ='Survivalexp RAW 30May-..Jun'!#REF! -> 
C14: stdev | D14: ='Survivalexp RAW 30May-..Jun'!I18 ->  | E14: ='Survivalexp RAW 30May-..Jun'!P18 ->  | F14: ='Survivalexp RAW 30May-..Jun'!W18 ->  | G14: ='Survivalexp RAW 30May-..Jun'!AD18 ->  | H14: ='Survivalexp RAW 30May-..Jun'!AK18 -> 16 | I14: ='Survivalexp RAW 30May-..Jun'!AR18 -> 2 | L14: ='Survivalexp RAW 30May-..Jun'!I62 ->  | M14: ='Survivalexp RAW 30May-..Jun'!P62 ->  | N14: ='Survivalexp RAW 30May-..Jun'!W62 ->  | O14: ='Survivalexp RAW 30May-..Jun'!AD62 ->  | P14: ='Survivalexp RAW 30May-..Jun'!AK62 ->  | Q14: ='Survivalexp RAW 30May-..Jun'!AR62 ->  | T14: ='Survivalexp RAW 30May-..Jun'!I106 ->  | U14: ='Survivalexp RAW 30May-..Jun'!P106 ->  | V14: ='Survivalexp RAW 30May-..Jun'!W106 ->  | W14: ='Survivalexp RAW 30May-..Jun'!AD106 ->  | X14: ='Survivalexp RAW 30May-..Jun'!AK106 ->  | Y14: ='Survivalexp RAW 30May-..Jun'!AR106 -> 22 | AB14: ='Survivalexp RAW 30May-..Jun'!I150 ->  | AC14: ='Survivalexp RAW 30May-..Jun'!P150 ->  | AD14: ='Survivalexp RAW 30May-..Jun'!W150 ->  | AE14: ='Survivalexp RAW 30May-..Jun'!AD150 ->  | AF14: ='Survivalexp RAW 30May-..Jun'!AK150 ->  | AG14: ='Survivalexp RAW 30May-..Jun'!AR150 ->  | AJ14: ='Survivalexp RAW 30May-..Jun'!I194 ->  | AK14: ='Survivalexp RAW 30May-..Jun'!P194 ->  | AL14: ='Survivalexp RAW 30May-..Jun'!W194 ->  | AM14: ='Survivalexp RAW 30May-..Jun'!AD194 ->  | AN14: ='Survivalexp RAW 30May-..Jun'!AK194 -> 45 | AO14: ='Survivalexp RAW 30May-..Jun'!AR194 -> 3 | AR14: ='Survivalexp RAW 30May-..Jun'!I230 ->  | AS14: ='Survivalexp RAW 30May-..Jun'!P230 ->  | AT14: ='Survivalexp RAW 30May-..Jun'!W230 ->  | AU14: ='Survivalexp RAW 30May-..Jun'!AD230 ->  | AV14: ='Survivalexp RAW 30May-..Jun'!AK230 -> 39 | AW14: ='Survivalexp RAW 30May-..Jun'!AT230 -> 0 | AZ14: ='Survivalexp RAW 30May-..Jun'!#REF! ->  | BA14: ='Survivalexp RAW 30May-..Jun'!#REF! ->  | BB14: ='Survivalexp RAW 30May-..Jun'!#REF! ->  | BC14: ='Survivalexp RAW 30May-..Jun'!#REF! ->  | BD14: ='Survivalexp RAW 30May-..Jun'!#REF! ->  | BE14: ='Survivalexp RAW 30May-..Jun'!#REF! -> 
B15: est. nr of bacteria | D15: =D13/$D$8 ->  | E15: =E13/$E$8 ->  | F15: =F13/$F$8 ->  | G15: =G13/$G$8 ->  | H15: =H13/$H$8 -> 150300 | I15: =I13/$I$8 -> 86666.66667 | J15: =H15 -> 150300 | K15: =H16 -> 162477.0189 | L15: =L13/$D$8 ->  | M15: =M13/$E$8 ->  | N15: =N13/$F$8 ->  | O15: =O13/$G$8 ->  | P15: =P13/$H$8 ->  | Q15: =Q13/$I$8 -> 7290000 | R15: =Q15 -> 7290000 | S15: =Q16 ->  | T15: =T13/$D$8 ->  | U15: =U13/$E$8 ->  | V15: =V13/$F$8 ->  | W15: =W13/$G$8 ->  | X15: =X13/$H$8 ->  | Y15: =Y13/$I$8 -> 4526666.667 | Z15: =Y15 -> 4526666.667 | AA15: =Y16 -> 2227400.585 | AB15: =AB13/$D$8 ->  | AC15: =AC13/$E$8 ->  | AD15: =AD13/$F$8 ->  | AE15: =AE13/$G$8 ->  | AF15: =AF13/$H$8 -> 291000 | AG15: =AG13/$I$8 -> 290000 | AH15: =AVERAGE(AF15:AG15) -> 290500 | AI15: =AF16 ->  | AJ15: =AJ13/$D$8 ->  | AK15: =AK13/$E$8 ->  | AL15: =AL13/$F$8 ->  | AM15: =AM13/$G$8 -> 51000 | AN15: =AN13/$H$8 -> 284000 | AO15: =AO13/$I$8 -> 40000 | AP15: =AO15 -> 40000 | AQ15: =AO16 -> 264548.1268 | AR15: =AR13/$D$8 ->  | AS15: =AS13/$E$8 ->  | AT15: =AT13/$F$8 ->  | AU15: =AU13/$G$8 -> 41750 | AV15: =AV13/$H$8 -> 35000 | AW15: =AW13/$I$8 -> 0 | AX15: =AV15 -> 35000 | AY15: =AV16 -> 394536.1083 | AZ15: =AZ13/$D$8 ->  | BA15: =BA13/$E$8 ->  | BB15: =BB13/$F$8 ->  | BC15: =BC13/$G$8 ->  | BD15: =BD13/$H$8 ->  | BE15: =BE13/$I$8 ->  | BF15: =AVERAGE(BC15:BD15) ->  | BG15: =STDEV(BC15:BD15) -> 
C16: stdev | D16: =D14/$D$8 ->  | E16: =E14/$E$8 ->  | F16: =F14/$F$8 ->  | G16: =G14/$G$8 ->  | H16: =H14/$H$8 -> 162477.0189 | I16: =I14/$I$8 -> 217830.0813 | L16: =L14/$D$8 ->  | M16: =M14/$E$8 ->  | N16: =N14/$F$8 ->  | O16: =O14/$G$8 ->  | P16: =P14/$H$8 ->  | Q16: =Q14/$I$8 ->  | T16: =T14/$D$8 ->  | U16: =U14/$E$8 ->  | V16: =V14/$F$8 ->  | W16: =W14/$G$8 ->  | X16: =X14/$H$8 ->  | Y16: =Y14/$I$8 -> 2227400.585 | AB16: =AB14/$D$8 ->  | AC16: =AC14/$E$8 ->  | AD16: =AD14/$F$8 ->  | AE16: =AE14/$G$8 ->  | AF16: =AF14/$H$8 ->  | AG16: =AG14/$I$8 ->  | AJ16: =AJ14/$D$8 ->  | AK16: =AK14/$E$8 ->  | AL16: =AL14/$F$8 ->  | AM16: =AM14/$G$8 ->  | AN16: =AN14/$H$8 -> 453000.2394 | AO16: =AO14/$I$8 -> 264548.1268 | AR16: =AR14/$D$8 ->  | AS16: =AS14/$E$8 ->  | AT16: =AT14/$F$8 ->  | AU16: =AU14/$G$8 ->  | AV16: =AV14/$H$8 -> 394536.1083 | AW16: =AW14/$I$8 -> 0 | AZ16: =AZ14/$D$8 ->  | BA16: =BA14/$E$8 ->  | BB16: =BB14/$F$8 ->  | BC16: =BC14/$G$8 ->  | BD16: =BD14/$H$8 ->  | BE16: =BE14/$I$8 -> 
B17: 2213F - | C17: p+0 | D17: ='Survivalexp RAW 30May-..Jun'!I22 ->  | E17: ='Survivalexp RAW 30May-..Jun'!P22 ->  | F17: ='Survivalexp RAW 30May-..Jun'!W22 ->  | G17: ='Survivalexp RAW 30May-..Jun'!AD22 ->  | H17: ='Survivalexp RAW 30May-..Jun'!AK22 -> 11 | I17: ='Survivalexp RAW 30May-..Jun'!AR22 -> 1 | L17: ='Survivalexp RAW 30May-..Jun'!I66 ->  | M17: ='Survivalexp RAW 30May-..Jun'!P66 ->  | N17: ='Survivalexp RAW 30May-..Jun'!W66 ->  | O17: ='Survivalexp RAW 30May-..Jun'!AD66 ->  | P17: ='Survivalexp RAW 30May-..Jun'!AK66 ->  | Q17: ='Survivalexp RAW 30May-..Jun'!AR66 -> 32 | T17: ='Survivalexp RAW 30May-..Jun'!I110 ->  | U17: ='Survivalexp RAW 30May-..Jun'!P110 ->  | V17: ='Survivalexp RAW 30May-..Jun'!W110 ->  | W17: ='Survivalexp RAW 30May-..Jun'!AD110 ->  | X17: ='Survivalexp RAW 30May-..Jun'!AK110 -> 45 | Y17: ='Survivalexp RAW 30May-..Jun'!AR110 -> 9 | AB17: ='Survivalexp RAW 30May-..Jun'!I154 ->  | AC17: ='Survivalexp RAW 30May-..Jun'!P154 ->  | AD17: ='Survivalexp RAW 30May-..Jun'!W154 -> 69 | AE17: ='Survivalexp RAW 30May-..Jun'!AD154 -> 22 | AF17: ='Survivalexp RAW 30May-..Jun'!AK154 -> 3 | AG17: ='Survivalexp RAW 30May-..Jun'!AR154 -> 0 | AJ17: ='Survivalexp RAW 30May-..Jun'!I198 ->  | AK17: ='Survivalexp RAW 30May-..Jun'!P198 ->  | AL17: ='Survivalexp RAW 30May-..Jun'!W198 -> 59 | AM17: ='Survivalexp RAW 30May-..Jun'!AD198 -> 5 | AN17: ='Survivalexp RAW 30May-..Jun'!AK198 -> 0 | AO17: ='Survivalexp RAW 30May-..Jun'!AR198 -> 0 | AR17: ='Survivalexp RAW 30May-..Jun'!I234 ->  | AS17: ='Survivalexp RAW 30May-..Jun'!P234 -> 67 | AT17: ='Survivalexp RAW 30May-..Jun'!W234 -> 14 | AU17: ='Survivalexp RAW 30May-..Jun'!AD234 -> 2 | AV17: ='Survivalexp RAW 30May-..Jun'!AK234 -> 0 | AW17: ='Survivalexp RAW 30May-..Jun'!AR234 -> 0 | AZ17: ='Survivalexp RAW 30May-..Jun'!#REF! ->  | BA17: ='Survivalexp RAW 30May-..Jun'!#REF! ->  | BB17: ='Survivalexp RAW 30May-..Jun'!#REF! ->  | BC17: ='Survivalexp RAW 30May-..Jun'!#REF! ->  | BD17: ='Survivalexp RAW 30May-..Jun'!#REF! ->  | BE17: ='Survivalexp RAW 30May-..Jun'!#REF! -> 
C18: stdev | D18: ='Survivalexp RAW 30May-..Jun'!I23 ->  | E18: ='Survivalexp RAW 30May-..Jun'!P23 ->  | F18: ='Survivalexp RAW 30May-..Jun'!W23 ->  | G18: ='Survivalexp RAW 30May-..Jun'!AD23 ->  | H18: ='Survivalexp RAW 30May-..Jun'!AK23 -> 11 | I18: ='Survivalexp RAW 30May-..Jun'!AR23 -> 4 | L18: ='Survivalexp RAW 30May-..Jun'!I67 ->  | M18: ='Survivalexp RAW 30May-..Jun'!P67 ->  | N18: ='Survivalexp RAW 30May-..Jun'!W67 ->  | O18: ='Survivalexp RAW 30May-..Jun'!AD67 ->  | P18: ='Survivalexp RAW 30May-..Jun'!AK67 ->  | Q18: ='Survivalexp RAW 30May-..Jun'!AR67 -> 0 | T18: ='Survivalexp RAW 30May-..Jun'!I111 ->  | U18: ='Survivalexp RAW 30May-..Jun'!P111 ->  | V18: ='Survivalexp RAW 30May-..Jun'!W111 ->  | W18: ='Survivalexp RAW 30May-..Jun'!AD111 ->  | X18: ='Survivalexp RAW 30May-..Jun'!AK111 ->  | Y18: ='Survivalexp RAW 30May-..Jun'!AR111 -> 10 | AB18: ='Survivalexp RAW 30May-..Jun'!I155 ->  | AC18: ='Survivalexp RAW 30May-..Jun'!P155 ->  | AD18: ='Survivalexp RAW 30May-..Jun'!W155 ->  | AE18: ='Survivalexp RAW 30May-..Jun'!AD155 -> 13 | AF18: ='Survivalexp RAW 30May-..Jun'!AK155 -> 5 | AG18: ='Survivalexp RAW 30May-..Jun'!AR155 -> 1 | AJ18: ='Survivalexp RAW 30May-..Jun'!I199 ->  | AK18: ='Survivalexp RAW 30May-..Jun'!P199 ->  | AL18: ='Survivalexp RAW 30May-..Jun'!W199 -> 46 | AM18: ='Survivalexp RAW 30May-..Jun'!AD199 -> 5 | AN18: ='Survivalexp RAW 30May-..Jun'!AK199 -> 1 | AO18: ='Survivalexp RAW 30May-..Jun'!AR199 -> 0 | AR18: ='Survivalexp RAW 30May-..Jun'!I235 ->  | AS18: ='Survivalexp RAW 30May-..Jun'!P235 ->  | AT18: ='Survivalexp RAW 30May-..Jun'!W235 -> 42 | AU18: ='Survivalexp RAW 30May-..Jun'!AD235 -> 9 | AV18: ='Survivalexp RAW 30May-..Jun'!AK235 -> 62 | AW18: ='Survivalexp RAW 30May-..Jun'!AR235 -> 0 | AZ18: ='Survivalexp RAW 30May-..Jun'!#REF! ->  | BA18: ='Survivalexp RAW 30May-..Jun'!#REF! ->  | BB18: ='Survivalexp RAW 30May-..Jun'!#REF! ->  | BC18: ='Survivalexp RAW 30May-..Jun'!#REF! ->  | BD18: ='Survivalexp RAW 30May-..Jun'!#REF! ->  | BE18: ='Survivalexp RAW 30May-..Jun'!#REF! -> 
B19: est. nr of bacteria | D19: =D17/$D$8 ->  | E19: =E17/$E$8 ->  | F19: =F17/$F$8 ->  | G19: =G17/$G$8 ->  | H19: =H17/$H$8 -> 111333.3333 | I19: =I17/$I$8 -> 146666.6667 | J19: =H19 -> 111333.3333 | K19: =H20 -> 108866.7743 | L19: =L17/$D$8 ->  | M19: =M17/$E$8 ->  | N19: =N17/$F$8 ->  | O19: =O17/$G$8 ->  | P19: =P17/$H$8 ->  | Q19: =Q17/$I$8 -> 3240000 | R19: =Q19 -> 3240000 | S19: =Q20 -> 0 | T19: =T17/$D$8 ->  | U19: =U17/$E$8 ->  | V19: =V17/$F$8 ->  | W19: =W17/$G$8 ->  | X19: =X17/$H$8 -> 448000 | Y19: =Y17/$I$8 -> 933333.3333 | Z19: =Y19 -> 933333.3333 | AA19: =Y20 -> 984984.5814 | AB19: =AB17/$D$8 ->  | AC19: =AC17/$E$8 ->  | AD19: =AD17/$F$8 -> 6860 | AE19: =AE17/$G$8 -> 21866.66667 | AF19: =AF17/$H$8 -> 26666.66667 | AG19: =AG17/$I$8 -> 20000 | AH19: =AE19 -> 21866.66667 | AI19: =AE20 -> 13414.08536 | AJ19: =AJ17/$D$8 ->  | AK19: =AK17/$E$8 ->  | AL19: =AL17/$F$8 -> 5860 | AM19: =AM17/$G$8 -> 5400 | AN19: =AN17/$H$8 -> 1333.333333 | AO19: =AO17/$I$8 -> 6666.666667 | AP19: =AL19 -> 5860 | AQ19: =AL20 -> 4641.633691 | AR19: =AR17/$D$8 ->  | AS19: =AS17/$E$8 -> 674 | AT19: =AT17/$F$8 -> 1430 | AU19: =AU17/$G$8 -> 1700 | AV19: =AV17/$H$8 -> 1000 | AW19: =AW17/$I$8 -> 0 | AX19: =AT19 -> 1430 | AY19: =AT20 -> 4237.749362 | AZ19: =AZ17/$D$8 ->  | BA19: =BA17/$E$8 ->  | BB19: =BB17/$F$8 ->  | BC19: =BC17/$G$8 ->  | BD19: =BD17/$H$8 ->  | BE19: =BE17/$I$8 ->  | BF19: =AVERAGE(BA19:BD19) ->  | BG19: =STDEV(BA19:BD19) -> 
C20: stdev | D20: =D18/$D$8 ->  | E20: =E18/$E$8 ->  | F20: =F18/$F$8 ->  | G20: =G18/$G$8 ->  | H20: =H18/$H$8 -> 108866.7743 | I20: =I18/$I$8 -> 398712.2054 | L20: =L18/$D$8 ->  | M20: =M18/$E$8 ->  | N20: =N18/$F$8 ->  | O20: =O18/$G$8 ->  | P20: =P18/$H$8 ->  | Q20: =Q18/$I$8 -> 0 | T20: =T18/$D$8 ->  | U20: =U18/$E$8 ->  | V20: =V18/$F$8 ->  | W20: =W18/$G$8 ->  | X20: =X18/$H$8 ->  | Y20: =Y18/$I$8 -> 984984.5814 | AB20: =AB18/$D$8 ->  | AC20: =AC18/$E$8 ->  | AD20: =AD18/$F$8 ->  | AE20: =AE18/$G$8 -> 13414.08536 | AF20: =AF18/$H$8 -> 48902.34348 | AG20: =AG18/$I$8 -> 54772.25575 | AJ20: =AJ18/$D$8 ->  | AK20: =AK18/$E$8 ->  | AL20: =AL18/$F$8 -> 4641.633691 | AM20: =AM18/$G$8 -> 5226.284513 | AN20: =AN18/$H$8 -> 8944.27191 | AO20: =AO18/$I$8 -> 44721.35955 | AR20: =AR18/$D$8 ->  | AS20: =AS18/$E$8 ->  | AT20: =AT18/$F$8 -> 4237.749362 | AU20: =AU18/$G$8 -> 8918.350018 | AV20: =AV18/$H$8 -> 618963.7958 | AW20: =AW18/$I$8 -> 0 | AZ20: =AZ18/$D$8 ->  | BA20: =BA18/$E$8 ->  | BB20: =BB18/$F$8 ->  | BC20: =BC18/$G$8 ->  | BD20: =BD18/$H$8 ->  | BE20: =BE18/$I$8 -> 
C21: p+3 | D21: ='Survivalexp RAW 30May-..Jun'!I27 ->  | E21: ='Survivalexp RAW 30May-..Jun'!P27 ->  | F21: ='Survivalexp RAW 30May-..Jun'!W27 ->  | G21: ='Survivalexp RAW 30May-..Jun'!AD27 -> 30 | H21: ='Survivalexp RAW 30May-..Jun'!AK27 -> 8 | I21: ='Survivalexp RAW 30May-..Jun'!AR27 -> 1 | L21: ='Survivalexp RAW 30May-..Jun'!I71 ->  | M21: ='Survivalexp RAW 30May-..Jun'!P71 ->  | N21: ='Survivalexp RAW 30May-..Jun'!W71 ->  | O21: ='Survivalexp RAW 30May-..Jun'!AD71 ->  | P21: ='Survivalexp RAW 30May-..Jun'!AK71 ->  | Q21: ='Survivalexp RAW 30May-..Jun'!AR71 -> 76 | T21: ='Survivalexp RAW 30May-..Jun'!I115 ->  | U21: ='Survivalexp RAW 30May-..Jun'!P115 ->  | V21: ='Survivalexp RAW 30May-..Jun'!W115 ->  | W21: ='Survivalexp RAW 30May-..Jun'!AD115 ->  | X21: ='Survivalexp RAW 30May-..Jun'!AK115 ->  | Y21: ='Survivalexp RAW 30May-..Jun'!AR115 -> 10 | AB21: ='Survivalexp RAW 30May-..Jun'!I159 ->  | AC21: ='Survivalexp RAW 30May-..Jun'!P159 ->  | AD21: ='Survivalexp RAW 30May-..Jun'!W159 -> 41 | AE21: ='Survivalexp RAW 30May-..Jun'!AD159 -> 4 | AF21: ='Survivalexp RAW 30May-..Jun'!AK159 -> 1 | AG21: ='Survivalexp RAW 30May-..Jun'!AR159 -> 0 | AJ21: ='Survivalexp RAW 30May-..Jun'!I203 ->  | AK21: ='Survivalexp RAW 30May-..Jun'!P203 -> 58 | AL21: ='Survivalexp RAW 30May-..Jun'!W203 -> 7 | AM21: ='Survivalexp RAW 30May-..Jun'!AD203 -> 1 | AN21: ='Survivalexp RAW 30May-..Jun'!AK203 -> 0 | AO21: ='Survivalexp RAW 30May-..Jun'!AR203 -> 0 | AR21: ='Survivalexp RAW 30May-..Jun'!I239 ->  | AS21: ='Survivalexp RAW 30May-..Jun'!P239 -> 27 | AT21: ='Survivalexp RAW 30May-..Jun'!W239 -> 5 | AU21: ='Survivalexp RAW 30May-..Jun'!AD239 -> 1 | AV21: ='Survivalexp RAW 30May-..Jun'!AK239 -> 0 | AW21: ='Survivalexp RAW 30May-..Jun'!AR239 -> 0 | AZ21: ='Survivalexp RAW 30May-..Jun'!#REF! ->  | BA21: ='Survivalexp RAW 30May-..Jun'!#REF! ->  | BB21: ='Survivalexp RAW 30May-..Jun'!#REF! ->  | BC21: ='Survivalexp RAW 30May-..Jun'!#REF! ->  | BD21: ='Survivalexp RAW 30May-..Jun'!#REF! ->  | BE21: ='Survivalexp RAW 30May-..Jun'!#REF! -> 
C22: stdev | D22: ='Survivalexp RAW 30May-..Jun'!I28 ->  | E22: ='Survivalexp RAW 30May-..Jun'!P28 ->  | F22: ='Survivalexp RAW 30May-..Jun'!W28 ->  | G22: ='Survivalexp RAW 30May-..Jun'!AD28 ->  | H22: ='Survivalexp RAW 30May-..Jun'!AK28 -> 9 | I22: ='Survivalexp RAW 30May-..Jun'!AR28 -> 3 | L22: ='Survivalexp RAW 30May-..Jun'!I72 ->  | M22: ='Survivalexp RAW 30May-..Jun'!P72 ->  | N22: ='Survivalexp RAW 30May-..Jun'!W72 ->  | O22: ='Survivalexp RAW 30May-..Jun'!AD72 ->  | P22: ='Survivalexp RAW 30May-..Jun'!AK72 ->  | Q22: ='Survivalexp RAW 30May-..Jun'!AR72 ->  | T22: ='Survivalexp RAW 30May-..Jun'!I116 ->  | U22: ='Survivalexp RAW 30May-..Jun'!P116 ->  | V22: ='Survivalexp RAW 30May-..Jun'!W116 ->  | W22: ='Survivalexp RAW 30May-..Jun'!AD116 ->  | X22: ='Survivalexp RAW 30May-..Jun'!AK116 ->  | Y22: ='Survivalexp RAW 30May-..Jun'!AR116 ->  | AB22: ='Survivalexp RAW 30May-..Jun'!I160 ->  | AC22: ='Survivalexp RAW 30May-..Jun'!P160 ->  | AD22: ='Survivalexp RAW 30May-..Jun'!W160 -> 17 | AE22: ='Survivalexp RAW 30May-..Jun'!AD160 -> 5 | AF22: ='Survivalexp RAW 30May-..Jun'!AK160 -> 2 | AG22: ='Survivalexp RAW 30May-..Jun'!AR160 -> 0 | AJ22: ='Survivalexp RAW 30May-..Jun'!I204 ->  | AK22: ='Survivalexp RAW 30May-..Jun'!P204 -> 37 | AL22: ='Survivalexp RAW 30May-..Jun'!W204 -> 7 | AM22: ='Survivalexp RAW 30May-..Jun'!AD204 -> 3 | AN22: ='Survivalexp RAW 30May-..Jun'!AK204 -> 0 | AO22: ='Survivalexp RAW 30May-..Jun'!AR204 -> 0 | AR22: ='Survivalexp RAW 30May-..Jun'!I240 ->  | AS22: ='Survivalexp RAW 30May-..Jun'!P240 -> 22 | AT22: ='Survivalexp RAW 30May-..Jun'!W240 -> 5 | AU22: ='Survivalexp RAW 30May-..Jun'!AD240 -> 1 | AV22: ='Survivalexp RAW 30May-..Jun'!AK240 -> 0 | AW22: ='Survivalexp RAW 30May-..Jun'!AR240 -> 0 | AZ22: ='Survivalexp RAW 30May-..Jun'!#REF! ->  | BA22: ='Survivalexp RAW 30May-..Jun'!#REF! ->  | BB22: ='Survivalexp RAW 30May-..Jun'!#REF! ->  | BC22: ='Survivalexp RAW 30May-..Jun'!#REF! ->  | BD22: ='Survivalexp RAW 30May-..Jun'!#REF! ->  | BE22: ='Survivalexp RAW 30May-..Jun'!#REF! -> 
B23: est. nr of bacteria | D23: =D21/$D$8 ->  | E23: =E21/$E$8 ->  | F23: =F21/$F$8 ->  | G23: =G21/$G$8 -> 30400 | H23: =H21/$H$8 -> 82666.66667 | I23: =I21/$I$8 -> 120000 | J23: =H23 -> 82666.66667 | K23: =H24 -> 91077.16856 | L23: =L21/$D$8 ->  | M23: =M21/$E$8 ->  | N23: =N21/$F$8 ->  | O23: =O21/$G$8 ->  | P23: =P21/$H$8 ->  | Q23: =Q21/$I$8 -> 7560000 | R23: =Q23 -> 7560000 | S23: =Q24 ->  | T23: =T21/$D$8 ->  | U23: =U21/$E$8 ->  | V23: =V21/$F$8 ->  | W23: =W21/$G$8 ->  | X23: =X21/$H$8 ->  | Y23: =Y21/$I$8 -> 980000 | Z23: =Y23 -> 980000 | AA23: =Y24 ->  | AB23: =AB21/$D$8 ->  | AC23: =AC21/$E$8 ->  | AD23: =AD21/$F$8 -> 4113.333333 | AE23: =AE21/$G$8 -> 3933.333333 | AF23: =AF21/$H$8 -> 5333.333333 | AG23: =AG21/$I$8 -> 0 | AH23: =AD23 -> 4113.333333 | AI23: =AD24 -> 1710.717697 | AJ23: =AJ21/$D$8 ->  | AK23: =AK21/$E$8 -> 581.3333333 | AL23: =AL21/$F$8 -> 660 | AM23: =AM21/$G$8 -> 1066.666667 | AN23: =AN21/$H$8 -> 0 | AO23: =AO21/$I$8 -> 0 | AP23: =AK23 -> 581.3333333 | AQ23: =AK24 -> 368.853095 | AR23: =AR21/$D$8 ->  | AS23: =AS21/$E$8 -> 266 | AT23: =AT21/$F$8 -> 480 | AU23: =AU21/$G$8 -> 800 | AV23: =AV21/$H$8 -> 0 | AW23: =AW21/$I$8 -> 0 | AX23: =AS23 -> 266 | AY23: =AS24 -> 223.9783513 | AZ23: =AZ21/$D$8 ->  | BA23: =BA21/$E$8 ->  | BB23: =BB21/$F$8 ->  | BC23: =BC21/$G$8 ->  | BD23: =BD21/$H$8 ->  | BE23: =BE21/$I$8 ->  | BF23: =AVERAGE(BA23:BC23) ->  | BG23: =STDEV(BA23:BC23) -> 
C24: stdev | D24: =D22/$D$8 ->  | E24: =E22/$E$8 ->  | F24: =F22/$F$8 ->  | G24: =G22/$G$8 ->  | H24: =H22/$H$8 -> 91077.16856 | I24: =I22/$I$8 -> 284760.7289 | L24: =L22/$D$8 ->  | M24: =M22/$E$8 ->  | N24: =N22/$F$8 ->  | O24: =O22/$G$8 ->  | P24: =P22/$H$8 ->  | Q24: =Q22/$I$8 ->  | T24: =T22/$D$8 ->  | U24: =U22/$E$8 ->  | V24: =V22/$F$8 ->  | W24: =W22/$G$8 ->  | X24: =X22/$H$8 ->  | Y24: =Y22/$I$8 ->  | AB24: =AB22/$D$8 ->  | AC24: =AC22/$E$8 ->  | AD24: =AD22/$F$8 -> 1710.717697 | AE24: =AE22/$G$8 -> 5009.661607 | AF24: =AF22/$H$8 -> 17888.54382 | AG24: =AG22/$I$8 -> 0 | AJ24: =AJ22/$D$8 ->  | AK24: =AK22/$E$8 -> 368.853095 | AL24: =AL22/$F$8 -> 683.0510772 | AM24: =AM22/$G$8 -> 3368.138127 | AN24: =AN22/$H$8 -> 0 | AO24: =AO22/$I$8 -> 0 | AR24: =AR22/$D$8 ->  | AS24: =AS22/$E$8 -> 223.9783513 | AT24: =AT22/$F$8 -> 514.5275826 | AU24: =AU22/$G$8 -> 994.936153 | AV24: =AV22/$H$8 -> 0 | AW24: =AW22/$I$8 -> 0 | AZ24: =AZ22/$D$8 ->  | BA24: =BA22/$E$8 ->  | BB24: =BB22/$F$8 ->  | BC24: =BC22/$G$8 ->  | BD24: =BD22/$H$8 ->  | BE24: =BE22/$I$8 -> 
B25: 2213F A | C25: p+0 | D25: ='Survivalexp RAW 30May-..Jun'!I32 ->  | E25: ='Survivalexp RAW 30May-..Jun'!P32 ->  | F25: ='Survivalexp RAW 30May-..Jun'!W32 ->  | G25: ='Survivalexp RAW 30May-..Jun'!AD32 -> 41 | H25: ='Survivalexp RAW 30May-..Jun'!AK32 -> 7 | I25: ='Survivalexp RAW 30May-..Jun'!AR32 -> 1 | L25: ='Survivalexp RAW 30May-..Jun'!I76 ->  | M25: ='Survivalexp RAW 30May-..Jun'!P76 ->  | N25: ='Survivalexp RAW 30May-..Jun'!W76 ->  | O25: ='Survivalexp RAW 30May-..Jun'!AD76 ->  | P25: ='Survivalexp RAW 30May-..Jun'!AK76 ->  | Q25: ='Survivalexp RAW 30May-..Jun'!AR76 -> 39 | T25: ='Survivalexp RAW 30May-..Jun'!I120 ->  | U25: ='Survivalexp RAW 30May-..Jun'!P120 ->  | V25: ='Survivalexp RAW 30May-..Jun'!W120 ->  | W25: ='Survivalexp RAW 30May-..Jun'!AD120 ->  | X25: ='Survivalexp RAW 30May-..Jun'!AK120 -> 49 | Y25: ='Survivalexp RAW 30May-..Jun'!AR120 -> 7 | AB25: ='Survivalexp RAW 30May-..Jun'!I164 ->  | AC25: ='Survivalexp RAW 30May-..Jun'!P164 ->  | AD25: ='Survivalexp RAW 30May-..Jun'!W164 -> 56 | AE25: ='Survivalexp RAW 30May-..Jun'!AD164 -> 6 | AF25: ='Survivalexp RAW 30May-..Jun'!AK164 -> 1 | AG25: ='Survivalexp RAW 30May-..Jun'!AR164 -> 0 | AJ25: ='Survivalexp RAW 30May-..Jun'!I208 ->  | AK25: ='Survivalexp RAW 30May-..Jun'!P208 ->  | AL25: ='Survivalexp RAW 30May-..Jun'!W208 -> 15 | AM25: ='Survivalexp RAW 30May-..Jun'!AD208 -> 3 | AN25: ='Survivalexp RAW 30May-..Jun'!AK208 -> 0 | AO25: ='Survivalexp RAW 30May-..Jun'!AR208 -> 0 | AR25: ='Survivalexp RAW 30May-..Jun'!I244 ->  | AS25: ='Survivalexp RAW 30May-..Jun'!P244 -> 40 | AT25: ='Survivalexp RAW 30May-..Jun'!W244 -> 5 | AU25: ='Survivalexp RAW 30May-..Jun'!AD244 -> 0 | AV25: ='Survivalexp RAW 30May-..Jun'!AK244 -> 0 | AW25: ='Survivalexp RAW 30May-..Jun'!AR244 -> 0 | AZ25: ='Survivalexp RAW 30May-..Jun'!I266 ->  | BA25: ='Survivalexp RAW 30May-..Jun'!P266 -> 18 | BB25: ='Survivalexp RAW 30May-..Jun'!W266 -> 1.6 | BC25: ='Survivalexp RAW 30May-..Jun'!AD266 -> 0 | BD25: ='Survivalexp RAW 30May-..Jun'!AK266 -> 0 | BE25: ='Survivalexp RAW 30May-..Jun'!AR266 -> 0
C26: stdev | D26: ='Survivalexp RAW 30May-..Jun'!I33 ->  | E26: ='Survivalexp RAW 30May-..Jun'!P33 ->  | F26: ='Survivalexp RAW 30May-..Jun'!W33 ->  | G26: ='Survivalexp RAW 30May-..Jun'!AD33 -> 15 | H26: ='Survivalexp RAW 30May-..Jun'!AK33 -> 5 | I26: ='Survivalexp RAW 30May-..Jun'!AR33 -> 2 | L26: ='Survivalexp RAW 30May-..Jun'!I77 ->  | M26: ='Survivalexp RAW 30May-..Jun'!P77 ->  | N26: ='Survivalexp RAW 30May-..Jun'!W77 ->  | O26: ='Survivalexp RAW 30May-..Jun'!AD77 ->  | P26: ='Survivalexp RAW 30May-..Jun'!AK77 ->  | Q26: ='Survivalexp RAW 30May-..Jun'!AR77 -> 0 | T26: ='Survivalexp RAW 30May-..Jun'!I121 ->  | U26: ='Survivalexp RAW 30May-..Jun'!P121 ->  | V26: ='Survivalexp RAW 30May-..Jun'!W121 ->  | W26: ='Survivalexp RAW 30May-..Jun'!AD121 ->  | X26: ='Survivalexp RAW 30May-..Jun'!AK121 ->  | Y26: ='Survivalexp RAW 30May-..Jun'!AR121 -> 10 | AB26: ='Survivalexp RAW 30May-..Jun'!I165 ->  | AC26: ='Survivalexp RAW 30May-..Jun'!P165 ->  | AD26: ='Survivalexp RAW 30May-..Jun'!W165 -> 14 | AE26: ='Survivalexp RAW 30May-..Jun'!AD165 -> 6 | AF26: ='Survivalexp RAW 30May-..Jun'!AK165 -> 2 | AG26: ='Survivalexp RAW 30May-..Jun'!AR165 -> 0 | AJ26: ='Survivalexp RAW 30May-..Jun'!I209 ->  | AK26: ='Survivalexp RAW 30May-..Jun'!P209 ->  | AL26: ='Survivalexp RAW 30May-..Jun'!W209 -> 16 | AM26: ='Survivalexp RAW 30May-..Jun'!AD209 -> 12 | AN26: ='Survivalexp RAW 30May-..Jun'!AK209 -> 0 | AO26: ='Survivalexp RAW 30May-..Jun'!AR209 -> 0 | AR26: ='Survivalexp RAW 30May-..Jun'!I245 ->  | AS26: ='Survivalexp RAW 30May-..Jun'!P245 -> 20 | AT26: ='Survivalexp RAW 30May-..Jun'!W245 -> 6 | AU26: ='Survivalexp RAW 30May-..Jun'!AD245 -> 1 | AV26: ='Survivalexp RAW 30May-..Jun'!AK245 -> 0 | AW26: ='Survivalexp RAW 30May-..Jun'!AR245 -> 0 | AZ26: ='Survivalexp RAW 30May-..Jun'!I267 ->  | BA26: ='Survivalexp RAW 30May-..Jun'!P267 -> 13.4265233 | BB26: ='Survivalexp RAW 30May-..Jun'!W267 -> 2.812133892 | BC26: ='Survivalexp RAW 30May-..Jun'!AD267 -> 0 | BD26: ='Survivalexp RAW 30May-..Jun'!AK267 -> 0 | BE26: ='Survivalexp RAW 30May-..Jun'!AR267 -> 0
B27: est. nr of bacteria | D27: =D25/$D$8 ->  | E27: =E25/$E$8 ->  | F27: =F25/$F$8 ->  | G27: =G25/$G$8 -> 41433.33333 | H27: =H25/$H$8 -> 74666.66667 | I27: =I25/$I$8 -> 86666.66667 | J27: =G27 -> 41433.33333 | K27: =G28 -> 14903.34698 | L27: =L25/$D$8 ->  | M27: =M25/$E$8 ->  | N27: =N25/$F$8 ->  | O27: =O25/$G$8 ->  | P27: =P25/$H$8 ->  | Q27: =Q25/$I$8 -> 3853333.333 | R27: =Q27 -> 3853333.333 | S27: =Q28 -> 0 | T27: =T25/$D$8 ->  | U27: =U25/$E$8 ->  | V27: =V25/$F$8 ->  | W27: =W25/$G$8 ->  | X27: =X25/$H$8 -> 488000 | Y27: =Y25/$I$8 -> 706666.6667 | Z27: =Y27 -> 706666.6667 | AA27: =Y28 -> 987606.3167 | AB27: =AB25/$D$8 ->  | AC27: =AC25/$E$8 ->  | AD27: =AD25/$F$8 -> 5553.333333 | AE27: =AE25/$G$8 -> 5800 | AF27: =AF25/$H$8 -> 10000 | AG27: =AG25/$I$8 -> 6666.666667 | AH27: =AD27 -> 5553.333333 | AI27: =AD28 -> 1447.595001 | AJ27: =AJ25/$D$8 ->  | AK27: =AK25/$E$8 ->  | AL27: =AL25/$F$8 -> 1528.888889 | AM27: =AM25/$G$8 -> 2666.666667 | AN27: =AN25/$H$8 -> 666.6666667 | AO27: =AO25/$I$8 -> 6666.666667 | AP27: =AL27 -> 1528.888889 | AQ27: =AL28 -> 1571 | AR27: =AR25/$D$8 ->  | AS27: =AS25/$E$8 -> 400.6666667 | AT27: =AT25/$F$8 -> 520 | AU27: =AU25/$G$8 -> 200 | AV27: =AV25/$H$8 -> 0 | AW27: =AW25/$I$8 -> 0 | AX27: =AS27 -> 400.6666667 | AY27: =AS28 -> 204.8963707 | AZ27: =AZ25/$D$8 ->  | BA27: =BA25/$E$8 -> 180 | BB27: =BB25/$F$8 -> 160 | BC27: =BC25/$G$8 -> 0 | BD27: =BD25/$H$8 -> 0 | BE27: =BE25/$I$8 -> 0 | BF27: =BA27 -> 180 | BG27: =BA28 -> 134.265233
C28: stdev | D28: =D26/$D$8 ->  | E28: =E26/$E$8 ->  | F28: =F26/$F$8 ->  | G28: =G26/$G$8 -> 14903.34698 | H28: =H26/$H$8 -> 46231.53892 | I28: =I26/$I$8 -> 222104.2611 | L28: =L26/$D$8 ->  | M28: =M26/$E$8 ->  | N28: =N26/$F$8 ->  | O28: =O26/$G$8 ->  | P28: =P26/$H$8 ->  | Q28: =Q26/$I$8 -> 0 | T28: =T26/$D$8 ->  | U28: =U26/$E$8 ->  | V28: =V26/$F$8 ->  | W28: =W26/$G$8 ->  | X28: =X26/$H$8 ->  | Y28: =Y26/$I$8 -> 987606.3167 | AB28: =AB26/$D$8 ->  | AC28: =AC26/$E$8 ->  | AD28: =AD26/$F$8 -> 1447.595001 | AE28: =AE26/$G$8 -> 6117.307208 | AF28: =AF26/$H$8 -> 22838.73622 | AG28: =AG26/$I$8 -> 44721.35955 | AJ28: =AJ26/$D$8 ->  | AK28: =AK26/$E$8 ->  | AL28: =AL26/$F$8 -> 1570.818722 | AM28: =AM26/$G$8 -> 11983.61302 | AN28: =AN26/$H$8 -> 4472.135955 | AO28: =AO26/$I$8 -> 44721.35955 | AR28: =AR26/$D$8 ->  | AS28: =AS26/$E$8 -> 204.8963707 | AT28: =AT26/$F$8 -> 555.3693751 | AU28: =AU26/$G$8 -> 994.936153 | AV28: =AV26/$H$8 -> 0 | AW28: =AW26/$I$8 -> 0 | AZ28: =AZ26/$D$8 ->  | BA28: =BA26/$E$8 -> 134.265233 | BB28: =BB26/$F$8 -> 281.2133892 | BC28: =BC26/$G$8 -> 0 | BD28: =BD26/$H$8 -> 0 | BE28: =BE26/$I$8 -> 0
C29: p+3 | D29: ='Survivalexp RAW 30May-..Jun'!I37 ->  | E29: ='Survivalexp RAW 30May-..Jun'!P37 ->  | F29: ='Survivalexp RAW 30May-..Jun'!W37 ->  | G29: ='Survivalexp RAW 30May-..Jun'!AD37 ->  | H29: ='Survivalexp RAW 30May-..Jun'!AK37 -> 4 | I29: ='Survivalexp RAW 30May-..Jun'!AR37 -> 1 | L29: ='Survivalexp RAW 30May-..Jun'!I81 ->  | M29: ='Survivalexp RAW 30May-..Jun'!P81 ->  | N29: ='Survivalexp RAW 30May-..Jun'!W81 ->  | O29: ='Survivalexp RAW 30May-..Jun'!AD81 ->  | P29: ='Survivalexp RAW 30May-..Jun'!AK81 ->  | Q29: ='Survivalexp RAW 30May-..Jun'!AR81 -> 47 | T29: ='Survivalexp RAW 30May-..Jun'!I125 ->  | U29: ='Survivalexp RAW 30May-..Jun'!P125 ->  | V29: ='Survivalexp RAW 30May-..Jun'!W125 ->  | W29: ='Survivalexp RAW 30May-..Jun'!AD125 ->  | X29: ='Survivalexp RAW 30May-..Jun'!AK125 ->  | Y29: ='Survivalexp RAW 30May-..Jun'!AR125 -> 16 | AB29: ='Survivalexp RAW 30May-..Jun'!I169 ->  | AC29: ='Survivalexp RAW 30May-..Jun'!P169 ->  | AD29: ='Survivalexp RAW 30May-..Jun'!W169 -> 42 | AE29: ='Survivalexp RAW 30May-..Jun'!AD169 -> 5 | AF29: ='Survivalexp RAW 30May-..Jun'!AK169 -> 1 | AG29: ='Survivalexp RAW 30May-..Jun'!AR169 -> 0 | AJ29: ='Survivalexp RAW 30May-..Jun'!I213 ->  | AK29: ='Survivalexp RAW 30May-..Jun'!P213 -> 46 | AL29: ='Survivalexp RAW 30May-..Jun'!W213 -> 8 | AM29: ='Survivalexp RAW 30May-..Jun'!AD213 -> 1 | AN29: ='Survivalexp RAW 30May-..Jun'!AK213 -> 0 | AO29: ='Survivalexp RAW 30May-..Jun'!AR213 -> 0 | AR29: ='Survivalexp RAW 30May-..Jun'!I249 ->  | AS29: ='Survivalexp RAW 30May-..Jun'!P249 -> 44 | AT29: ='Survivalexp RAW 30May-..Jun'!W249 -> 5 | AU29: ='Survivalexp RAW 30May-..Jun'!AD249 -> 0 | AV29: ='Survivalexp RAW 30May-..Jun'!AK249 -> 0 | AW29: ='Survivalexp RAW 30May-..Jun'!AR249 -> 0 | AZ29: ='Survivalexp RAW 30May-..Jun'!I271 ->  | BA29: ='Survivalexp RAW 30May-..Jun'!P271 -> 16.73333333 | BB29: ='Survivalexp RAW 30May-..Jun'!W271 -> 0.8 | BC29: ='Survivalexp RAW 30May-..Jun'!AD271 -> 0.2666666667 | BD29: ='Survivalexp RAW 30May-..Jun'!AK271 -> 0 | BE29: ='Survivalexp RAW 30May-..Jun'!AR271 -> 0
C30: stdev | D30: ='Survivalexp RAW 30May-..Jun'!I38 ->  | E30: ='Survivalexp RAW 30May-..Jun'!P38 ->  | F30: ='Survivalexp RAW 30May-..Jun'!W38 ->  | G30: ='Survivalexp RAW 30May-..Jun'!AD38 ->  | H30: ='Survivalexp RAW 30May-..Jun'!AK38 -> 4 | I30: ='Survivalexp RAW 30May-..Jun'!AR38 -> 3 | L30: ='Survivalexp RAW 30May-..Jun'!I82 ->  | M30: ='Survivalexp RAW 30May-..Jun'!P82 ->  | N30: ='Survivalexp RAW 30May-..Jun'!W82 ->  | O30: ='Survivalexp RAW 30May-..Jun'!AD82 ->  | P30: ='Survivalexp RAW 30May-..Jun'!AK82 ->  | Q30: ='Survivalexp RAW 30May-..Jun'!AR82 -> 0 | T30: ='Survivalexp RAW 30May-..Jun'!I126 ->  | U30: ='Survivalexp RAW 30May-..Jun'!P126 ->  | V30: ='Survivalexp RAW 30May-..Jun'!W126 ->  | W30: ='Survivalexp RAW 30May-..Jun'!AD126 ->  | X30: ='Survivalexp RAW 30May-..Jun'!AK126 ->  | Y30: ='Survivalexp RAW 30May-..Jun'!AR126 ->  | AB30: ='Survivalexp RAW 30May-..Jun'!I170 ->  | AC30: ='Survivalexp RAW 30May-..Jun'!P170 ->  | AD30: ='Survivalexp RAW 30May-..Jun'!W170 -> 12 | AE30: ='Survivalexp RAW 30May-..Jun'!AD170 -> 5 | AF30: ='Survivalexp RAW 30May-..Jun'!AK170 -> 3 | AG30: ='Survivalexp RAW 30May-..Jun'!AR170 -> 0 | AJ30: ='Survivalexp RAW 30May-..Jun'!I214 ->  | AK30: ='Survivalexp RAW 30May-..Jun'!P214 -> 24 | AL30: ='Survivalexp RAW 30May-..Jun'!W214 -> 18 | AM30: ='Survivalexp RAW 30May-..Jun'!AD214 -> 3 | AN30: ='Survivalexp RAW 30May-..Jun'!AK214 -> 1 | AO30: ='Survivalexp RAW 30May-..Jun'!AR214 -> 0 | AR30: ='Survivalexp RAW 30May-..Jun'!I250 ->  | AS30: ='Survivalexp RAW 30May-..Jun'!P250 -> 10 | AT30: ='Survivalexp RAW 30May-..Jun'!W250 -> 3 | AU30: ='Survivalexp RAW 30May-..Jun'!AD250 -> 2 | AV30: ='Survivalexp RAW 30May-..Jun'!AK250 -> 0 | AW30: ='Survivalexp RAW 30May-..Jun'!AR250 -> 0 | AZ30: ='Survivalexp RAW 30May-..Jun'!I272 ->  | BA30: ='Survivalexp RAW 30May-..Jun'!P272 -> 8.716873982 | BB30: ='Survivalexp RAW 30May-..Jun'!W272 -> 2.894427191 | BC30: ='Survivalexp RAW 30May-..Jun'!AD272 -> 1.788854382 | BD30: ='Survivalexp RAW 30May-..Jun'!AK272 -> 0 | BE30: ='Survivalexp RAW 30May-..Jun'!AR272 -> 0
B31: est. nr of bacteria | D31: =D29/$D$8 ->  | E31: =E29/$E$8 ->  | F31: =F29/$F$8 ->  | G31: =G29/$G$8 ->  | H31: =H29/$H$8 -> 43333.33333 | I31: =I29/$I$8 -> 53333.33333 | J31: =H31 -> 43333.33333 | K31: =H32 -> 41602.46899 | L31: =L29/$D$8 ->  | M31: =M29/$E$8 ->  | N31: =N29/$F$8 ->  | O31: =O29/$G$8 ->  | P31: =P29/$H$8 ->  | Q31: =Q29/$I$8 -> 4733333.333 | R31: =Q31 -> 4733333.333 | S31: =Q32 -> 0 | T31: =T29/$D$8 ->  | U31: =U29/$E$8 ->  | V31: =V29/$F$8 ->  | W31: =W29/$G$8 ->  | X31: =X29/$H$8 ->  | Y31: =Y29/$I$8 -> 1630000 | Z31: =Y31 -> 1630000 | AA31: =Y32 ->  | AB31: =AB29/$D$8 ->  | AC31: =AC29/$E$8 ->  | AD31: =AD29/$F$8 -> 4213.333333 | AE31: =AE29/$G$8 -> 5066.666667 | AF31: =AF29/$H$8 -> 8000 | AG31: =AG29/$I$8 -> 6666.666667 | AH31: =AD31 -> 4213.333333 | AI31: =AD32 -> 1224.700904 | AJ31: =AJ29/$D$8 ->  | AK31: =AK29/$E$8 -> 457.3333333 | AL31: =AL29/$F$8 -> 786.6666667 | AM31: =AM29/$G$8 -> 733.3333333 | AN31: =AN29/$H$8 -> 1333.333333 | AO31: =AO29/$I$8 -> 0 | AP31: =AK31 -> 457.3333333 | AQ31: =AK32 -> 237.8382252 | AR31: =AR29/$D$8 ->  | AS31: =AS29/$E$8 -> 439.3333333 | AT31: =AT29/$F$8 -> 533.3333333 | AU31: =AU29/$G$8 -> 266.6666667 | AV31: =AV29/$H$8 -> 0 | AW31: =AW29/$I$8 -> 0 | AX31: =AS31 -> 439.3333333 | AY31: =AS32 -> 99.52416987 | AZ31: =AZ29/$D$8 ->  | BA31: =BA29/$E$8 -> 167.3333333 | BB31: =BB29/$F$8 -> 80 | BC31: =BC29/$G$8 -> 266.6666667 | BD31: =BD29/$H$8 -> 0 | BE31: =BE29/$I$8 -> 0 | BF31: =BA31 -> 167.3333333 | BG31: =BA32 -> 87.16873982
C32: stdev | D32: =D30/$D$8 ->  | E32: =E30/$E$8 ->  | F32: =F30/$F$8 ->  | G32: =G30/$G$8 ->  | H32: =H30/$H$8 -> 41602.46899 | I32: =I30/$I$8 -> 278379.0535 | L32: =L30/$D$8 ->  | M32: =M30/$E$8 ->  | N32: =N30/$F$8 ->  | O32: =O30/$G$8 ->  | P32: =P30/$H$8 ->  | Q32: =Q30/$I$8 -> 0 | T32: =T30/$D$8 ->  | U32: =U30/$E$8 ->  | V32: =V30/$F$8 ->  | W32: =W30/$G$8 ->  | X32: =X30/$H$8 ->  | Y32: =Y30/$I$8 ->  | AB32: =AB30/$D$8 ->  | AC32: =AC30/$E$8 ->  | AD32: =AD30/$F$8 -> 1224.700904 | AE32: =AE30/$G$8 -> 5407.725632 | AF32: =AF30/$H$8 -> 30926.94863 | AG32: =AG30/$I$8 -> 44721.35955 | AJ32: =AJ30/$D$8 ->  | AK32: =AK30/$E$8 -> 237.8382252 | AL32: =AL30/$F$8 -> 1823.987101 | AM32: =AM30/$G$8 -> 2738.612788 | AN32: =AN30/$H$8 -> 5477.225575 | AO32: =AO30/$I$8 -> 0 | AR32: =AR30/$D$8 ->  | AS32: =AS30/$E$8 -> 99.52416987 | AT32: =AT30/$F$8 -> 301.496084 | AU32: =AU30/$G$8 -> 1788.854382 | AV32: =AV30/$H$8 -> 0 | AW32: =AW30/$I$8 -> 0 | AZ32: =AZ30/$D$8 ->  | BA32: =BA30/$E$8 -> 87.16873982 | BB32: =BB30/$F$8 -> 289.4427191 | BC32: =BC30/$G$8 -> 1788.854382 | BD32: =BD30/$H$8 -> 0 | BE32: =BE30/$I$8 -> 0
B33: 2213F APR | C33: p+0 | D33: ='Survivalexp RAW 30May-..Jun'!I42 ->  | E33: ='Survivalexp RAW 30May-..Jun'!P42 ->  | F33: ='Survivalexp RAW 30May-..Jun'!W42 ->  | G33: ='Survivalexp RAW 30May-..Jun'!AD42 ->  | H33: ='Survivalexp RAW 30May-..Jun'!AK42 -> 3 | I33: ='Survivalexp RAW 30May-..Jun'!AR42 -> 0 | L33: ='Survivalexp RAW 30May-..Jun'!I86 ->  | M33: ='Survivalexp RAW 30May-..Jun'!P86 ->  | N33: ='Survivalexp RAW 30May-..Jun'!W86 ->  | O33: ='Survivalexp RAW 30May-..Jun'!AD86 ->  | P33: ='Survivalexp RAW 30May-..Jun'!AK86 ->  | Q33: ='Survivalexp RAW 30May-..Jun'!AR86 -> 55 | T33: ='Survivalexp RAW 30May-..Jun'!I130 ->  | U33: ='Survivalexp RAW 30May-..Jun'!P130 ->  | V33: ='Survivalexp RAW 30May-..Jun'!W130 ->  | W33: ='Survivalexp RAW 30May-..Jun'!AD130 ->  | X33: ='Survivalexp RAW 30May-..Jun'!AK130 -> 106 | Y33: ='Survivalexp RAW 30May-..Jun'!AR130 -> 17 | AB33: ='Survivalexp RAW 30May-..Jun'!I174 ->  | AC33: ='Survivalexp RAW 30May-..Jun'!P174 ->  | AD33: ='Survivalexp RAW 30May-..Jun'!W174 ->  | AE33: ='Survivalexp RAW 30May-..Jun'!AD174 ->  | AF33: ='Survivalexp RAW 30May-..Jun'!AK174 -> 42 | AG33: ='Survivalexp RAW 30May-..Jun'!AR174 -> 5 | AJ33: ='Survivalexp RAW 30May-..Jun'!I218 ->  | AK33: ='Survivalexp RAW 30May-..Jun'!P218 ->  | AL33: ='Survivalexp RAW 30May-..Jun'!W218 ->  | AM33: ='Survivalexp RAW 30May-..Jun'!AD218 -> 79 | AN33: ='Survivalexp RAW 30May-..Jun'!AK218 -> 19 | AO33: ='Survivalexp RAW 30May-..Jun'!AR218 -> 2 | AR33: ='Survivalexp RAW 30May-..Jun'!I254 ->  | AS33: ='Survivalexp RAW 30May-..Jun'!P254 ->  | AT33: ='Survivalexp RAW 30May-..Jun'!W254 ->  | AU33: ='Survivalexp RAW 30May-..Jun'!AD254 -> 42 | AV33: ='Survivalexp RAW 30May-..Jun'!AK254 -> 8 | AW33: ='Survivalexp RAW 30May-..Jun'!AR254 -> 1 | AZ33: ='Survivalexp RAW 30May-..Jun'!I276 ->  | BA33: ='Survivalexp RAW 30May-..Jun'!P276 ->  | BB33: ='Survivalexp RAW 30May-..Jun'!W276 -> 29.86666667 | BC33: ='Survivalexp RAW 30May-..Jun'!AD276 -> 1.933333333 | BD33: ='Survivalexp RAW 30May-..Jun'!AK276 -> 0.6666666667 | BE33: ='Survivalexp RAW 30May-..Jun'!AR276 -> 0
C34: stdev | D34: ='Survivalexp RAW 30May-..Jun'!I43 ->  | E34: ='Survivalexp RAW 30May-..Jun'!P43 ->  | F34: ='Survivalexp RAW 30May-..Jun'!W43 ->  | G34: ='Survivalexp RAW 30May-..Jun'!AD43 ->  | H34: ='Survivalexp RAW 30May-..Jun'!AK43 -> 4 | I34: ='Survivalexp RAW 30May-..Jun'!AR43 -> 2 | L34: ='Survivalexp RAW 30May-..Jun'!I87 ->  | M34: ='Survivalexp RAW 30May-..Jun'!P87 ->  | N34: ='Survivalexp RAW 30May-..Jun'!W87 ->  | O34: ='Survivalexp RAW 30May-..Jun'!AD87 ->  | P34: ='Survivalexp RAW 30May-..Jun'!AK87 ->  | Q34: ='Survivalexp RAW 30May-..Jun'!AR87 -> 0 | T34: ='Survivalexp RAW 30May-..Jun'!I131 ->  | U34: ='Survivalexp RAW 30May-..Jun'!P131 ->  | V34: ='Survivalexp RAW 30May-..Jun'!W131 ->  | W34: ='Survivalexp RAW 30May-..Jun'!AD131 ->  | X34: ='Survivalexp RAW 30May-..Jun'!AK131 ->  | Y34: ='Survivalexp RAW 30May-..Jun'!AR131 -> 18 | AB34: ='Survivalexp RAW 30May-..Jun'!I175 ->  | AC34: ='Survivalexp RAW 30May-..Jun'!P175 ->  | AD34: ='Survivalexp RAW 30May-..Jun'!W175 ->  | AE34: ='Survivalexp RAW 30May-..Jun'!AD175 ->  | AF34: ='Survivalexp RAW 30May-..Jun'!AK175 -> 19 | AG34: ='Survivalexp RAW 30May-..Jun'!AR175 -> 6 | AJ34: ='Survivalexp RAW 30May-..Jun'!I219 ->  | AK34: ='Survivalexp RAW 30May-..Jun'!P219 ->  | AL34: ='Survivalexp RAW 30May-..Jun'!W219 ->  | AM34: ='Survivalexp RAW 30May-..Jun'!AD219 ->  | AN34: ='Survivalexp RAW 30May-..Jun'!AK219 -> 9 | AO34: ='Survivalexp RAW 30May-..Jun'!AR219 -> 4 | AR34: ='Survivalexp RAW 30May-..Jun'!I255 ->  | AS34: ='Survivalexp RAW 30May-..Jun'!P255 ->  | AT34: ='Survivalexp RAW 30May-..Jun'!W255 ->  | AU34: ='Survivalexp RAW 30May-..Jun'!AD255 -> 22 | AV34: ='Survivalexp RAW 30May-..Jun'!AK255 -> 8 | AW34: ='Survivalexp RAW 30May-..Jun'!AR255 -> 3 | AZ34: ='Survivalexp RAW 30May-..Jun'!I277 ->  | BA34: ='Survivalexp RAW 30May-..Jun'!P277 ->  | BB34: ='Survivalexp RAW 30May-..Jun'!W277 -> 18.82472171 | BC34: ='Survivalexp RAW 30May-..Jun'!AD277 -> 3.247662306 | BD34: ='Survivalexp RAW 30May-..Jun'!AK277 -> 1.802551896 | BE34: ='Survivalexp RAW 30May-..Jun'!AR277 -> 0
B35: est. nr of bacteria | D35: =D33/$D$8 ->  | E35: =E33/$E$8 ->  | F35: =F33/$F$8 ->  | G35: =G33/$G$8 ->  | H35: =H33/$H$8 -> 34166.66667 | I35: =I33/$I$8 -> 46666.66667 | J35: =H35 -> 34166.66667 | K35: =H36 -> 35651.0807 | L35: =L33/$D$8 ->  | M35: =M33/$E$8 ->  | N35: =N33/$F$8 ->  | O35: =O33/$G$8 ->  | P35: =P33/$H$8 ->  | Q35: =Q33/$I$8 -> 5506666.667 | R35: =Q35 -> 5506666.667 | S35: =Q36 -> 0 | T35: =T33/$D$8 ->  | U35: =U33/$E$8 ->  | V35: =V33/$F$8 ->  | W35: =W33/$G$8 ->  | X35: =X33/$H$8 -> 1060000 | Y35: =Y33/$I$8 -> 1720000 | Z35: =Y35 -> 1720000 | AA35: =Y36 -> 1815944.073 | AB35: =AB33/$D$8 ->  | AC35: =AC33/$E$8 ->  | AD35: =AD33/$F$8 ->  | AE35: =AE33/$G$8 ->  | AF35: =AF33/$H$8 -> 420666.6667 | AG35: =AG33/$I$8 -> 466666.6667 | AH35: =AF35 -> 420666.6667 | AI35: =AF36 -> 190950.4576 | AJ35: =AJ33/$D$8 ->  | AK35: =AK33/$E$8 ->  | AL35: =AL33/$F$8 ->  | AM35: =AM33/$G$8 -> 79000 | AN35: =AN33/$H$8 -> 191333.3333 | AO35: =AO33/$I$8 -> 193333.3333 | AP35: =AN35 -> 191333.3333 | AQ35: =AN36 -> 92276.96224 | AR35: =AR33/$D$8 ->  | AS35: =AS33/$E$8 ->  | AT35: =AT33/$F$8 ->  | AU35: =AU33/$G$8 -> 42200 | AV35: =AV33/$H$8 -> 84000 | AW35: =AW33/$I$8 -> 80000 | AX35: =AU35 -> 42200 | AY35: =AU36 -> 21897.12353 | AZ35: =AZ33/$D$8 ->  | BA35: =BA33/$E$8 ->  | BB35: =BB33/$F$8 -> 2986.666667 | BC35: =BC33/$G$8 -> 1933.333333 | BD35: =BD33/$H$8 -> 6666.666667 | BE35: =BE33/$I$8 -> 0 | BF35: =BB35 -> 2986.666667 | BG35: =BB36 -> 1882.472171
C36: stdev | D36: =D34/$D$8 ->  | E36: =E34/$E$8 ->  | F36: =F34/$F$8 ->  | G36: =G34/$G$8 ->  | H36: =H34/$H$8 -> 35651.0807 | I36: =I34/$I$8 -> 164316.7673 | L36: =L34/$D$8 ->  | M36: =M34/$E$8 ->  | N36: =N34/$F$8 ->  | O36: =O34/$G$8 ->  | P36: =P34/$H$8 ->  | Q36: =Q34/$I$8 -> 0 | T36: =T34/$D$8 ->  | U36: =U34/$E$8 ->  | V36: =V34/$F$8 ->  | W36: =W34/$G$8 ->  | X36: =X34/$H$8 ->  | Y36: =Y34/$I$8 -> 1815944.073 | AB36: =AB34/$D$8 ->  | AC36: =AC34/$E$8 ->  | AD36: =AD34/$F$8 ->  | AE36: =AE34/$G$8 ->  | AF36: =AF34/$H$8 -> 190950.4576 | AG36: =AG34/$I$8 -> 648985.0772 | AJ36: =AJ34/$D$8 ->  | AK36: =AK34/$E$8 ->  | AL36: =AL34/$F$8 ->  | AM36: =AM34/$G$8 ->  | AN36: =AN34/$H$8 -> 92276.96224 | AO36: =AO34/$I$8 -> 363574.7151 | AR36: =AR34/$D$8 ->  | AS36: =AS34/$E$8 ->  | AT36: =AT34/$F$8 ->  | AU36: =AU34/$G$8 -> 21897.12353 | AV36: =AV34/$H$8 -> 84205.67267 | AW36: =AW34/$I$8 -> 282653.2333 | AZ36: =AZ34/$D$8 ->  | BA36: =BA34/$E$8 ->  | BB36: =BB34/$F$8 -> 1882.472171 | BC36: =BC34/$G$8 -> 3247.662306 | BD36: =BD34/$H$8 -> 18025.51896 | BE36: =BE34/$I$8 -> 0
C37: p+3 | D37: ='Survivalexp RAW 30May-..Jun'!I47 ->  | E37: ='Survivalexp RAW 30May-..Jun'!P47 ->  | F37: ='Survivalexp RAW 30May-..Jun'!W47 ->  | G37: ='Survivalexp RAW 30May-..Jun'!AD47 -> 59 | H37: ='Survivalexp RAW 30May-..Jun'!AK47 -> 8 | I37: ='Survivalexp RAW 30May-..Jun'!AR47 -> 1 | L37: ='Survivalexp RAW 30May-..Jun'!I91 ->  | M37: ='Survivalexp RAW 30May-..Jun'!P91 ->  | N37: ='Survivalexp RAW 30May-..Jun'!W91 ->  | O37: ='Survivalexp RAW 30May-..Jun'!AD91 ->  | P37: ='Survivalexp RAW 30May-..Jun'!AK91 ->  | Q37: ='Survivalexp RAW 30May-..Jun'!AR91 -> 67 | T37: ='Survivalexp RAW 30May-..Jun'!I135 ->  | U37: ='Survivalexp RAW 30May-..Jun'!P135 ->  | V37: ='Survivalexp RAW 30May-..Jun'!W135 ->  | W37: ='Survivalexp RAW 30May-..Jun'!AD135 ->  | X37: ='Survivalexp RAW 30May-..Jun'!AK135 ->  | Y37: ='Survivalexp RAW 30May-..Jun'!AR135 -> 37 | AB37: ='Survivalexp RAW 30May-..Jun'!I179 ->  | AC37: ='Survivalexp RAW 30May-..Jun'!P179 ->  | AD37: ='Survivalexp RAW 30May-..Jun'!W179 ->  | AE37: ='Survivalexp RAW 30May-..Jun'!AD179 ->  | AF37: ='Survivalexp RAW 30May-..Jun'!AK179 -> 59 | AG37: ='Survivalexp RAW 30May-..Jun'!AR179 -> 6 | AJ37: ='Survivalexp RAW 30May-..Jun'!I223 ->  | AK37: ='Survivalexp RAW 30May-..Jun'!P223 ->  | AL37: ='Survivalexp RAW 30May-..Jun'!W223 ->  | AM37: ='Survivalexp RAW 30May-..Jun'!AD223 ->  | AN37: ='Survivalexp RAW 30May-..Jun'!AK223 -> 31 | AO37: ='Survivalexp RAW 30May-..Jun'!AR223 -> 4 | AR37: ='Survivalexp RAW 30May-..Jun'!I259 ->  | AS37: ='Survivalexp RAW 30May-..Jun'!P259 ->  | AT37: ='Survivalexp RAW 30May-..Jun'!W259 ->  | AU37: ='Survivalexp RAW 30May-..Jun'!AD259 ->  | AV37: ='Survivalexp RAW 30May-..Jun'!AK259 -> 17 | AW37: ='Survivalexp RAW 30May-..Jun'!AR259 -> 2 | AZ37: ='Survivalexp RAW 30May-..Jun'!I281 ->  | BA37: ='Survivalexp RAW 30May-..Jun'!P281 ->  | BB37: ='Survivalexp RAW 30May-..Jun'!W281 -> 36.6 | BC37: ='Survivalexp RAW 30May-..Jun'!AD281 -> 6.4 | BD37: ='Survivalexp RAW 30May-..Jun'!AK281 -> 0.6 | BE37: ='Survivalexp RAW 30May-..Jun'!AR281 -> 0
C38: stdev | D38: ='Survivalexp RAW 30May-..Jun'!I48 ->  | E38: ='Survivalexp RAW 30May-..Jun'!P48 ->  | F38: ='Survivalexp RAW 30May-..Jun'!W48 ->  | G38: ='Survivalexp RAW 30May-..Jun'!AD48 ->  | H38: ='Survivalexp RAW 30May-..Jun'!AK48 ->  | I38: ='Survivalexp RAW 30May-..Jun'!AR48 -> 3 | L38: ='Survivalexp RAW 30May-..Jun'!I92 ->  | M38: ='Survivalexp RAW 30May-..Jun'!P92 ->  | N38: ='Survivalexp RAW 30May-..Jun'!W92 ->  | O38: ='Survivalexp RAW 30May-..Jun'!AD92 ->  | P38: ='Survivalexp RAW 30May-..Jun'!AK92 ->  | Q38: ='Survivalexp RAW 30May-..Jun'!AR92 -> 0 | T38: ='Survivalexp RAW 30May-..Jun'!I136 ->  | U38: ='Survivalexp RAW 30May-..Jun'!P136 ->  | V38: ='Survivalexp RAW 30May-..Jun'!W136 ->  | W38: ='Survivalexp RAW 30May-..Jun'!AD136 ->  | X38: ='Survivalexp RAW 30May-..Jun'!AK136 ->  | Y38: ='Survivalexp RAW 30May-..Jun'!AR136 -> 25 | AB38: ='Survivalexp RAW 30May-..Jun'!I180 ->  | AC38: ='Survivalexp RAW 30May-..Jun'!P180 ->  | AD38: ='Survivalexp RAW 30May-..Jun'!W180 ->  | AE38: ='Survivalexp RAW 30May-..Jun'!AD180 ->  | AF38: ='Survivalexp RAW 30May-..Jun'!AK180 -> 21 | AG38: ='Survivalexp RAW 30May-..Jun'!AR180 -> 7 | AJ38: ='Survivalexp RAW 30May-..Jun'!I224 ->  | AK38: ='Survivalexp RAW 30May-..Jun'!P224 ->  | AL38: ='Survivalexp RAW 30May-..Jun'!W224 ->  | AM38: ='Survivalexp RAW 30May-..Jun'!AD224 ->  | AN38: ='Survivalexp RAW 30May-..Jun'!AK224 -> 17 | AO38: ='Survivalexp RAW 30May-..Jun'!AR224 -> 5 | AR38: ='Survivalexp RAW 30May-..Jun'!I260 ->  | AS38: ='Survivalexp RAW 30May-..Jun'!P260 ->  | AT38: ='Survivalexp RAW 30May-..Jun'!W260 ->  | AU38: ='Survivalexp RAW 30May-..Jun'!AD260 ->  | AV38: ='Survivalexp RAW 30May-..Jun'!AK260 -> 11 | AW38: ='Survivalexp RAW 30May-..Jun'!AR260 -> 5 | AZ38: ='Survivalexp RAW 30May-..Jun'!I282 ->  | BA38: ='Survivalexp RAW 30May-..Jun'!P282 ->  | BB38: ='Survivalexp RAW 30May-..Jun'!W282 ->  | BC38: ='Survivalexp RAW 30May-..Jun'!AD282 -> 7.411883278 | BD38: ='Survivalexp RAW 30May-..Jun'!AK282 -> 1.643167673 | BE38: ='Survivalexp RAW 30May-..Jun'!AR282 -> 0
B39: est. nr of bacteria | D39: =D37/$D$8 ->  | E39: =E37/$E$8 ->  | F39: =F37/$F$8 ->  | G39: =G37/$G$8 -> 59000 | H39: =H37/$H$8 -> 82000 | I39: =I37/$I$8 -> 133333.3333 | J39: =I39 -> 133333.3333 | K39: =I40 -> 315685.0013 | L39: =L37/$D$8 ->  | M39: =M37/$E$8 ->  | N39: =N37/$F$8 ->  | O39: =O37/$G$8 ->  | P39: =P37/$H$8 ->  | Q39: =Q37/$I$8 -> 6686666.667 | R39: =Q39 -> 6686666.667 | S39: =Q40 -> 0 | T39: =T37/$D$8 ->  | U39: =U37/$E$8 ->  | V39: =V37/$F$8 ->  | W39: =W37/$G$8 ->  | X39: =X37/$H$8 ->  | Y39: =Y37/$I$8 -> 3673333.333 | Z39: =Y39 -> 3673333.333 | AA39: =Y40 -> 2482327.335 | AB39: =AB37/$D$8 ->  | AC39: =AC37/$E$8 ->  | AD39: =AD37/$F$8 ->  | AE39: =AE37/$G$8 ->  | AF39: =AF37/$H$8 -> 588666.6667 | AG39: =AG37/$I$8 -> 626666.6667 | AH39: =AF39 -> 588666.6667 | AI39: =AF40 -> 214217.1988 | AJ39: =AJ37/$D$8 ->  | AK39: =AK37/$E$8 ->  | AL39: =AL37/$F$8 ->  | AM39: =AM37/$G$8 ->  | AN39: =AN37/$H$8 -> 308666.6667 | AO39: =AO37/$I$8 -> 426666.6667 | AP39: =AN39 -> 308666.6667 | AQ39: =AN40 -> 167296.9024 | AR39: =AR37/$D$8 ->  | AS39: =AS37/$E$8 ->  | AT39: =AT37/$F$8 ->  | AU39: =AU37/$G$8 ->  | AV39: =AV37/$H$8 -> 169333.3333 | AW39: =AW37/$I$8 -> 180000 | AX39: =AV39 -> 169333.3333 | AY39: =AV40 -> 105194.28 | AZ39: =AZ37/$D$8 ->  | BA39: =BA37/$E$8 ->  | BB39: =BB37/$F$8 -> 3660 | BC39: =BC37/$G$8 -> 6400 | BD39: =BD37/$H$8 -> 6000 | BE39: =BE37/$I$8 -> 0 | BF39: =BC39 -> 6400 | BG39: =BC40 -> 7411.883278
C40: stdev | D40: =D38/$D$8 ->  | E40: =E38/$E$8 ->  | F40: =F38/$F$8 ->  | G40: =G38/$G$8 ->  | H40: =H38/$H$8 ->  | I40: =I38/$I$8 -> 315685.0013 | L40: =L38/$D$8 ->  | M40: =M38/$E$8 ->  | N40: =N38/$F$8 ->  | O40: =O38/$G$8 ->  | P40: =P38/$H$8 ->  | Q40: =Q38/$I$8 -> 0 | T40: =T38/$D$8 ->  | U40: =U38/$E$8 ->  | V40: =V38/$F$8 ->  | W40: =W38/$G$8 ->  | X40: =X38/$H$8 ->  | Y40: =Y38/$I$8 -> 2482327.335 | AB40: =AB38/$D$8 ->  | AC40: =AC38/$E$8 ->  | AD40: =AD38/$F$8 ->  | AE40: =AE38/$G$8 ->  | AF40: =AF38/$H$8 -> 214217.1988 | AG40: =AG38/$I$8 -> 724204.6239 | AJ40: =AJ38/$D$8 ->  | AK40: =AK38/$E$8 ->  | AL40: =AL38/$F$8 ->  | AM40: =AM38/$G$8 ->  | AN40: =AN38/$H$8 -> 167296.9024 | AO40: =AO38/$I$8 -> 530274.6107 | AR40: =AR38/$D$8 ->  | AS40: =AS38/$E$8 ->  | AT40: =AT38/$F$8 ->  | AU40: =AU38/$G$8 ->  | AV40: =AV38/$H$8 -> 105194.28 | AW40: =AW38/$I$8 -> 461051.3568 | AZ40: =AZ38/$D$8 ->  | BA40: =BA38/$E$8 ->  | BB40: =BB38/$F$8 ->  | BC40: =BC38/$G$8 -> 7411.883278 | BD40: =BD38/$H$8 -> 16431.67673 | BE40: =BE38/$I$8 -> 0
E42: 0 | F42: 2 | G42: =96/24 -> 4 | H42: 7 | I42: 9 | J42: 11 | K42: 17 | L42: STDEV | N42: 0 | O42: 2 | P42: =96/24 -> 4 | Q42: 7 | R42: 9 | S42: 11 | T42: 17
C43: Numbers | D43: Blank | E43: =$J$11 -> 0 | F43: =$R$11 -> 0 | G43: =$Z$11 -> 0 | H43: =$AH$11 -> 0 | I43: =$AP$11 -> 0 | J43: 0 | K43: =$BF$11 ->  | L43: Numbers | M43: Blank | N43: =$K$11 -> 0 | O43: =$S$11 -> 0 | P43: =$AA$11 -> 0 | Q43: =$AI$11 -> 0 | R43: =$AQ$11 -> 0 | S43: =$AY$11 ->  | T43: =$BG$11 -> 
D44: KT2440 WT | E44: =$J$15 -> 150300 | F44: =$R$15 -> 7290000 | G44: =$Z$15 -> 4526666.667 | H44: =$AH$15 -> 290500 | I44: =$AP$15 -> 40000 | J44: =$AX$15 -> 35000 | K44: =$BF$15 ->  | M44: KT2440 WT | N44: =$K$15 -> 162477.0189 | O44: =$S$15 ->  | P44: =$AA$15 -> 2227400.585 | Q44: =$AI$15 ->  | R44: =$AQ$15 -> 264548.1268 | S44: =$AY$15 -> 394536 | T44: =$BG$15 -> 
D45: 2213F - p+0 | E45: =$J$19 -> 111333.3333 | F45: =$R$19 -> 3240000 | G45: =$Z$19 -> 933333.3333 | H45: =$AH$19 -> 21866.66667 | I45: =$AP$19 -> 5860 | J45: =$AX$19 -> 1430 | K45: =$BF$19 ->  | M45: 2213F - p+0 | N45: =$K$19 -> 108866.7743 | O45: =$S$19 -> 0 | P45: =$AA$19 -> 984984.5814 | Q45: =$AI$19 -> 13414.08536 | R45: =$AQ$19 -> 4641.633691 | S45: =$AY$19 -> 4237.749362 | T45: =$BG$19 -> 
D46: 2213F - p+6 | E46: =$J$23 -> 82666.66667 | F46: =$R$23 -> 7560000 | G46: =$Z$23 -> 980000 | H46: =$AH$23 -> 4113.333333 | I46: =$AP$23 -> 581.3333333 | J46: =$AX$23 -> 266 | K46: =$BF$23 ->  | M46: 2213F - p+6 | N46: =$K$23 -> 91077.16856 | O46: =$S$23 ->  | P46: =$AA$23 ->  | Q46: =$AI$23 -> 1710.717697 | R46: =$AQ$23 -> 368.853095 | S46: =$AY$23 -> 223.9783513 | T46: =$BG$23 -> 
D47: 2213F A p+0 | E47: =$J$27 -> 41433.33333 | F47: =$R$27 -> 3853333.333 | G47: =$Z$27 -> 706666.6667 | H47: =$AH$27 -> 5553.333333 | I47: =$AP$27 -> 1528.888889 | J47: =$AX$27 -> 400.6666667 | K47: =$BF$27 -> 180 | M47: 2213F A p+0 | N47: =$K$27 -> 14903.34698 | O47: =$S$27 -> 0 | P47: =$AA$27 -> 987606.3167 | Q47: =$AI$27 -> 1447.595001 | R47: =$AQ$27 -> 1570.818722 | S47: =$AY$27 -> 204.8963707 | T47: =$BG$27 -> 134.265233
D48: 2213F A p+6 | E48: =$J$31 -> 43333.33333 | F48: =$R$31 -> 4733333.333 | G48: =$Z$31 -> 1630000 | H48: =$AH$31 -> 4213.333333 | I48: =$AP$31 -> 457.3333333 | J48: =$AX$31 -> 439.3333333 | K48: =$BF$31 -> 167.3333333 | M48: 2213F A p+6 | N48: =$K$31 -> 41602.46899 | O48: =$S$31 -> 0 | P48: =$AA$31 ->  | Q48: =$AI$31 -> 1224.700904 | R48: =$AQ$31 -> 237.8382252 | S48: =$AY$31 -> 99.52416987 | T48: =$BG$31 -> 87.16873982
D49: 2213F APR p+0 | E49: =$J$35 -> 34166.66667 | F49: =$R$35 -> 5506666.667 | G49: =$Z$35 -> 1720000 | H49: =$AH$35 -> 420666.6667 | I49: =$AP$35 -> 191333.3333 | J49: =$AX$35 -> 42200 | K49: =$BF$35 -> 2986.666667 | M49: 2213F APR p+0 | N49: =$K$35 -> 35651.0807 | O49: =$S$35 -> 0 | P49: =$AA$35 -> 1815944.073 | Q49: =$AI$35 -> 190950.4576 | R49: =$AQ$35 -> 92276.96224 | S49: =$AY$35 -> 21897.12353 | T49: =$BG$35 -> 1882.472171
D50: 2213F APR p+6 | E50: =$J$39 -> 133333.3333 | F50: =$R$39 -> 6686666.667 | G50: =$Z$39 -> 3673333.333 | H50: =$AH$39 -> 588666.6667 | I50: =$AP$39 -> 308666.6667 | J50: =$AX$39 -> 169333.3333 | K50: =$BF$39 -> 6400 | M50: 2213F APR p+6 | N50: =$K$39 -> 315685.0013 | O50: =$S$39 -> 0 | P50: =$AA$39 -> 2482327.335 | Q50: =$AI$39 -> 214217.1988 | R50: =$AQ$39 -> 167296.9024 | S50: =$AY$39 -> 105194.28 | T50: =$BG$39 -> 7411.883278
E52: 0 | F52: 2 | G52: =96/24 -> 4 | H52: 7 | I52: 9 | J52: 11 | K52: 17 | L52: STDEV | N52: 0 | O52: 2 | P52: =96/24 -> 4 | Q52: 7 | R52: 9 | S52: 11 | T52: 17
C53: Percentages | D53: Blank | E53: 0 | F53: 0 | G53: 0 | H53: 0 | I53: 0 | J53: 0 | K53: =K43/$F$44*100 ->  | L53: Percentages | M53: Blank | N53: 0 | O53: 0 | P53: 0 | Q53: 0 | R53: 0 | S53: 0 | T53: =T43/$F$44*100 -> 
D54: KT2440 WT | E54: =E44/$F$44*100 -> 2.061728395 | F54: 100 | G54: 62.09419296 | H54: 3.984910837 | I54: 0.548696845 | J54: 0.4801097394 | M54: KT2440 WT | N54: =N44/$F$44*100 -> 2.228765691 | O54: =O44/$F$44*100 ->  | P54: 30.55419183 | R54: 3.628918062 | S54: 5.412017947
D55: 2213F - p+0 | E55: =E45/$F$45*100 -> 3.436213992 | F55: 100 | G55: =G45/$F$45*100 -> 28.80658436 | H55: =H45/$F$45*100 -> 0.6748971193 | I55: 0.1808641975 | J55: =J45/$F$45*100 -> 0.04413580247 | K55: =K45/$F$45*100 ->  | M55: 2213F - p+0 | N55: =N45/$F$45*100 -> 3.360085626 | O55: 0 | P55: =P45/$F$45*100 -> 30.40075868 | Q55: =Q45/$F$45*100 -> 0.4140149803 | R55: 0.1432602991 | S55: =S45/$F$45*100 -> 0.1307947334 | T55: =T45/$F$45*100 -> 
D56: 2213F - p+3 | E56: =E46/$F$46*100 -> 1.093474427 | F56: 100 | G56: 12.96296296 | H56: 0.05440917108 | I56: 0.007689594356 | J56: 0.003518518519 | K56: =K46/$F$44*100 ->  | M56: 2213F - p+3 | N56: =N46/$F$46*100 -> 1.204724452 | P56: =P46/$F$46*100 ->  | Q56: 0.02262854097 | R56: =R46/$F$46*100 -> 0.004879009193 | S56: 0.002962676604 | T56: =T46/$F$44*100 -> 
D57: 2213F A p+0 | E57: =E47/$F$47*100 -> 1.075259516 | F57: 100 | G57: =G47/$F$47*100 -> 18.33910035 | H57: 0.1441176471 | I57: 0.03967704729 | J57: 0.01039792388 | K57: 0.004671280277 | M57: 2213F A p+0 | N57: =N47/$F$47*100 -> 0.3867650599 | O57: 0 | P57: =P47/$F$47*100 -> 25.62992171 | Q57: 0.03756734433 | R57: 0.04076519173 | S57: 0.005317379864 | T57: 0.00348439186
D58: 2213F A p+3 | E58: =E48/$F$48*100 -> 0.9154929577 | F58: 100 | G58: 34.43661972 | H58: 0.08901408451 | I58: 0.009661971831 | J58: 0.009281690141 | K58: 0.003535211268 | M58: 2213F A p+3 | N58: =N48/$F$48*100 -> 0.8789254013 | O58: 0 | Q58: 0.02587396275 | R58: 0.005024751237 | S58: 0.002102623307 | T58: 0.001841593095
D59: 2213F APR p+0 | E59: =E49/$F$49*100 -> 0.6204600484 | F59: 100 | G59: 31.23486683 | H59: 7.639225182 | I59: 3.474576271 | J59: 0.7663438257 | K59: =K49/$F$49*100 -> 0.05423728814 | M59: 2213F APR p+0 | N59: =N49/$F$49*100 -> 0.6474167197 | O59: 0 | P59: 32.97719261 | Q59: 3.467623322 | R59: 1.67573176 | S59: 0.3976475217 | T59: =T49/$F$49*100 -> 0.03418532998
D60: 2213F APR p+3 | E60: =E50/$F$50*100 -> 1.994017946 | F60: 100 | G60: 54.93519442 | H60: 8.803589232 | I60: 4.616151545 | J60: 2.532402792 | K60: 0.09571286142 | M60: 2213F APR p+3 | N60: =N50/$F$50*100 -> 4.721111684 | O60: 0 | P60: 37.12353941 | Q60: 3.203647041 | R60: 2.501947693 | S60: 1.573194616 | T60: 0.110845712
